Workbook

Sheet Introduction
A1: Greater London Authority - Circular Economy Statement template
A3: How to use this spreadsheet
A4: This template should be used by planning applicants to fulfil the requirements of the Mayor's Circular Economy (CE) Statement policy set out in London Plan Policy SI 7 'Reducing waste and supporting the Circular Economy’. Before completing and submitting this spreadsheet to the GLA, applicants should read the CE statement guidance: https://www.london.gov.uk/what-we-do/planning/implementing-london-plan/london-plan-guidance-and-spgs/circular-economy-statement-guidance-consultation-draft
A6: Applicant are required to submit CE statement information to the GLA at the following three stages: pre-applicaton, outline/detailed planning submission and post-construction. Separate tabs are provided in this spreadsheet for each stage. An outline of the information required at each stage and how to submit it is provided below. Please enter information to the light yellow-coloured cells only, do not enter information in the grey cells as these will be automatically calculated. The light green-coloured cells should be completed to achieve 'pioneering' status.
A8: 1. Pre-application stage
A9: At pre-application stage, applicants are required to complete the pre-application information tab of this template which requires applicants to confirm details about the site and to provide details of the circular economy design approaches that are informing the existing and new development (including by building layer for the latter). All tables should be completed. This should be submitted to the GLA along with all other pre-application material.
A11: 2. Outline/detailed planning submission stage
A12: At this stage, applicants are required to complete the outline or detailed planning stage tab of this template (whichever is relevant) and submit it to the GLA along with their planning application. Applicants are required to complete all tables, including the Bill of Materials and Recycling and Waste Reporting tables. Please enter information to the light yellow-coloured cells only, do not enter information in the grey cells as these will be automatically calculated. The light green-coloured cells should be completed to achieve 'pioneering' status.
A14: 3. Post-construction stage
A15: At the final stage of the CE statement process, applicants should complete the post-construction tab of this template and submit it to the GLA within three months of practical completion. This will require an update of the information provided at planning submission stage and for the actual figures to be reported using actual material quantities during construction. Information should be submitted to: circulareconomystatements@london.gov.uk
A17: Queries
A18: Any queries or feedback on this template should be submitted to:
A19: circulareconomystatements@london.gov.uk
A22: Requirement by application stage (see relevant section of guidance for more information) | B22: Pre-application stage (suggested) | C22: Outline application[1] | D22: Full application / reserved matters[2] | E22: Post-construction | F22: Checklist | G22: Information Reference (Please indicate whether this has been included in the report to accompany this template or as a separate submission)
A23: CE targets (see section 4.2) | B23: Encouraged | C23: Yes | D23: Yes | E23: Yes (Performance reported) | G23: Evidence in CES template spreadsheet
A24: CE design approaches (see sections 2.3 - 2.5 and 4.3) | B24: Yes | C24: Yes | D24: Yes | E24: N/A | G24: Evidence in CES template spreadsheet
A25: CE design principles (see sections 2.1, 4.4 - 4.5) | B25: Yes | C25: No | D25: No | E25: No | G25: Evidence in CES template spreadsheet
A26: CE design principles by building layer (see sections 4.5) | B26: No | C26: Yes | D26: Yes | E26: No | G26: Evidence in CES template spreadsheet
A27: Pre-redevelopment audit (see section 4.6) | B27: Encouraged | C27: Yes | D27: Yes | E27: N/A
A28: Pre-demolition audit (see section 4.6) | B28: Encouraged | C28: Yes | D28: Yes | E28: N/A
A29: Bill of materials (including calculations – see section 4.7) | B29: No | C29: Yes (Estimated) | D29: Yes (Estimated) | E29: Yes (Actual) | G29: Evidence in CES template spreadsheet
A30: End of life strategy (see section 4.7) | B30: No | C30: No | D30: Yes | E30: Encouraged
A31: Operational waste management plan (see section 4.8) | B31: No | C31: No | D31: Yes | E31: Encouraged
A32: Recycling and waste reporting (see Section 4.9) | B32: No | C32: Yes (Estimated) | D32: Yes (Estimated) | E32: Yes (Actual) | G32: Evidence in CES template spreadsheet
A33: Lessons learnt and key achievements (see section 4.10) | B33: N/A | C33: N/A | D33: N/A | E33: Yes | G33: Evidence in CES template spreadsheet
A35: [1] Also applicable to the outline and detailed part of hybrid applications.
A36: [2] Also applicable to the outline and detailed part of hybrid applications.

Sheet Pre-App Stage
A4: Pre-Application Stage - Circular Economy Statement
D6: Project Details
C7: Project name
C8: Planning application reference number (if applicable)
C9: Applicant
C10: London Borough
C11: Brief description of the project
C12: Author/s
C13: Date of assessment
C14: Number of Use Types
C15: Use Class / Type | D15: Floor Area by use type (m2)
C16: Use Class / Type 1 | D16: Use Class / Type 1 GIA
C17: Use Class / Type 2 | D17: Use Class / Type 2 GIA
C18: Use Class / Type 3 | D18: Use Class / Type 3 GIA
C19: Use Class / Type 4 | D19: Use Class / Type 4 GIA
C20: Use Class / Type 5 | D20: Use Class / Type 5 GIA
C21: Use Class / Type 6 | D21: Use Class / Type 6 GIA
C22: Use Class / Type 7 | D22: Use Class / Type 7 GIA
C23: Use Class / Type 8 | D23: Use Class / Type 8 GIA
C24: Use Class / Type 9 | D24: Use Class / Type 9 GIA
C25: Use Class / Type 10 | D25: Use Class / Type 10 GIA
C26: Use Class / Type 11 | D26: Use Class / Type 11 GIA
C27: Use Class / Type 12 | D27: Use Class / Type 12 GIA
C28: Use Class / Type 13 | D28: Use Class / Type 13 GIA
C29: Use Class / Type 14 | D29: Use Class / Type 14 GIA
C30: Use Class / Type 15 | D30: Use Class / Type 15 GIA
C31: Overall GIA (m2) | D31: =SUM(D16:D30) -> 0
B34: Circular Economy Design Approaches
B35: Circular Economy Design Approaches for Existing Structures / Buildings | D35: Applicant Response
B36: Is there an existing building on the site?
B37: Is it technically feasible to retain the building(s) in whole or in part?
B38: Are there any building materials or elements available on site that can be used?
B39: Is the existing building, or parts of the building, suited to the requirements for the site?
B40: Is it technically feasible to recover the 'residual value' of the buildings elements or materials?
B41: The preferred strategy is: | D41: NEW BUILDING
B42: The preferred strategy is: | D42: RETAIN and RETROFIT
B43: The preferred strategy is: | D43: PARTIAL RETENTION and REFURBISHMENT
B44: The preferred strategy is: | D44: DISASSEMBLE/DECONSTRUCT AND REUSE
B45: The preferred strategy is: | D45: DEMOLISH/DECONSTRUCT AND RECYCLE
B46: Circular Economy Design Approach | C46: Phase / Building / Area / Layer | D46: Strategic Response
B47: Retain and Retrofit
B48: Partial Retention and Refurbishment
B49: Disassemble and Reuse
B50: Demolish and Recycle
B51: Circular Economy Design Approaches for New Buildings, Infrastructure and Layers Over the Lifetime of the Development | D51: Applicant Response
B52: Is the whole building designed to have a short life on its current site? (e.g. less than 10 yrs)
B53: Is there likely to be a need for building of a similar size (etc.) in different locations in the future?
B54: Is it foreseeable that the building will need to change use/function within its design life?
B55: The preferred strategy is: | D55: Design for BUILDING RELOCATION
B56: The preferred strategy is: | D56: Design for COMPONENT / MATERIAL REUSE
B57: The preferred strategy is: | D57: Design for ADAPTABILITY
B58: All developments should apply the 6 Circular Economy principles, including: | D58: Designing for DISASSEMBLY and ADAPTABILITY, MATERIAL REUSE ON-SITE and/or RECYCLING should be maximised
B59: Circular Economy Design Approach | C59: Phase / Building / Area / Layer | D59: Strategic Response
B60: Building relocation
B61: Component or material reuse
B62: Adaptability
B63: Flexibility
B64: Replaceability
B65: Disassembly
B66: Longevity
B70: Circular Economy Design Principles
B71: Design Principle | E71: Phase / Building / Area / Layer | G71: Design Response
B72: Designing out waste | D72: Module A - Product Sourcing and Construction Stage
D73: Module B - In-Use Stage
D74: Module C - End-of-Life Stage
D75: Module D - Benefits and Loads Beyond the System Boundary
B76: Designing for longevity
B77: Designing for adaptability or flexibility
B78: Designing for disassembly
B79: Using systems, elements or materials that can be re-used and recycled
B82: Circular Economy Targets
B83: Circular economy targets for existing and new development | D83: Policy Requirement | E83: Target Aiming For (%) | F83: Policy Met?
B84: Demolition waste materials (non-hazardous) | D84: Minimum of 95% diverted from landfill for reuse, recycling or recovery. | F84: =IF(ISNUMBER(E84),IF(E84=95%,"Yes",IF(E84>95%,"Exceeds Policy","No")),"") -> 
B85: Excavation waste materials | D85: Minimum of 95% diverted from landfill for beneficial reuse. | F85: =IF(ISNUMBER(E85),IF(E85=95%,"Yes",IF(E85>95%,"Exceeds Policy","No")),"") -> 
B86: Construction waste materials | D86: Minimum of 95% diverted from landfill for reuse, recycling or recovery. | F86: =IF(ISNUMBER(E86),IF(E86=95%,"Yes",IF(E86>95%,"Exceeds Policy","No")),"") -> 
B87: Municipal waste | D87: Minimum 65% recycling rate by 2030. | F87: =IF(ISNUMBER(E87),IF(E87=65%,"Yes",IF(E87>65%,"Exceeds Policy","No")),"") -> 
B88: Recycled content | D88: Minimum 20% of the building material elements to be comprised of recycled or reused content. | F88: =IF(ISNUMBER(E88),IF(E88=20%,"Yes",IF(E88>20%,"Exceeds Policy","No")),"") -> 

Sheet Outline Application Stage
A4: Outline Application Stage - Circular Economy Statement
D6: Project Details
C7: Project name
C8: Planning application reference number (if applicable)
C9: Applicant
C10: London Borough
C11: Brief description of the project
C12: Author/s
C13: Date of assessment
C14: Number of Use Types
C15: Use Class / Type | D15: Floor Area by use type (m2)
C16: Use Class / Type 1 | D16: Use Class / Type 1 GIA
C17: Use Class / Type 2 | D17: Use Class / Type 2 GIA
C18: Use Class / Type 3 | D18: Use Class / Type 3 GIA
C19: Use Class / Type 4 | D19: Use Class / Type 4 GIA
C20: Use Class / Type 5 | D20: Use Class / Type 5 GIA
C21: Use Class / Type 6 | D21: Use Class / Type 6 GIA
C22: Use Class / Type 7 | D22: Use Class / Type 7 GIA
C23: Use Class / Type 8 | D23: Use Class / Type 8 GIA
C24: Use Class / Type 9 | D24: Use Class / Type 9 GIA
C25: Use Class / Type 10 | D25: Use Class / Type 10 GIA
C26: Use Class / Type 11 | D26: Use Class / Type 11 GIA
C27: Use Class / Type 12 | D27: Use Class / Type 12 GIA
C28: Use Class / Type 13 | D28: Use Class / Type 13 GIA
C29: Use Class / Type 14 | D29: Use Class / Type 14 GIA
C30: Use Class / Type 15 | D30: Use Class / Type 15 GIA
C31: Overall GIA (m2) | D31: =SUM(D16:D30) -> 0
B34: Circular Economy Design Approaches
B35: Circular Economy Design Approaches for Existing Structures / Buildings | D35: Applicant Response
B36: Is there an existing building on the site?
B37: Is it technically feasible to retain the building(s) in whole or in part?
B38: Are there any building materials or elements available on site that can be used?
B39: Is the existing building, or parts of the building, suited to the requirements for the site?
B40: Is it technically feasible to recover the 'residual value' of the buildings elements or materials?
B41: The preferred strategy is: | D41: NEW BUILDING
B42: The preferred strategy is: | D42: RETAIN and RETROFIT
B43: The preferred strategy is: | D43: PARTIAL RETENTION and REFURBISHMENT
B44: The preferred strategy is: | D44: DISASSEMBLE/DECONSTRUCT AND REUSE
B45: The preferred strategy is: | D45: DEMOLISH/DECONSTRUCT AND RECYCLE
B46: Circular Economy Design Approach | C46: Phase/Building/Area/Layer | D46: Strategic Response
B47: Retain and Retrofit
B48: Partial Retention and Refurbishment
B49: Disassemble and Reuse
B50: Demolish and Recycle
B51: Circular Economy Design Approaches for New Buildings, Infrastructure and Layers Over the Lifetime of the Development | D51: Applicant Response
B52: Is the whole building designed to have a short life on its current site? (e.g. less than 10 yrs)
B53: Is there likely to be a need for building of a similar size (etc.) in different locations in the future?
B54: Is it foreseeable that the building will need to change use/function within its design life?
B55: The preferred strategy is: | D55: Design for BUILDING RELOCATION
B56: The preferred strategy is: | D56: Design for COMPONENT / MATERIAL REUSE
B57: The preferred strategy is: | D57: Design for ADAPTABILITY
B58: All developments should apply the 6 Circular Economy principles, including: | D58: Designing for DISASSEMBLY and ADAPTABILITY, MATERIAL REUSE ON-SITE and/or RECYCLING should be maximised
B59: Circular Economy Design Approach | C59: Phase/Building/Area/Layer | D59: Strategic Response
B60: Building relocation
B61: Component or material reuse
B62: Adaptability
B63: Flexibility
B64: Replaceability
B65: Disassembly
B66: Longevity
B69: Circular Economy Design Principles by Building Layer
B70: The Circular Economy Design Principles by Building Layer table should consider where the Applicant seeks to go beyond standard practice. If there are multiple phases / buildings / areas with different measures / strategies, please specify these separately within the table below.
E71: Building Layer | M71: Summary | N71: Challenges | O71: Actions & Counter-Actions, Who and When | P71: Plan to Prove and Quantify
E72: Site | F72: Substructure | G72: Superstructure | H72: Shell/Skin | I72: Services | J72: Space | K72: Stuff | L72: Construction Stuff
B73: 1. Is it likely the layer (or components within it) will need to be moved or otherwise modified within 5-15 years, e.g. due to changing use patterns or user requirements? | E73: N/A | L73: N/A
B74: 2. Is it likely the layer (or components within it) will need to be changed, upgraded or replaced within 5-15 years, e.g. for improved performance, aesthetics | E74: N/A | L74: N/A
B75: The preferred strategy is: | E75: - | F75: =IF(F73="Yes","Design for FLEXIBILITY",IF(F74="Yes","Design for REPLACEABILITY",IF(AND(F73="No",F74="No"),"Design for ADAPTABILITY",""))) ->  | G75: =IF(G73="Yes","Design for FLEXIBILITY",IF(G74="Yes","Design for REPLACEABILITY",IF(AND(G73="No",G74="No"),"Design for ADAPTABILITY",""))) ->  | L75: -
B76: Design Principles | E76: All developments should apply the 6 circular economy principles, including designing for DISASSEMBLY and ADAPTABILITY, MATERIAL REUSE ON-SITE and/or RECYCLING should be maximised.
B77: Designing out waste | D77: Module A - Product Sourcing and Construction Stage
D78: Module B - In-Use Stage
D79: Module C - End-of-Life Stage
D80: Module D - Benefits and Loads Beyond the System Boundary
B81: Designing for longevity
B82: Designing for adaptability or flexibility
B83: Designing for disassembly
B84: Using systems, elements or materials that can be re-used and recycled
B87: Bill of Materials
B88: Please click the + symbol to the left hand side of the Bill of Materials table to view or hide the input rows for each Building Element Category. The rows for substructure and frame have been unhidden to highlight this. A fixed number of rows has been provided for each Building Element Category based on a sub-set of typical WLCA submissions. Should the number of rows provided not be sufficient to allow input of all materials for a given Building Element Category, Applicants should prioritise the inclusion of the materials with the highest quantity.
C89: BUILDING ELEMENT CATEGORY - LEVEL 1 (based on the RICS New Rules of Measurement (NRM) classification system level 2 sub-elements https://www.rics.org/globalassets/rics-website/media/products/data-products/bcis-construction/bcis-elemental-standard-form-cost-analysis-4th-nrm-edition-2012.pdf) | E89: PRODUCT AND CONSTRUCTION STAGE (MODULE A) | M89: USE STAGE (MODULE B) | R89: END OF LIFE STAGE (MODULE C) | W89: BENEFITS BEYOND THE SYSTEM BOUNDARY (MODULE D)
C90: Building Element Category | E90: Material Type | F90: Material quantity (Module A) (kg) | G90: Material intensity (Module A) (kg/m2 GIA) | H90: Performance Indicator (LPG Appendix 1) | I90: Construction Waste Factor (Module A) | J90: Construction Waste (Module A) (kg) | K90: Recycled Content by mass (kg) | L90: Recycled Content by value (%) | M90: Expected Lifespan (years) | N90: Number of Replacements (over assumed 60-year period) | O90: Repair and Replacement quantities of materials (Module B) (kg) | P90: Construction Waste Factor (Module B) | Q90: Construction Waste (Module B) (kg) | R90: Design for Disassembly | S90: Assumed End of Life Scenario (Description) | T90: % Reusing | U90: % Recycling | V90: % Landfill | W90: Estimated reusable materials (kg) | X90: Estimated reusable materials intensity (kg/m2 GIA) | Y90: Estimated recyclable materials (kg) | Z90: Estimated recyclable materials intensity (kg/m2 GIA)
B91: 0.1 | C91: Demolition: Toxic/Hazardous/Contaminated Material Treatment | E91: - | F91: =SUM(F92:F106) -> 0 | G91: =IF(AND(F91<>0,$D$31<>0),F91/$D$31,0) -> 0 | H91: - | I91: - | J91: =SUM(J92:J106) -> 0 | K91: - | L91: - | M91: - | N91: - | O91: =SUM(O92:O106) -> 0 | P91: - | Q91: =SUM(Q92:Q106) -> 0 | R91: - | S91: - | T91: =IF(W91<>0,W91/($F$91+$O$91),0) -> 0 | U91: =IF(Y91<>0,Y91/($F$91+$O$91),0) -> 0 | V91: =1-T91-U91 -> 1 | W91: =SUM(W92:W106) -> 0 | X91: =IF(AND(W91<>0,$D$31<>0),W91/$D$31,0) -> 0 | Y91: =SUM(Y92:Y106) -> 0 | Z91: =IF(AND(Y91<>0,$D$31<>0),Y91/$D$31,0) -> 0
B92: 0.1 | C92: Demolition: Toxic/Hazardous/Contaminated Material Treatment | G92: =IF(AND(F92<>0,$D$31<>0),F92/$D$31,0) -> 0 | H92: - | I92: 0 | J92: =F92*I92 -> 0 | N92: =IF(M92<>0,INT(59/M92),0) -> 0 | O92: =F92*N92 -> 0 | P92: 0 | Q92: =O92*P92 -> 0 | T92: 0 | U92: 0 | V92: =1-T92-U92 -> 1 | W92: =T92*(F92+O92) -> 0 | X92: =IF(AND(W92<>0,$D$31<>0),W92/$D$31,0) -> 0 | Y92: =U92*(F92+O92) -> 0 | Z92: =IF(AND(Y92<>0,$D$31<>0),Y92/$D$31,0) -> 0
G93: =IF(AND(F93<>0,$D$31<>0),F93/$D$31,0) -> 0 | H93: - | I93: 0 | J93: =F93*I93 -> 0 | N93: =IF(M93<>0,INT(59/M93),0) -> 0 | O93: =F93*N93 -> 0 | P93: 0 | Q93: =O93*P93 -> 0 | T93: 0 | U93: 0 | V93: =1-T93-U93 -> 1 | W93: =T93*(F93+O93) -> 0 | X93: =IF(AND(W93<>0,$D$31<>0),W93/$D$31,0) -> 0 | Y93: =U93*(F93+O93) -> 0 | Z93: 0
G94: 0 | H94: - | I94: 0 | J94: 0 | N94: 0 | O94: 0 | P94: 0 | Q94: 0 | T94: 0 | U94: 0 | V94: 1 | W94: 0 | X94: 0 | Y94: 0 | Z94: 0
G95: 0 | H95: - | I95: 0 | J95: 0 | N95: 0 | O95: 0 | P95: 0 | Q95: 0 | T95: 0 | U95: 0 | V95: 1 | W95: 0 | X95: 0 | Y95: 0 | Z95: 0
G96: 0 | H96: - | I96: 0 | J96: 0 | N96: 0 | O96: 0 | P96: 0 | Q96: 0 | T96: 0 | U96: 0 | V96: 1 | W96: 0 | X96: 0 | Y96: 0 | Z96: 0
G97: 0 | H97: - | I97: 0 | J97: 0 | N97: 0 | O97: 0 | P97: 0 | Q97: 0 | T97: 0 | U97: 0 | V97: 1 | W97: 0 | X97: 0 | Y97: 0 | Z97: 0
G98: 0 | H98: - | I98: 0 | J98: 0 | N98: 0 | O98: 0 | P98: 0 | Q98: 0 | T98: 0 | U98: 0 | V98: 1 | W98: 0 | X98: 0 | Y98: 0 | Z98: 0
G99: 0 | H99: - | I99: 0 | J99: 0 | N99: 0 | O99: 0 | P99: 0 | Q99: 0 | T99: 0 | U99: 0 | V99: 1 | W99: 0 | X99: 0 | Y99: 0 | Z99: 0
G100: 0 | H100: - | I100: 0 | J100: 0 | N100: 0 | O100: 0 | P100: 0 | Q100: 0 | T100: 0 | U100: 0 | V100: 1 | W100: 0 | X100: 0 | Y100: 0 | Z100: 0
G101: 0 | H101: - | I101: 0 | J101: 0 | N101: 0 | O101: 0 | P101: 0 | Q101: 0 | T101: 0 | U101: 0 | V101: 1 | W101: 0 | X101: 0 | Y101: 0 | Z101: 0
G102: 0 | H102: - | I102: 0 | J102: 0 | N102: 0 | O102: 0 | P102: 0 | Q102: 0 | T102: 0 | U102: 0 | V102: 1 | W102: 0 | X102: 0 | Y102: 0 | Z102: 0
G103: 0 | H103: - | I103: 0 | J103: 0 | N103: 0 | O103: 0 | P103: 0 | Q103: 0 | T103: 0 | U103: 0 | V103: 1 | W103: 0 | X103: 0 | Y103: 0 | Z103: 0
G104: 0 | H104: - | I104: 0 | J104: 0 | N104: 0 | O104: 0 | P104: 0 | Q104: 0 | T104: 0 | U104: 0 | V104: 1 | W104: 0 | X104: 0 | Y104: 0 | Z104: 0
G105: 0 | H105: - | I105: 0 | J105: 0 | N105: 0 | O105: 0 | P105: 0 | Q105: 0 | T105: 0 | U105: 0 | V105: 1 | W105: 0 | X105: 0 | Y105: 0 | Z105: 0
G106: 0 | H106: - | I106: 0 | J106: 0 | N106: 0 | O106: 0 | P106: 0 | Q106: 0 | T106: 0 | U106: 0 | V106: 1 | W106: 0 | X106: 0 | Y106: 0 | Z106: 0
B107: 0.2 | C107: Major Demolition Works | E107: - | F107: =SUM(F108:F122) -> 0 | G107: =IF(AND(F107<>0,$D$31<>0),F107/$D$31,0) -> 0 | H107: - | I107: - | J107: =SUM(J108:J122) -> 0 | K107: - | L107: - | M107: - | N107: - | O107: =SUM(O108:O122) -> 0 | P107: - | Q107: =SUM(Q108:Q122) -> 0 | R107: - | S107: - | T107: =IF(W107<>0,W107/($F$107+$O$107),0) -> 0 | U107: =IF(Y107<>0,Y107/($F$107+$O$107),0) -> 0 | V107: =1-T107-U107 -> 1 | W107: =SUM(W108:W122) -> 0 | X107: 0 | Y107: =SUM(Y108:Y122) -> 0 | Z107: 0
B108: 0.2 | C108: Major Demolition Works | G108: =IF(AND(F108<>0,$D$31<>0),F108/$D$31,0) -> 0 | H108: - | I108: 0 | J108: =I108*F108 -> 0 | N108: =IF(M108<>0,INT(59/M108),0) -> 0 | O108: =F108*N108 -> 0 | P108: 0 | Q108: =O108*P108 -> 0 | T108: 0 | U108: 0 | V108: 1 | W108: 0 | X108: 0 | Y108: 0 | Z108: 0
G109: =IF(AND(F109<>0,$D$31<>0),F109/$D$31,0) -> 0 | H109: - | I109: 0 | J109: 0 | N109: =IF(M109<>0,INT(59/M109),0) -> 0 | O109: =F109*N109 -> 0 | P109: 0 | Q109: =O109*P109 -> 0 | T109: 0 | U109: 0 | V109: 1 | W109: 0 | X109: 0 | Y109: 0 | Z109: 0
G110: =IF(AND(F110<>0,$D$31<>0),F110/$D$31,0) -> 0 | H110: - | I110: 0 | J110: 0 | N110: 0 | O110: 0 | P110: 0 | Q110: 0 | T110: 0 | U110: 0 | V110: 1 | W110: 0 | X110: 0 | Y110: 0 | Z110: 0
G111: 0 | H111: - | I111: 0 | J111: 0 | N111: 0 | O111: 0 | P111: 0 | Q111: 0 | T111: 0 | U111: 0 | V111: 1 | W111: 0 | X111: 0 | Y111: 0 | Z111: 0
G112: 0 | H112: - | I112: 0 | J112: 0 | N112: 0 | O112: 0 | P112: 0 | Q112: 0 | T112: 0 | U112: 0 | V112: 1 | W112: 0 | X112: 0 | Y112: 0 | Z112: 0
G113: 0 | H113: - | I113: 0 | J113: 0 | N113: 0 | O113: 0 | P113: 0 | Q113: 0 | T113: 0 | U113: 0 | V113: 1 | W113: 0 | X113: 0 | Y113: 0 | Z113: 0
G114: 0 | H114: - | I114: 0 | J114: 0 | N114: 0 | O114: 0 | P114: 0 | Q114: 0 | T114: 0 | U114: 0 | V114: 1 | W114: 0 | X114: 0 | Y114: 0 | Z114: 0
G115: 0 | H115: - | I115: 0 | J115: 0 | N115: 0 | O115: 0 | P115: 0 | Q115: 0 | T115: 0 | U115: 0 | V115: 1 | W115: 0 | X115: 0 | Y115: 0 | Z115: 0
G116: 0 | H116: - | I116: 0 | J116: 0 | N116: 0 | O116: 0 | P116: 0 | Q116: 0 | T116: 0 | U116: 0 | V116: 1 | W116: 0 | X116: 0 | Y116: 0 | Z116: 0
G117: 0 | H117: - | I117: 0 | J117: 0 | N117: 0 | O117: 0 | P117: 0 | Q117: 0 | T117: 0 | U117: 0 | V117: 1 | W117: 0 | X117: 0 | Y117: 0 | Z117: 0
G118: 0 | H118: - | I118: 0 | J118: 0 | N118: 0 | O118: 0 | P118: 0 | Q118: 0 | T118: 0 | U118: 0 | V118: 1 | W118: 0 | X118: 0 | Y118: 0 | Z118: 0
G119: 0 | H119: - | I119: 0 | J119: 0 | N119: 0 | O119: 0 | P119: 0 | Q119: 0 | T119: 0 | U119: 0 | V119: 1 | W119: 0 | X119: 0 | Y119: 0 | Z119: 0
G120: 0 | H120: - | I120: 0 | J120: 0 | N120: 0 | O120: 0 | P120: 0 | Q120: 0 | T120: 0 | U120: 0 | V120: 1 | W120: 0 | X120: 0 | Y120: 0 | Z120: 0
G121: 0 | H121: - | I121: 0 | J121: 0 | N121: 0 | O121: 0 | P121: 0 | Q121: 0 | T121: 0 | U121: 0 | V121: 1 | W121: 0 | X121: 0 | Y121: 0 | Z121: 0
G122: 0 | H122: - | I122: 0 | J122: 0 | N122: 0 | O122: 0 | P122: 0 | Q122: 0 | T122: 0 | U122: 0 | V122: 1 | W122: 0 | X122: 0 | Y122: 0 | Z122: 0
B123: 0.3 | C123: Temporary Support to Adjacent Structures | E123: - | F123: =SUM(F124:F138) -> 0 | G123: =IF(AND(F123<>0,$D$31<>0),F123/$D$31,0) -> 0 | H123: - | I123: - | J123: =SUM(J124:J138) -> 0 | K123: - | L123: - | M123: - | N123: - | O123: =SUM(O124:O138) -> 0 | P123: - | Q123: =SUM(Q124:Q138) -> 0 | R123: - | S123: - | T123: =IF(W123<>0,W123/($F$123+$O$123),0) -> 0 | U123: =IF(Y123<>0,Y123/($F$123+$O$123),0) -> 0 | V123: 1 | W123: =SUM(W124:W138) -> 0 | X123: 0 | Y123: =SUM(Y124:Y138) -> 0 | Z123: 0
B124: 0.3 | C124: Temporary Support to Adjacent Structures | G124: =IF(AND(F124<>0,$D$31<>0),F124/$D$31,0) -> 0 | H124: - | I124: 0 | J124: =I124*F124 -> 0 | N124: =IF(M124<>0,INT(59/M124),0) -> 0 | O124: =F124*N124 -> 0 | P124: 0 | Q124: =O124*P124 -> 0 | T124: 0 | U124: 0 | V124: 1 | W124: 0 | X124: 0 | Y124: 0 | Z124: 0
G125: =IF(AND(F125<>0,$D$31<>0),F125/$D$31,0) -> 0 | H125: - | I125: 0 | J125: 0 | N125: =IF(M125<>0,INT(59/M125),0) -> 0 | O125: =F125*N125 -> 0 | P125: 0 | Q125: =O125*P125 -> 0 | T125: 0 | U125: 0 | V125: 1 | W125: 0 | X125: 0 | Y125: 0 | Z125: 0
G126: =IF(AND(F126<>0,$D$31<>0),F126/$D$31,0) -> 0 | H126: - | I126: 0 | J126: 0 | N126: 0 | O126: 0 | P126: 0 | Q126: 0 | T126: 0 | U126: 0 | V126: 1 | W126: 0 | X126: 0 | Y126: 0 | Z126: 0
G127: 0 | H127: - | I127: 0 | J127: 0 | N127: 0 | O127: 0 | P127: 0 | Q127: 0 | T127: 0 | U127: 0 | V127: 1 | W127: 0 | X127: 0 | Y127: 0 | Z127: 0
G128: 0 | H128: - | I128: 0 | J128: 0 | N128: 0 | O128: 0 | P128: 0 | Q128: 0 | T128: 0 | U128: 0 | V128: 1 | W128: 0 | X128: 0 | Y128: 0 | Z128: 0
G129: 0 | H129: - | I129: 0 | J129: 0 | N129: 0 | O129: 0 | P129: 0 | Q129: 0 | T129: 0 | U129: 0 | V129: 1 | W129: 0 | X129: 0 | Y129: 0 | Z129: 0
G130: 0 | H130: - | I130: 0 | J130: 0 | N130: 0 | O130: 0 | P130: 0 | Q130: 0 | T130: 0 | U130: 0 | V130: 1 | W130: 0 | X130: 0 | Y130: 0 | Z130: 0
G131: 0 | H131: - | I131: 0 | J131: 0 | N131: 0 | O131: 0 | P131: 0 | Q131: 0 | T131: 0 | U131: 0 | V131: 1 | W131: 0 | X131: 0 | Y131: 0 | Z131: 0
G132: 0 | H132: - | I132: 0 | J132: 0 | N132: 0 | O132: 0 | P132: 0 | Q132: 0 | T132: 0 | U132: 0 | V132: 1 | W132: 0 | X132: 0 | Y132: 0 | Z132: 0
G133: 0 | H133: - | I133: 0 | J133: 0 | N133: 0 | O133: 0 | P133: 0 | Q133: 0 | T133: 0 | U133: 0 | V133: 1 | W133: 0 | X133: 0 | Y133: 0 | Z133: 0
G134: 0 | H134: - | I134: 0 | J134: 0 | N134: 0 | O134: 0 | P134: 0 | Q134: 0 | T134: 0 | U134: 0 | V134: 1 | W134: 0 | X134: 0 | Y134: 0 | Z134: 0
G135: 0 | H135: - | I135: 0 | J135: 0 | N135: 0 | O135: 0 | P135: 0 | Q135: 0 | T135: 0 | U135: 0 | V135: 1 | W135: 0 | X135: 0 | Y135: 0 | Z135: 0
G136: 0 | H136: - | I136: 0 | J136: 0 | N136: 0 | O136: 0 | P136: 0 | Q136: 0 | T136: 0 | U136: 0 | V136: 1 | W136: 0 | X136: 0 | Y136: 0 | Z136: 0
G137: 0 | H137: - | I137: 0 | J137: 0 | N137: 0 | O137: 0 | P137: 0 | Q137: 0 | T137: 0 | U137: 0 | V137: 1 | W137: 0 | X137: 0 | Y137: 0 | Z137: 0
G138: 0 | H138: - | I138: 0 | J138: 0 | N138: 0 | O138: 0 | P138: 0 | Q138: 0 | T138: 0 | U138: 0 | V138: 1 | W138: 0 | X138: 0 | Y138: 0 | Z138: 0
B139: 0.4 | C139: Specialist Ground Works | E139: - | F139: =SUM(F140:F154) -> 0 | G139: =IF(AND(F139<>0,$D$31<>0),F139/$D$31,0) -> 0 | H139: - | I139: - | J139: =SUM(J140:J154) -> 0 | K139: - | L139: - | M139: - | N139: - | O139: =SUM(O140:O154) -> 0 | P139: - | Q139: =SUM(Q140:Q154) -> 0 | R139: - | S139: - | T139: =IF(W139<>0,W139/($F$139+$O$139),0) -> 0 | U139: =IF(Y139<>0,Y139/($F$139+$O$139),0) -> 0 | V139: 1 | W139: =SUM(W140:W154) -> 0 | X139: 0 | Y139: =SUM(Y140:Y154) -> 0 | Z139: 0
B140: 0.4 | C140: Specialist Ground Works | G140: =IF(AND(F140<>0,$D$31<>0),F140/$D$31,0) -> 0 | H140: - | I140: 0 | J140: =I140*F140 -> 0 | N140: =IF(M140<>0,INT(59/M140),0) -> 0 | O140: =F140*N140 -> 0 | P140: 0 | Q140: =O140*P140 -> 0 | T140: 0 | U140: 0 | V140: 1 | W140: 0 | X140: 0 | Y140: 0 | Z140: 0
G141: =IF(AND(F141<>0,$D$31<>0),F141/$D$31,0) -> 0 | H141: - | I141: 0 | J141: 0 | N141: =IF(M141<>0,INT(59/M141),0) -> 0 | O141: =F141*N141 -> 0 | P141: 0 | Q141: =O141*P141 -> 0 | T141: 0 | U141: 0 | V141: 1 | W141: 0 | X141: 0 | Y141: 0 | Z141: 0
G142: =IF(AND(F142<>0,$D$31<>0),F142/$D$31,0) -> 0 | H142: - | I142: 0 | J142: 0 | N142: 0 | O142: 0 | P142: 0 | Q142: 0 | T142: 0 | U142: 0 | V142: 1 | W142: 0 | X142: 0 | Y142: 0 | Z142: 0
G143: 0 | H143: - | I143: 0 | J143: 0 | N143: 0 | O143: 0 | P143: 0 | Q143: 0 | T143: 0 | U143: 0 | V143: 1 | W143: 0 | X143: 0 | Y143: 0 | Z143: 0
G144: 0 | H144: - | I144: 0 | J144: 0 | N144: 0 | O144: 0 | P144: 0 | Q144: 0 | T144: 0 | U144: 0 | V144: 1 | W144: 0 | X144: 0 | Y144: 0 | Z144: 0
G145: 0 | H145: - | I145: 0 | J145: 0 | N145: 0 | O145: 0 | P145: 0 | Q145: 0 | T145: 0 | U145: 0 | V145: 1 | W145: 0 | X145: 0 | Y145: 0 | Z145: 0
G146: 0 | H146: - | I146: 0 | J146: 0 | N146: 0 | O146: 0 | P146: 0 | Q146: 0 | T146: 0 | U146: 0 | V146: 1 | W146: 0 | X146: 0 | Y146: 0 | Z146: 0
G147: 0 | H147: - | I147: 0 | J147: 0 | N147: 0 | O147: 0 | P147: 0 | Q147: 0 | T147: 0 | U147: 0 | V147: 1 | W147: 0 | X147: 0 | Y147: 0 | Z147: 0
G148: 0 | H148: - | I148: 0 | J148: 0 | N148: 0 | O148: 0 | P148: 0 | Q148: 0 | T148: 0 | U148: 0 | V148: 1 | W148: 0 | X148: 0 | Y148: 0 | Z148: 0
G149: 0 | H149: - | I149: 0 | J149: 0 | N149: 0 | O149: 0 | P149: 0 | Q149: 0 | T149: 0 | U149: 0 | V149: 1 | W149: 0 | X149: 0 | Y149: 0 | Z149: 0
G150: 0 | H150: - | I150: 0 | J150: 0 | N150: 0 | O150: 0 | P150: 0 | Q150: 0 | T150: 0 | U150: 0 | V150: 1 | W150: 0 | X150: 0 | Y150: 0 | Z150: 0
G151: 0 | H151: - | I151: 0 | J151: 0 | N151: 0 | O151: 0 | P151: 0 | Q151: 0 | T151: 0 | U151: 0 | V151: 1 | W151: 0 | X151: 0 | Y151: 0 | Z151: 0
G152: 0 | H152: - | I152: 0 | J152: 0 | N152: 0 | O152: 0 | P152: 0 | Q152: 0 | T152: 0 | U152: 0 | V152: 1 | W152: 0 | X152: 0 | Y152: 0 | Z152: 0
G153: 0 | H153: - | I153: 0 | J153: 0 | N153: 0 | O153: 0 | P153: 0 | Q153: 0 | T153: 0 | U153: 0 | V153: 1 | W153: 0 | X153: 0 | Y153: 0 | Z153: 0
G154: 0 | H154: - | I154: 0 | J154: 0 | N154: 0 | O154: 0 | P154: 0 | Q154: 0 | T154: 0 | U154: 0 | V154: 1 | W154: 0 | X154: 0 | Y154: 0 | Z154: 0
B155: 1 | C155: Substructure | E155: - | F155: =SUM(F156:F175) -> 0 | G155: =IF(AND(F155<>0,$D$31<>0),F155/$D$31,0) -> 0 | H155: =SUMPRODUCT((C91:D454="Substructure")*G91:G454) -> 0 | I155: - | J155: =SUM(J156:J175) -> 0 | K155: - | L155: - | M155: - | N155: - | O155: =SUM(O156:O175) -> 0 | P155: - | Q155: =SUM(Q156:Q175) -> 0 | R155: - | S155: - | T155: =IF(W155<>0,W155/($F$155+$O$155),0) -> 0 | U155: =IF(Y155<>0,Y155/($F$155+$O$155),0) -> 0 | V155: 1 | W155: =SUM(W156:W175) -> 0 | X155: 0 | Y155: =SUM(Y156:Y175) -> 0 | Z155: 0
B156: 1 | C156: Substructure | G156: =IF(AND(F156<>0,$D$31<>0),F156/$D$31,0) -> 0 | H156: - | I156: 0 | J156: =I156*F156 -> 0 | N156: =IF(M156<>0,INT(59/M156),0) -> 0 | O156: =F156*N156 -> 0 | P156: 0 | Q156: =O156*P156 -> 0 | T156: 0 | U156: 0 | V156: 1 | W156: =T156*(F156+O156) -> 0 | X156: 0 | Y156: =U156*(F156+O156) -> 0 | Z156: 0
G157: =IF(AND(F157<>0,$D$31<>0),F157/$D$31,0) -> 0 | H157: - | I157: 0 | J157: 0 | N157: =IF(M157<>0,INT(59/M157),0) -> 0 | O157: =F157*N157 -> 0 | P157: 0 | Q157: =O157*P157 -> 0 | T157: 0 | U157: 0 | V157: =1-T157-U157 -> 1 | W157: 0 | X157: =IF(AND(W157<>0,$D$31<>0),W157/$D$31,0) -> 0 | Y157: 0 | Z157: 0
G158: =IF(AND(F158<>0,$D$31<>0),F158/$D$31,0) -> 0 | H158: - | I158: 0 | J158: 0 | N158: 0 | O158: 0 | P158: 0 | Q158: 0 | T158: 0 | U158: 0 | V158: 1 | W158: 0 | X158: 0 | Y158: 0 | Z158: 0
G159: 0 | H159: - | I159: 0 | J159: 0 | N159: 0 | O159: 0 | P159: 0 | Q159: 0 | T159: 0 | U159: 0 | V159: 1 | W159: 0 | X159: 0 | Y159: 0 | Z159: 0
G160: 0 | H160: - | I160: 0 | J160: 0 | N160: 0 | O160: 0 | P160: 0 | Q160: 0 | T160: 0 | U160: 0 | V160: 1 | W160: 0 | X160: 0 | Y160: 0 | Z160: 0
G161: 0 | H161: - | I161: 0 | J161: 0 | N161: 0 | O161: 0 | P161: 0 | Q161: 0 | T161: 0 | U161: 0 | V161: 1 | W161: 0 | X161: 0 | Y161: 0 | Z161: 0
G162: 0 | H162: - | I162: 0 | J162: 0 | N162: 0 | O162: 0 | P162: 0 | Q162: 0 | T162: 0 | U162: 0 | V162: 1 | W162: 0 | X162: 0 | Y162: 0 | Z162: 0
G163: 0 | H163: - | I163: 0 | J163: 0 | N163: 0 | O163: 0 | P163: 0 | Q163: 0 | T163: 0 | U163: 0 | V163: 1 | W163: 0 | X163: 0 | Y163: 0 | Z163: 0
G164: 0 | H164: - | I164: 0 | J164: 0 | N164: 0 | O164: 0 | P164: 0 | Q164: 0 | T164: 0 | U164: 0 | V164: 1 | W164: 0 | X164: 0 | Y164: 0 | Z164: 0
G165: 0 | H165: - | I165: 0 | J165: 0 | N165: 0 | O165: 0 | P165: 0 | Q165: 0 | T165: 0 | U165: 0 | V165: 1 | W165: 0 | X165: 0 | Y165: 0 | Z165: 0
G166: 0 | H166: - | I166: 0 | J166: 0 | N166: 0 | O166: 0 | P166: 0 | Q166: 0 | T166: 0 | U166: 0 | V166: 1 | W166: 0 | X166: 0 | Y166: 0 | Z166: 0
G167: 0 | H167: - | I167: 0 | J167: 0 | N167: 0 | O167: 0 | P167: 0 | Q167: 0 | T167: 0 | U167: 0 | V167: 1 | W167: 0 | X167: 0 | Y167: 0 | Z167: 0
G168: 0 | H168: - | I168: 0 | J168: 0 | N168: 0 | O168: 0 | P168: 0 | Q168: 0 | T168: 0 | U168: 0 | V168: 1 | W168: 0 | X168: 0 | Y168: 0 | Z168: 0
G169: 0 | H169: - | I169: 0 | J169: 0 | N169: 0 | O169: 0 | P169: 0 | Q169: 0 | T169: 0 | U169: 0 | V169: 1 | W169: 0 | X169: 0 | Y169: 0 | Z169: 0
G170: =IF(AND(F170<>0,$D$31<>0),F170/$D$31,0) -> 0 | H170: - | I170: 0 | J170: 0 | N170: 0 | O170: 0 | P170: 0 | Q170: 0 | T170: 0 | U170: 0 | V170: 1 | W170: 0 | X170: 0 | Y170: 0 | Z170: 0
G171: =IF(AND(F171<>0,$D$31<>0),F171/$D$31,0) -> 0 | H171: - | I171: 0 | J171: 0 | N171: 0 | O171: 0 | P171: 0 | Q171: 0 | T171: 0 | U171: 0 | V171: 1 | W171: 0 | X171: 0 | Y171: 0 | Z171: 0
G172: =IF(AND(F172<>0,$D$31<>0),F172/$D$31,0) -> 0 | H172: - | I172: 0 | J172: 0 | N172: 0 | O172: 0 | P172: 0 | Q172: 0 | T172: 0 | U172: 0 | V172: 1 | W172: 0 | X172: 0 | Y172: 0 | Z172: 0
G173: 0 | H173: - | I173: 0 | J173: 0 | N173: 0 | O173: 0 | P173: 0 | Q173: 0 | T173: 0 | U173: 0 | V173: 1 | W173: 0 | X173: 0 | Y173: 0 | Z173: 0
G174: 0 | H174: - | I174: 0 | J174: 0 | N174: 0 | O174: 0 | P174: 0 | Q174: 0 | T174: 0 | U174: 0 | V174: 1 | W174: 0 | X174: 0 | Y174: 0 | Z174: 0
G175: =IF(AND(F175<>0,$D$31<>0),F175/$D$31,0) -> 0 | H175: - | I175: 0 | J175: 0 | N175: =IF(M175<>0,INT(59/M175),0) -> 0 | O175: 0 | P175: 0 | Q175: 0 | T175: 0 | U175: 0 | V175: 1 | W175: 0 | X175: 0 | Y175: 0 | Z175: 0
B176: 2.1 | C176: Superstructure: Frame | E176: - | F176: =SUM(F177:F196) -> 0 | G176: =IF(AND(F176<>0,$D$31<>0),F176/$D$31,0) -> 0 | H176: =SUMPRODUCT((C91:D454="Superstructure: Frame")*G91:G454) -> 0 | I176: - | J176: =SUM(J177:J196) -> 0 | K176: - | L176: - | M176: - | N176: - | O176: =SUM(O177:O196) -> 0 | P176: - | Q176: =SUM(Q177:Q196) -> 0 | R176: - | S176: - | T176: =IF(W176<>0,W176/($F$176+$O$176),0) -> 0 | U176: =IF(Y176<>0,Y176/($F$176+$O$176),0) -> 0 | V176: 1 | W176: =SUM(W177:W196) -> 0 | X176: 0 | Y176: =SUM(Y177:Y196) -> 0 | Z176: 0
B177: 2.1 | C177: Superstructure: Frame | G177: =IF(AND(F177<>0,$D$31<>0),F177/$D$31,0) -> 0 | H177: - | I177: 0 | J177: =I177*F177 -> 0 | N177: =IF(M177<>0,INT(59/M177),0) -> 0 | O177: =F177*N177 -> 0 | P177: 0 | Q177: =O177*P177 -> 0 | T177: 0 | U177: 0 | V177: 1 | W177: =T177*(F177+O177) -> 0 | X177: 0 | Y177: =U177*(F177+O177) -> 0 | Z177: 0
G178: =IF(AND(F178<>0,$D$31<>0),F178/$D$31,0) -> 0 | H178: - | I178: 0 | J178: 0 | N178: =IF(M178<>0,INT(59/M178),0) -> 0 | O178: =F178*N178 -> 0 | P178: 0 | Q178: =O178*P178 -> 0 | T178: 0 | U178: 0 | V178: 1 | W178: 0 | X178: 0 | Y178: 0 | Z178: 0
G179: =IF(AND(F179<>0,$D$31<>0),F179/$D$31,0) -> 0 | H179: - | I179: 0 | J179: 0 | N179: 0 | O179: 0 | P179: 0 | Q179: 0 | T179: 0 | U179: 0 | V179: 1 | W179: 0 | X179: 0 | Y179: 0 | Z179: 0
G180: 0 | H180: - | I180: 0 | J180: 0 | N180: 0 | O180: 0 | P180: 0 | Q180: 0 | T180: 0 | U180: 0 | V180: 1 | W180: 0 | X180: 0 | Y180: 0 | Z180: 0
G181: 0 | H181: - | I181: 0 | J181: 0 | N181: 0 | O181: 0 | P181: 0 | Q181: 0 | T181: 0 | U181: 0 | V181: 1 | W181: 0 | X181: 0 | Y181: 0 | Z181: 0
G182: 0 | H182: - | I182: 0 | J182: 0 | N182: 0 | O182: 0 | P182: 0 | Q182: 0 | T182: 0 | U182: 0 | V182: 1 | W182: 0 | X182: 0 | Y182: 0 | Z182: 0
G183: 0 | H183: - | I183: 0 | J183: 0 | N183: 0 | O183: 0 | P183: 0 | Q183: 0 | T183: 0 | U183: 0 | V183: 1 | W183: 0 | X183: 0 | Y183: 0 | Z183: 0
G184: 0 | H184: - | I184: 0 | J184: 0 | N184: 0 | O184: 0 | P184: 0 | Q184: 0 | T184: 0 | U184: 0 | V184: 1 | W184: 0 | X184: 0 | Y184: 0 | Z184: 0
G185: 0 | H185: - | I185: 0 | J185: 0 | N185: 0 | O185: 0 | P185: 0 | Q185: 0 | T185: 0 | U185: 0 | V185: 1 | W185: 0 | X185: 0 | Y185: 0 | Z185: 0
G186: 0 | H186: - | I186: 0 | J186: 0 | N186: 0 | O186: 0 | P186: 0 | Q186: 0 | T186: 0 | U186: 0 | V186: 1 | W186: 0 | X186: 0 | Y186: 0 | Z186: 0
G187: 0 | H187: - | I187: 0 | J187: 0 | N187: 0 | O187: 0 | P187: 0 | Q187: 0 | T187: 0 | U187: 0 | V187: 1 | W187: 0 | X187: 0 | Y187: 0 | Z187: 0
G188: 0 | H188: - | I188: 0 | J188: 0 | N188: 0 | O188: 0 | P188: 0 | Q188: 0 | T188: 0 | U188: 0 | V188: 1 | W188: 0 | X188: 0 | Y188: 0 | Z188: 0
G189: 0 | H189: - | I189: 0 | J189: 0 | N189: 0 | O189: 0 | P189: 0 | Q189: 0 | T189: 0 | U189: 0 | V189: 1 | W189: 0 | X189: 0 | Y189: 0 | Z189: 0
G190: 0 | H190: - | I190: 0 | J190: 0 | N190: 0 | O190: 0 | P190: 0 | Q190: 0 | T190: 0 | U190: 0 | V190: 1 | W190: 0 | X190: 0 | Y190: 0 | Z190: 0
G191: =IF(AND(F191<>0,$D$31<>0),F191/$D$31,0) -> 0 | H191: - | I191: 0 | J191: 0 | N191: 0 | O191: 0 | P191: 0 | Q191: 0 | T191: 0 | U191: 0 | V191: 1 | W191: 0 | X191: 0 | Y191: 0 | Z191: 0
G192: =IF(AND(F192<>0,$D$31<>0),F192/$D$31,0) -> 0 | H192: - | I192: 0 | J192: 0 | N192: 0 | O192: 0 | P192: 0 | Q192: 0 | T192: 0 | U192: 0 | V192: 1 | W192: 0 | X192: 0 | Y192: 0 | Z192: 0
G193: =IF(AND(F193<>0,$D$31<>0),F193/$D$31,0) -> 0 | H193: - | I193: 0 | J193: 0 | N193: 0 | O193: 0 | P193: 0 | Q193: 0 | T193: 0 | U193: 0 | V193: 1 | W193: 0 | X193: 0 | Y193: 0 | Z193: 0
G194: =IF(AND(F194<>0,$D$31<>0),F194/$D$31,0) -> 0 | H194: - | I194: 0 | J194: 0 | N194: 0 | O194: 0 | P194: 0 | Q194: 0 | T194: 0 | U194: 0 | V194: 1 | W194: 0 | X194: 0 | Y194: 0 | Z194: 0
G195: 0 | H195: - | I195: 0 | J195: 0 | N195: 0 | O195: 0 | P195: 0 | Q195: 0 | T195: 0 | U195: 0 | V195: 1 | W195: 0 | X195: 0 | Y195: 0 | Z195: 0
G196: 0 | H196: - | I196: 0 | J196: 0 | N196: 0 | O196: 0 | P196: 0 | Q196: 0 | T196: 0 | U196: 0 | V196: 1 | W196: 0 | X196: 0 | Y196: 0 | Z196: 0
B197: 2.2 | C197: Superstructure: Upper Floors | E197: - | F197: =SUM(F198:F217) -> 0 | G197: =IF(AND(F197<>0,$D$31<>0),F197/$D$31,0) -> 0 | H197: =SUMPRODUCT((C176:D459="Superstructure: Upper Floors")*G176:G459) -> 0 | I197: - | J197: =SUM(J198:J217) -> 0 | K197: - | L197: - | M197: - | N197: - | O197: =SUM(O198:O217) -> 0 | P197: - | Q197: =SUM(Q198:Q217) -> 0 | R197: - | S197: - | T197: =IF(W197<>0,W197/($F$197+$O$197),0) -> 0 | U197: =IF(Y197<>0,Y197/($F$197+$O$197),0) -> 0 | V197: 1 | W197: =SUM(W198:W217) -> 0 | X197: 0 | Y197: =SUM(Y198:Y217) -> 0 | Z197: 0
B198: 2.2 | C198: Superstructure: Upper Floors | G198: =IF(AND(F198<>0,$D$31<>0),F198/$D$31,0) -> 0 | H198: - | I198: 0 | J198: =I198*F198 -> 0 | N198: =IF(M198<>0,INT(59/M198),0) -> 0 | O198: =F198*N198 -> 0 | P198: 0 | Q198: =O198*P198 -> 0 | T198: 0 | U198: 0 | V198: 1 | W198: =T198*(F198+O198) -> 0 | X198: 0 | Y198: =U198*(F198+O198) -> 0 | Z198: 0
G199: =IF(AND(F199<>0,$D$31<>0),F199/$D$31,0) -> 0 | H199: - | I199: 0 | J199: 0 | N199: =IF(M199<>0,INT(59/M199),0) -> 0 | O199: =F199*N199 -> 0 | P199: 0 | Q199: =O199*P199 -> 0 | T199: 0 | U199: 0 | V199: 1 | W199: 0 | X199: 0 | Y199: 0 | Z199: 0
G200: =IF(AND(F200<>0,$D$31<>0),F200/$D$31,0) -> 0 | H200: - | I200: 0 | J200: 0 | N200: 0 | O200: 0 | P200: 0 | Q200: 0 | T200: 0 | U200: 0 | V200: 1 | W200: 0 | X200: 0 | Y200: 0 | Z200: 0
G201: 0 | H201: - | I201: 0 | J201: 0 | N201: 0 | O201: 0 | P201: 0 | Q201: 0 | T201: 0 | U201: 0 | V201: 1 | W201: 0 | X201: 0 | Y201: 0 | Z201: 0
G202: 0 | H202: - | I202: 0 | J202: 0 | N202: 0 | O202: 0 | P202: 0 | Q202: 0 | T202: 0 | U202: 0 | V202: 1 | W202: 0 | X202: 0 | Y202: 0 | Z202: 0
G203: 0 | H203: - | I203: 0 | J203: 0 | N203: 0 | O203: 0 | P203: 0 | Q203: 0 | T203: 0 | U203: 0 | V203: 1 | W203: 0 | X203: 0 | Y203: 0 | Z203: 0
G204: 0 | H204: - | I204: 0 | J204: 0 | N204: 0 | O204: 0 | P204: 0 | Q204: 0 | T204: 0 | U204: 0 | V204: 1 | W204: 0 | X204: 0 | Y204: 0 | Z204: 0
G205: 0 | H205: - | I205: 0 | J205: 0 | N205: 0 | O205: 0 | P205: 0 | Q205: 0 | T205: 0 | U205: 0 | V205: 1 | W205: 0 | X205: 0 | Y205: 0 | Z205: 0
G206: 0 | H206: - | I206: 0 | J206: 0 | N206: 0 | O206: 0 | P206: 0 | Q206: 0 | T206: 0 | U206: 0 | V206: 1 | W206: 0 | X206: 0 | Y206: 0 | Z206: 0
G207: 0 | H207: - | I207: 0 | J207: 0 | N207: 0 | O207: 0 | P207: 0 | Q207: 0 | T207: 0 | U207: 0 | V207: 1 | W207: 0 | X207: 0 | Y207: 0 | Z207: 0
G208: 0 | H208: - | I208: 0 | J208: 0 | N208: 0 | O208: 0 | P208: 0 | Q208: 0 | T208: 0 | U208: 0 | V208: 1 | W208: 0 | X208: 0 | Y208: 0 | Z208: 0
G209: 0 | H209: - | I209: 0 | J209: 0 | N209: 0 | O209: 0 | P209: 0 | Q209: 0 | T209: 0 | U209: 0 | V209: 1 | W209: 0 | X209: 0 | Y209: 0 | Z209: 0
G210: 0 | H210: - | I210: 0 | J210: 0 | N210: 0 | O210: 0 | P210: 0 | Q210: 0 | T210: 0 | U210: 0 | V210: 1 | W210: 0 | X210: 0 | Y210: 0 | Z210: 0
... 272 more rows

Sheet Detailed Application Stage
A4: Detailed Application Stage - Circular Economy Statement
D6: Project Details
C7: Project name | D7: Hillingdon Water Sports Facility and Activity Centre - Broadwater Lake
C8: Planning application reference number (if applicable)
C9: Applicant
C10: London Borough | D10: London Borough of Hillingdon
C11: Brief description of the project | D11: Water sports facility comprised of several buildings on site including the Main Building acting as a primarily social area, Boat Shed, Workshop, Activity Centres etc
C12: Author/s | D12: Syntegra Group
C13: Date of assessment | D13: 14/11/2023
C14: Number of Use Types | D14: 1
C15: Use Class / Type | D15: Floor Area by use type (m2)
C16: Use Class / Type 1 | D16: 4273
C17: Use Class / Type 2 | D17: Use Class / Type 2 GIA
C18: Use Class / Type 3 | D18: Use Class / Type 3 GIA
C19: Use Class / Type 4 | D19: Use Class / Type 4 GIA
C20: Use Class / Type 5 | D20: Use Class / Type 5 GIA
C21: Use Class / Type 6 | D21: Use Class / Type 6 GIA
C22: Use Class / Type 7 | D22: Use Class / Type 7 GIA
C23: Use Class / Type 8 | D23: Use Class / Type 8 GIA
C24: Use Class / Type 9 | D24: Use Class / Type 9 GIA
C25: Use Class / Type 10 | D25: Use Class / Type 10 GIA
C26: Use Class / Type 11 | D26: Use Class / Type 11 GIA
C27: Use Class / Type 12 | D27: Use Class / Type 12 GIA
C28: Use Class / Type 13 | D28: Use Class / Type 13 GIA
C29: Use Class / Type 14 | D29: Use Class / Type 14 GIA
C30: Use Class / Type 15 | D30: Use Class / Type 15 GIA
C31: Overall GIA (m2) | D31: =SUM(D16:D30) -> 4273
B34: Circular Economy Design Approaches
B35: Circular Economy Design Approaches for Existing Structures / Buildings | D35: Applicant Response
B36: Is there an existing building on the site? | D36: Yes
B37: Is it technically feasible to retain the building(s) in whole or in part? | D37: No
B38: Are there any building materials or elements available on site that can be used?
B39: Is the existing building, or parts of the building, suited to the requirements for the site?
B40: Is it technically feasible to recover the 'residual value' of the buildings elements or materials? | D40: Yes
B41: The preferred strategy is: | D41: NEW BUILDING
B42: The preferred strategy is: | D42: RETAIN and RETROFIT
B43: The preferred strategy is: | D43: PARTIAL RETENTION and REFURBISHMENT
B44: The preferred strategy is: | D44: DISASSEMBLE/DECONSTRUCT AND REUSE
B45: The preferred strategy is: | D45: DEMOLISH/DECONSTRUCT AND RECYCLE
B46: Circular Economy Design Approach | C46: Phase/Building/Area/Layer | D46: Strategic Response
B47: Retain and Retrofit | C47: All | D47: To serve the variety of uses, the existing structures are insufficient in size and number. The concrete structures on site are either not fit for re-use or are in a condition which would be unfeasible to re-use and retrofit in any capacity. Only a demolish and recycle strategy is feasible. The existing French Barn/ BSC clubhouse is insufficient size or capacity to be retained and retrofitted. Its intended use is being replaced by the multi storey Main Building. Furthermore, the frame is structurally infeasible to adding many more floors without conducting additional modification of existing superstructure/ substructure. To undertakes these works and to build the additional building needed causes redundant embodied carbon into the project. Demolish and reuse of the materials is the most efficient strategy.
B48: Partial Retention and Refurbishment | C48: All | D48: To serve the variety of uses, the existing structures are insufficient in size and number. The concrete structures on site are either not fit for re-use or are in a condition which would be unfeasible to re-use and retrofit in any capacity. Only a demolish and recycle strategy is feasible. The existing French Barn/ BSC clubhouse is insufficient size or capacity to be retained and retrofitted. Its intended use is being replaced by the multi storey Main Building. Furthermore, the frame is structurally infeasible to adding many more floors without conducting additional modification of existing superstructure/ substructure. To undertakes these works and to build the additional building needed causes redundant embodied carbon into the project. Demolish and reuse of the materials is the most efficient strategy. Only a new building strategy can ensure any building complies with the latest Part B fire regulations
B49: Disassemble and Reuse | C49: All | D49: Prioritising on-site reuse, then donations to reuse marketplaces. Good practice measures can be taken in the demolition to ensure maximum recovery of materials through recycling. All elements from the deconstruction phase that cannot be reused on site can be sent to organisations for onward use wherever feasible. Condition of materials make re-use not feasible. Crushed to aggregate more reliable use. See demolition audit The existing French Barn will be dismantled and reused, as much as possible. As it is only a simple timber frame open air structure the disassembly is the easiest option as the timber is readily re-usable for construction material.
B50: Demolish and Recycle | C50: All | D50: A demolition audit undertaken and materials will be selectively separated for processing and recycling into new elements, materials and objects offsite. 95+% reuse/recycling/recovery of non-contaminated demolition waste reused or recycled onsite or offsite. A demolition audit will be undertaken and when not re-usable on site materials will be selectively separated for processing and recycling into new elements, materials and objects offsite. Reuse and repurpose will be prioritized and for concrete/masonry/asphalt, (excepting rubble contaminated with asbestos) will be crushed for aggregate.
B51: Circular Economy Design Approaches for New Buildings, Infrastructure and Layers Over the Lifetime of the Development | D51: Applicant Response
B52: Is the whole building designed to have a short life on its current site? (e.g. less than 10 yrs) | D52: No
B53: Is there likely to be a need for building of a similar size (etc.) in different locations in the future?
B54: Is it foreseeable that the building will need to change use/function within its design life? | D54: No
B55: The preferred strategy is: | D55: Design for BUILDING RELOCATION
B56: The preferred strategy is: | D56: Design for COMPONENT / MATERIAL REUSE
B57: The preferred strategy is: | D57: Design for ADAPTABILITY
B58: All developments should apply the 6 Circular Economy principles, including: | D58: Designing for DISASSEMBLY and ADAPTABILITY, MATERIAL REUSE ON-SITE and/or RECYCLING should be maximised
B59: Circular Economy Design Approach | C59: Phase/Building/Area/Layer | D59: Strategic Response
B60: Building relocation | C60: All | D60: An end of life deconstruction plan will be completed at a later stage of design when material information is more advanced and will plan for the end of life of the building including checking, cleaning or repairing materials so that they can be used again for their original purpose offsite With the intended purpose of the building, the location is an ideal place. The new building has not been designed to be relocated and there is no plan for this Proposed Development to be moved.
B61: Component or material reuse | C61: All | D61: Preparation will be made for the new materials for reuse involves checking, cleaning or repairing materials so that they can be used again for their original purpose. Materials will be selected with a priority to be reused as a whole at EOL; redeployed as modules; or reused as a kit of parts on one or more different sites. Building materials chosen in new build are highly recyclable. See WLCA end of life scenarios. At the buildings EOL the concrete in the floor slabs and foundations can be crushed, screened, and graded for suitable re-use in various applications such as fill materials, backfilling to retaining structures etc. In addition, the façade will be reviewed with regard to extracting materials at end of life for recycling and reuse, in particular, any metal componentry or sheets. Steelwork can be recycled at the end of its life and reused in other buildings. Formwork is anticipated to be reused for different structures. Construction techniques implemented to maximise demount-ability and reuse. Re-used or recycled material to be chosen, achieving at least 20% of material by value of material An end of life deconstruction plan will be completed at a later stage of design when material information is more advanced and will plan for the end of life of the building including checking, cleaning or repairing materials so that they can be used again for their original purpose offsite.
B62: Adaptability | C62: All | D62: The small buildings are not a bespoke design, so that it can be adaptable to tenants needs as they evolve over time. This makes the space adaptable to future tenants or future change of tenants and use. Major refurbishment for this building is considered feasible. All finishes as well as any equipment used could be removed since no permanent equipment is installed. Extra space has been provided for future changes in plant. Specification of services to allow for future expansion e.g. facilities for additional connections on distribution boards. The open Activity Shelter is open elements with only 2 walls. This allows for multi options for adaption.
B63: Flexibility | C63: All | D63: All the buildings been designed to allow easy rearrangement of its internal fit-out and arrangement to suit the changing needs of occupants or change of use. Aside from the Water sports Main Building, the buildings are open plan with limited internal walls, allowing for flexibility for change of use. The Main building usable space is multi purpose open plan on the ground floor and partially multi purpose on the first floor. it is adaptable to accommodate different uses such as open-plan and cellular office layouts, or any combination thereof. The central core is regularised throughout the floors to maximise overall building efficiencies. The accommodation rooms and toilet cubicles allow can have a change of use or internal wall re-arrangement to suite a change of use. It seems structural infeasible to adding many more floors without conducting additional modification of existing superstructure/ substructure. If the building were extended over the central portion (inboard of the sloped façade) then it may be possible that another floor could be added without needing to strengthen. Further redundancy for future height increase has not been considered as this add possibly redundant embodied carbon into the project. Due to the location, the main options for flexibility in the building use is a change of use to serve a different facility of the same Water Sports Centre.
B64: Replaceability | C64: All | D64: Materials such as plasterboards, furniture, lighting, floor finishes (e.g. carpets, etc.) with a planned short life span will be prioritised to be selected with manufacturers with take back schemes or that are procured through a service agreement. The layered design of the building has ensured that it enables independent layers to be upgraded and replaced. The plant replacement strategy is such that normal periodic plant maintenance activities and minor equipment replacement can be carried out using normal access routes such as the lifts and staircases.
B65: Disassembly | C65: All | D65: An end-of-life deconstruction plan will be developed to address this strategy directly and in depth. A disassembly guide will be developed to address techniques for prolonging the life of the building and reducing operational construction, demolition and excavation waste. Disassembly is facilitated with the access space in the building to replace components. Layer independence design will be adopted which helps with removal, adjustment or replacement of some elements Numbers of fasteners and connectors will be minimized to increase speed of disassembly. Joints and connectors will be designed to withstand repeated assembly and disassembly to allow for adaptation and for the connectors to be reused. Other measures to maximize disassembly include: Carpet tiles Material choice avoids poured and welded connections which are likely to harm components and prevent disassembly. bolted connections commitment Structurally, the Main building can potentially be vertically or horizontally extended with more floors added in the future Use a standard structural grid to allow for standard sizes of recoverable materials The new workshops, sheds and shelter buildings are simple small structures with uniform shapes. This allows for repetitive constructions and thus deconstruction strategies.
B66: Longevity | C66: All | D66: Longevity to be key when selection of structure and skin and, to a lesser extent, services, space and stuff (although other factors may dominate here) Structure to be designed to last >60yrs. Prioritising bolted connections over welded connections without incurring material inefficiency. See Bill of Materials for reference to lifespan of materials. Extended life materials will be selected. Materials will be selected to meet long-term needs, be robust, durable and resilient to climate change. The new construction will be designed to avoid a premature end of life for all components through considering maintenance and durability. Services designed to be efficient and long service life.
B69: Circular Economy Design Principles by Building Layer
B70: The Circular Economy Design Principles by Building Layer table should consider where the Applicant seeks to go beyond standard practice. If there are multiple phases / buildings / areas with different measures / strategies, please specify these separately within the table below.
E71: Building Layer | M71: Summary | N71: Challenges | O71: Actions & Counter-Actions, Who and When | P71: Plan to Prove and Quantify
E72: Site | F72: Substructure | G72: Superstructure | H72: Shell/Skin | I72: Services | J72: Space | K72: Stuff | L72: Construction Stuff
B73: Is it likely the layer (or components within it) will need to be moved or otherwise modified within 5-15 years, e.g. due to changing use patterns or user requirements? | E73: N/A | F73: No | G73: No | H73: No | I73: No | J73: No | K73: No | L73: N/A
B74: Is it likely the layer (or components within it) will need to be changed, upgraded or replaced within 5-15 years, e.g. for improved performance, aesthetics | E74: N/A | F74: No | G74: No | H74: No | I74: No | J74: No | K74: No | L74: N/A
B75: The preferred strategy is: | E75: - | F75: =IF(F73="Yes","Design for FLEXIBILITY",IF(F74="Yes","Design for REPLACEABILITY",IF(AND(F73="No",F74="No"),"Design for ADAPTABILITY",""))) -> Design for ADAPTABILITY | G75: =IF(G73="Yes","Design for FLEXIBILITY",IF(G74="Yes","Design for REPLACEABILITY",IF(AND(G73="No",G74="No"),"Design for ADAPTABILITY",""))) -> Design for ADAPTABILITY | H75: Design for ADAPTABILITY | I75: Design for ADAPTABILITY | J75: Design for ADAPTABILITY | K75: Design for ADAPTABILITY | L75: -
B76: Design Principles | E76: All developments should apply the 6 circular economy principles, including designing for DISASSEMBLY and ADAPTABILITY, MATERIAL REUSE ON-SITE and/or RECYCLING should be maximised.
B77: Designing out waste | D77: Module A - Product Sourcing and Construction Stage | E77: Source materials locally where possible to reduce the transportation distances and fuel usage. Track the incoming and outgoing transportation. The development is situated on land which has been previously occupied. The masterplan arrangement looks to optimise the use of the site for maximising the amount of land whilst proposing high quality spaces that are appropriate for the immediate setting. Engineered fill up to 100% recycled content. Efficient use of the land through utilising the same plot whilst increasing the density. | F77: Structural optimisation of substructure to reduce size and concrete. The sub- structure design is efficient and will aim to maximise the volume of recycled content and cement replacement. high recycled content in concrete (30%+). Reduce raw materials via use of high recycled content binders in the concrete and other recycled aggregate. 60+% recycled content in steel. See WLCA Optimise piling specifications for low embodied environmental impact and low waste(e.g., incorporating recycled material) and durability Use demolished material (crush masonry/concrete/asphalt) as aggregate Earth friendly concrete in all hard landscaping with 30+% cement replacement A Pre-demolition Audit for the Proposed Development has been undertaken to help identify opportunities for reuse, recycling or recovery, disposal and opportunities for reuse both on site & off-site. | G77: Structural optimisation of substructure to reduce size and concrete. The sub- structure design is efficient and will aim to maximise the volume of recycled content and cement replacement. high recycled content in concrete (30%+). Reduce raw materials via use of high recycled content binders in the concrete and other recycled aggregate. 60+% recycled content in steel. See WLCA Refer to 'Energy Strategy Report’ for full details of aspects of reducing resource use. For example, lower U values in superstructure and selection of water efficient fittings. Endeavour to source materials with responsible sourcing certifications (Iso 14001/BES 6001) and EPD certification (via WLC assessment) Produce, monitor and report a Resource Management Plan to track the demolition, excavation, and municipal waste produced from the site works. Pre-cast concrete elements specified. Lightweight concrete will be an specified where feasible. Any specified materials across the Proposed Development should meet the following requirements where possible: responsible sourcing certificates, Environmental Product Declarations (EPD) and low emitting materials. All timber, specified will be reused/recycled onsite or sourced from schemes supported by the Central Point of Expertise for Timber Procurement such as Forest Stewardship Council (FSC) accreditation. A Pre-demolition Audit for the Proposed Development has been undertaken to help identify opportunities for reuse, recycling or recovery, disposal and opportunities for reuse both on site & off-site. On average, at least 20% of new materials used on-site should contain reused/recycled content. The responsible sourcing of materials will be a key consideration in the selection of suppliers and a Sustainable Procurement Plan should be produced for the Proposed Development prior to construction. Materials from suppliers who participate in responsible sourcing schemes such as the BRE BES 6001:2008 Responsible Sourcing Standard should be prioritised. | H77: Provide all the sufficient information in the Bill of Materials and review methods to reduce material use at later stages as the information develops Undertake a Whole life Cycle Assessment (WLC) to analyse the building materials within the design (embodied carbon) to find methods to reduce the quantity of material used. Refer to the Bill of Materials for the percentage recycled content targets/commitments. A minimum of 20% recycled content will be achieved across the materials where feasible. Seek to use excess material where possible on site and recycle the remainder to maximise diversion from landfill. Elements should use standardised design formats to enable future reuse, e.g. no bespoke cutting of materials as this can make replacements difficult to obtain. | I77: Ductwork and pipework material volumes will be minimised through space efficient design. Optimise services specifications for low embodied environmental impact (e.g., incorporating recycled material) and durability The selection of building services will be influenced by prioritizing light weight services equipment and ductwork. Alongside off-site ductwork fabrication where possible to reduce on site waste. Ductwork and pipework material volumes will be minimised through space efficient design. | J77: Energy and water meters will be provided to facilitate monitoring in use. Specifying material which maximise recycled content Refer to the Bill of Materials for the percentage recycled content targets/commitments. A minimum of 20% recycled content will be achieved across the materials where feasible Off-site purpose made components will be utilized and standardized where possible to minimize waste | K77: Optimise materials specifications for low embodied environmental impact Prioritise unbonded and recyclable materials Repetitive FF&E design and fittings selection Prioritising on-site reuse, then donations/sale to reuse marketplaces. Suppliers will be encouraged to take back any packaging | L77: Implement a Construction Waste Management Plan Minimising material usage during construction works will be imposed on the sub-contractor during the tender stages Track and set targets for the energy and water consumption of the site activities to observe and act upon any fluctuations beyond the predicted energy use. (kWh/Litres) Reuse hoarding from existing sites Site accommodation to be used on other projects of similar scale where feasible. Reuse, temporary formwork where applicable. Offsite construction and manufacturing will also be prioritized. Items such as suspended ceilings can be modular offsite construction. Just-in-time delivery strategy for materials to reduce likelihood of damage to materials stored on site BIM (Building Information Modelling) can be used to visualise, perform stress, deflection and other simulations in-house to avoid material intense methods. Digital prototyping ensures that product development is based on data from the outset, rather than untested assumptions. Design solutions can be tested, optimised and validated before releasing them to manufacturing. & BIM is useful throughout the building life cycle to determine the best material choices, check manufacturability of part and mould designs to help avoid production delays, manufacturing defects or costly mistakes. | M77: The whole-life cycle carbon assessment and circular economy workshop demonstrates the efficient design and has allowed for the quantity of materials to be reduced. Efficient design and site management will allow for minimising resource use as well as imposing requirements on the main contractor and promoting efficient resource use to tenants. Elements of the WLC Assessment and Circular Economy Report will assist the procurement team’s selection of suppliers of materials. Produce a sustainable procurement plan Source materials locally Existing items such as M&E and insulation will be offered on marketplace recyling. | N77: Opportunities for reducing materials may be limited due to already efficient design that has been finetuned over many completed projects of this type Higher initial capital costs as part of the tendering process. Commercial viability of the scheme may be compromised by tightly specifying materials with overly ambitious sustainability credentials at this stage Selecting both reusable and recovered whilst also ensuring longevity. site workers adhere to site segregation There might be some unforeseen challenges during construction | O77: Implement a Construction Waste Management Plan Provide all the sufficient information in the Bill of Materials and review methods to reduce material use at later stages as the information develops Client to ensure that focus is given to adding value to the development. Design Team to ensure that product selection at the point of specification has high ambitions for sustainability and include performance requirements within tender information. Select from a range of materials with end of life scenario and longevity considered. On site training of staff in waste management BIM can generate automatic component schedules, emphasising the nature and quantity of each material in the design | P77: Performance will be monitored at the point of specification and the implementation will be verified via the as-built information
D78: Module B - In-Use Stage | G78: A ‘fabric first ’ approach was implemented to reduce energy demand and carbon emissions with the aim of meeting GLA carbon reduction targets The 'Energy Strategy Report’ demonstrates in further detail how the shell and skin has been optimised to reduce energy demand. | H78: The 'Energy Strategy Report’ demonstrates in further detail how the shell and skin has been optimised to reduce energy demand. " A ‘fabric first ’ approach was considered across the Proposed Development (40 Holborn Viaduct) to reduce energy demand and carbon emissions with the aim of meeting GLA carbon reduction targets | I78: The energy demand of the Proposed Development has following the London Plan Energy Hierarchy (BE LEAN – BE CLEAN – BE GREEN – BE SEEN). | J78: The design will include adequate, accessible and clearly labelled separate waste storage space to accommodate both general and recyclable waste streams for the building space and future uses | K78: Incentives for recycling to be investigated during detailed design. For further details of operational waste management strategies see Circular Economy report. At least 65% municipal waste to be reused, recycled or composted by 2030. Repetitive FF&E design and fittings selection Unnecessary toxic treatments and finishes will be avoided where possible. In addition, finishes that can contaminate the substrate in a way that they are no longer reusable will be avoided unless they serve a specific purpose | M78: Refer to Operational Waste Management Plan Refer to 'Energy Strategy Report’ for energy reduction measures in use based on Be Lean, Be Clean, Be Green | N78: Refer to Recycling and Waste Reporting Targets | O78: Waste targets to be committed to. Once a facilities management team is appointed the operational waste strategy will be established in conjunction with Circular Economy report/OWMP. | P78: Performance will be monitored at the point of specification and the implementation will be verified via the as-built information
D79: Module C - End-of-Life Stage | E79: Situated on previously occupied land. The design optimises the use of the site This development does not prohibit future re-use of the land. | F79: The weight of the buildings are minimised by utilizing lightweight concrete reducing the size of the underground structures All materials where possible have a designated end of life scenario as per the WLCA | G79: All materials where possible have a designated end of life scenario as per the WLCA Given the size of the Proposed Development, it is likely that all parties (engineers, architects, sub - contractors) will produce and issue 3D model information. This would then be archived as part of the O&M documentation so that materials and manufacturers are known ”. Building information will also be stored “through the use of BIM technologies and Material Passports ” , allowing for future disassembly and end of life strategy, making the disassembly and reuse easier. The building structure on site have been designed with the industry design life of 60 years (as per the British Standards and Eurocodes). The Proposed Development will follow the default EoL scenarios (UK Statistics on Waste (2016) from DEFRA) for metals and timber whilst construction and demolition -related items will follow the London Plan Policy Targets. | H79: All materials where possible have a designated end of life scenario as per the WLCA Given the size of the Proposed Development, it is likely that all parties (engineers, architects, sub - contractors) will produce and issue 3D model information. This would then be archived as part of the O&M documentation so that materials and manufacturers are known ”. Building information will also be stored “through the use of BIM technologies and Material Passports ” , allowing for future disassembly and end of life strategy, making the disassembly and reuse easier. The building structure on site have been designed with the industry design life of 60 years (as per the British Standards and Eurocodes). The Proposed Development will follow the default EoL scenarios (UK Statistics on Waste (2016) from DEFRA) for metals and timber whilst construction and demolition -related items will follow the London Plan Policy Targets. | I79: Water conservation strategies and closed loop water systems The energy and sustainability statements demonstrate that efficient building services are proposed to reduce energy and water demands and minimise consumption | M79: Refer to WLC to see final end of life scenario for various construction materials | N79: Refer to Recycling and Waste Reporting Targets | O79: Targets to be committed to | P79: Performance will be monitored at the point of specification and the implementation will be verified via the as-built information
D80: Module D - Benefits and Loads Beyond the System Boundary | E80: We shall explore the opportunity for materials from demolished buildings to be used as hardcore / aggregate offsite. The site levels have been designed so as to minimise the volume of material needing to be taken off site, or ‘make up’ material being brought onto site, through a ‘cut and fill’ exercise using computer generated volumetric analysis of the existing topographical survey carried out and the proposed levels. | F80: The site levels have been designed so as to minimise the volume of material needing to be taken off site, or ‘make up’ material being brought onto site, through a ‘cut and fill’ exercise using computer generated volumetric analysis of the existing topographical survey carried out and the proposed levels. | G80: The Proposed Development will follow the default EoL scenarios (UK Statistics on Waste (2016) from DEFRA) for metals and timber whilst construction and demolition -related items will follow the London Plan Policy Targets which will take benefit from energy recovery and account for the recovery, reuse and recycling of materials. The structure for he Proposed Development has been designed and constructed to reduce material demands as far as practicable and will use systems, elements and materials that can be reused and/or recycled at the end of their useful life. | H80: Given the size of the Proposed Development, it is likely that all parties (engineers, architects, sub -contractors) will produce and issue 3D model information. This would then be archived as part of the O&M documentation so that materials and manufacturers are known ” . The Shell/Skin has been designed and constructed to reduce material demands as far as practicable and will use systems, elements and materials that can be reused and/or recycled at the end of their useful life. The Proposed Development will follow the default EoL scenarios (UK Statistics on Waste (2016) from DEFRA) for metals and timber whilst construction and demolition-related items will follow the London Plan Policy Targets which will take benefit from energy recovery and account for the recovery, reuse and recycling of materials. | M80: Waste materials will be recycled offsite for use on different developments | N80: Very limited options to maximise this aspect of waste reduction. | O80: Waste materials will be recycled offsite for use on different developments is the main option which will therefore be fully committed to. | P80: Performance will be monitored at the point of specification and the implementation will be verified via the as-built information
B81: Designing for longevity | E81: Situated on previously occupied land. The design optimises the use of the site This development does not prohibit future re-use of the land. | F81: The sub- structure design is efficient and will aim to maximise the volume of recycled content and cement replacement. Opportunities to add additional storeys to an existing frame/foundations to increase financial viability of the development are explored Loading plans are included within O&M’s to aid future adaptations. | G81: Long Life materials chosen. See WLCA Opportunities to add additional storeys to an existing frame/foundations to increase financial viability of the development. The building structure have been designed with the industry design life of 60 years (as per the British Standards and Eurocodes). | H81: The building has been designed for robustness, considered material degradation and climate change. Design utilizes off-site purpose made components that have long design life. | I81: Climate change considered in services design, therefore, the system will be sized to meet future climate. An overheating assessment will be needed to demonstrate that the system is fit for future climate scenario and maximize longevity of system. Future proof M&E services. Simple maintenance and commissioing schedule | J81: Units are designed to Part M, allows adaptability as users change. Internal areas designed for minimizing impact damage. Hard-wearing floor and kickplates on doors. Non-porous, durable surfaces constructed of corrosion resistant materials, where relevant. Kick plates or impact protections on doors etc | K81: Repetitive FF&E design and fittings selection | M81: Designing for Longevity will be achieved by considering harsh environmental conditions and specifying durable materials where possible, all while balancing the Embodied Carbon effect associate. See Bill of Materials for reference to lifespan of materials. Extended life materials will be selected. Materials will be selected to meet long-term needs, be robust, durable and resilient to climate change. The new construction will be designed to avoid a premature end of life for all components through considering maintenance and durability. | O81: Only minor carbon impacts will be caused by the incoming fixtures and fittings. Those materials which are being added will prioritize long life selections Furthermore, Internal areas designed for minimizing impact damage. Hard-wearing floor and kickplates on doors. Non-porous, durable surfaces constructed of corrosion resistant materials, where relevant are typical. | P81: Performance will be monitored at the point of specification and the implementation will be verified via the as-built information
B82: Designing for adaptability or flexibility | E82: The landscape is designed to work with existing topography The individual buildings on are spaced apart in general, allowing for sufficent space for the adaption and diassembly of the building | F82: Structural optimisation of substructure Consider loadings in terms of potential future uses of the building and in terms of climate resilience. In the future there may be larger swings between wet and dry, or hot and cold weather. | G82: Modular design of the smaller ancillary buildings Optimized floor heights of Main Building to strike balance between wellbeing, efficient material use and flexible use The superstructure is already suitably built for change in use, as it is a concrete frame structure with appropriate floor slab loading capacity for a multitude of uses, and adaptability. Also, floor slab loading capacity will accommodate access equipment for high level refurbishment (allows future refurbishment and maintenance) The open Activity Shelter is open elements with only 2 walls. This allows for multi options for adaption. | H82: Include where possible, to incorporate soft-spots or easily demountable structure for future alterations | I82: Design plumbing for easy access to facilitate repair and replacement The development will seek to ensuring that the mechanical and electrical design of the buildings is zoned to allow for future changes in layout. Modular elements such as risers will ensure services are easy to install and deconstruct. Services designed to have easy access to facilitate maintenance and avoid the removal of materials Specification of services to allow for future expansion e.g. facilities for additional connections on distribution boards. Internal partitions between the units will be plasterboard/lightweight metal frame construction to ensure that electrical and data fittings can be easily installed for future-use, causing minimal damage when required. | J82: Units are designed to Part M, allows adaptability as users change. Partition loads were allowed in the loading criteria of the structure to give more flexibility to move partitions and facilitate change of use. Partition walls minimised to ensure flexibility of future use. reusable or movable internal walls The layouts are modular in nature. All separating walls will be such that they can be disassembled so that units can be made larger, with two or more combined, or subdivided as required, without requiring changes to the superstructure or skin. All internal fixtures and fittings are removable and changeable without changing structure, services or skin. All the buildings been designed to allow easy rearrangement of its internal fit-out and arrangement to suit the changing needs of occupants or change of use. Aside from the Water sports Main Building, the buildings are open plan with limited internal walls, allowing for flexibility for change of use. | K82: All internal fixtures and fittings are removable and changeable without changing structure, services or skin. Flooring will be of a limited variant that can be easily disassembled. Compare prices and life cycle carefully when considering increased warranties on products. Choose non-toxic finishes and material treatments that can be altered (e.g. colour) and select products that are free of dangerous components Consider joinery methods that use no metal fasteners at all Compare prices and life cycle carefully when considering increased warranties on products. Choose non-toxic finishes and material treatments that can be altered (e.g. colour) and select products that are free of dangerous components Consider joinery methods that use no metal fasteners at all | M82: This will be achieved by prioritising easily adaptable design options such as mechanical (and thus reversible) connections and designing services for future change in use. Designing for reusability / recoverability / longevity / adaptability / flexibility will be considered on a layer-by layer basis. Utilising standardised and off-site purpose made design elements. The small buildings are not a bespoke design, so that it can be adaptable to tenants needs as they evolve over time. This makes the space adaptable to future tenants or future change of tenants and use. | N82: Due to the location, a change in use is unlikely an option. Due to the location, the main options for flexibility in the building use is a change of use to serve a different facility of the same Water Sports Centre. | O82: There may be a change of local strategy in the future and change of use may be considered for a similar use of the area. This makes disassembly a key target | P82: Performance will be monitored at the point of specification and the implementation will be verified via the as-built information Information to be included in either the O&M or Building User Guide for future users and developers
B83: Designing for disassembly | E83: N/A | F83: Structural optimisation of substructure | G83: The new workshops, sheds and shelter buildings are simple small structures with uniform shapes. This allows for repetitive constructions and thus deconstruction strategies. Use common, standard shapes and connections; minimise the number of different member sizes Soft spot has been included between GF to allow for replacement as well as lift access between basement and roof level. Bolted connections in structure to ease deconstruction. Material choice avoids poured and welded connections which are likely to harm components and prevent disassembly. Structurally, the Main building can potentially be vertically or horizontally extended with more floors added in the future Concrete and reinforcement can be separated, concrete crushed for use as aggregate and the reinforcement can be recycled. There are some advantages in using lightweight material for pre-fab modular in terms of transportation costs, provided the distances and mode of transportation are also taken into account | H83: For brick facades, using lime mortar enables the bricks to be reclaimed and reused following disassembly. The storage of the proposal information is encouraged through the use of BIM technologies and Materials Passports, allowing for future disassembly an end-of life strategy. The building structure will be designed to the 60-year industry life standard (following British Standards and Eurocodes). | I83: Standardization will be utilized where possible to minimize waste - for example: service risers, service cupboard, other key components Mechanical and electrical design is zoned to allow for future changes in layout. Specify products which are componentised and can be repaired by replacing failed components, for example LED luminaires with replaceable lamps rather than chip on board luminaires | J83: Buildings are designed to Part M, allows adaptability as users change. The separating walls of each building and the corridors consists of lightweight metal framework and stud partitions, which allow easy disassembly and reuse. All internal fixtures and fittings are removable and changeable without changing structure, services or skin. Avoid the use of glues and adhesives that will be absorbed into materials and instead opt for fixings that will not affect the integrity of the material in the future Where adhesives are required, opt for non-toxic and solvent free products. There are natural adhesives available that can make reuse more straightforward Carpet tiles preferred | K83: Low health impact materials such as low VOC content in paints to facilitate safe disassembly and reuse. No fixtures or fittings will be glued down wherever feasible to ease future disassembly and recovery. Absence of fitted furniture so rooms can be adapted for multiple purposes | L83: An end-of-life deconstruction plan will be developed to address this strategy directly and in depth. A disassembly guide will be developed to address techniques for prolonging the life of the building and reducing operational construction, demolition and excavation waste. disassembly manual will include a Building Information Model (BIM) to ensure information can be easily accessible and updated where relevant. | M83: Develop an end-of-life deconstruction plan This will be done by prioritising products that can be easily disassembled, mechanical fixtures, and using material passports where possible to document products designed for disassembly Disassembly is facilitated with the access space in the building to replace components. Layer independence design will be adopted which helps with removal, adjustment or replacement of some elements Numbers of fasteners and connectors will be minimized to increase speed of disassembly. Joints and connectors will be designed to withstand repeated assembly and disassembly to allow for adaptation and for the connectors to be reused. | N83: To develop an end-of-life deconstruction plan for each layer and material inventory may be extensive and a lack of understanding on how to develop may be limited | O83: There will a sustainability consultant used to assist in inventory construction and use | P83: Performance will be monitored at the point of specification and the implementation will be verified via the as-built information Information to be included in either the O&M or Building User Guide for future users and developers
B84: Using systems, elements or materials that can be re-used and recycled | E84: All clean excavated material will be reused on site to form proposed levels | F84: All clean excavated material will be reused on site to form proposed levels | G84: Section of frame with materials which can be highly recycled concrete separated and crushed for aggregate and steel recycled back into the industry. | H84: The wall brick facades could be reclaimed at end of life The lifespan of internal fixtures is often over-estimated which leads to significant waste. Components that are likely to have a shorter lifespan could either be made of biological materials which can be returned to the biosphere (for example breather board) or designed to be returned to the manufacture | J84: Specify products which area easily dismantled and do not have fixings such as screws etc. Specify products which when replaced, it is ensured that the supplier of the new product recycles the replaced product | M84: Careful selection of materials in the early stages will allow for a high recycle rates at the end of life. Use demolition audit to determine the existing materials and choose the re-use, recycling route for waste categories Maximise re-use of existing materials either onsite as aggregates or offsite to recycling centres. | N84: Some materials are sent to landfill. Although these are very limited. | O84: Very limited materials sent to landfill Option to sell on to other developments for direct re-use will be explored. Waste hierarchy followed to ensure correct segregation to avoid landfill. | P84: Performance will be monitored at the point of specification and the implementation will be verified via the as-built information Information to be included in either the O&M or Building User Guide for future users and developers
B87: Bill of Materials
B88: Please click the + symbol to the left hand side of the Bill of Materials table to view or hide the input rows for each Building Element Category. The rows for substructure and frame have been unhidden to highlight this. A fixed number of rows has been provided for each Building Element Category based on a sub-set of typical WLCA submissions. Should the number of rows provided not be sufficient to allow input of all materials for a given Building Element Category, Applicants should prioritise the inclusion of the materials with the highest quantity.
C89: BUILDING ELEMENT CATEGORY - LEVEL 1 (based on the RICS New Rules of Measurement (NRM) classification system level 2 sub-elements https://www.rics.org/globalassets/rics-website/media/products/data-products/bcis-construction/bcis-elemental-standard-form-cost-analysis-4th-nrm-edition-2012.pdf) | E89: PRODUCT AND CONSTRUCTION STAGE (MODULE A) | M89: USE STAGE (MODULE B) | R89: END OF LIFE STAGE (MODULE C) | W89: BENEFITS BEYOND THE SYSTEM BOUNDARY (MODULE D)
C90: Building Element Category | E90: Material Type | F90: Material quantity (Module A) (kg) | G90: Material intensity (Module A) (kg/m2 GIA) | H90: Performance Indicator (LPG Appendix 1) | I90: Construction Waste Factor (Module A) | J90: Construction Waste (Module A) (kg) | K90: Recycled Content by mass (kg) | L90: Recycled Content by value (%) | M90: Expected Lifespan (years) | N90: Number of Replacements (over assumed 60-year period) | O90: Repair and Replacement quantities of materials (Module B) (kg) | P90: Construction Waste Factor (Module B) | Q90: Construction Waste (Module B) (kg) | R90: Design for Disassembly | S90: Assumed End of Life Scenario (Description) | T90: % Reusing | U90: % Recycling | V90: % Landfill | W90: Estimated reusable materials (kg) | X90: Estimated reusable materials intensity (kg/m2 GIA) | Y90: Estimated recyclable materials (kg) | Z90: Estimated recyclable materials intensity (kg/m2 GIA)
B91: 0.1 | C91: Demolition: Toxic/Hazardous/Contaminated Material Treatment | E91: - | F91: =SUM(F92:F106) -> 0 | G91: =IF(AND(F91<>0,$D$31<>0),F91/$D$31,0) -> 0 | H91: - | I91: - | J91: =SUM(J92:J106) -> 0 | K91: - | L91: - | M91: - | N91: - | O91: =SUM(O92:O106) -> 0 | P91: - | Q91: =SUM(Q92:Q106) -> 0 | R91: - | S91: - | T91: =IF(W91<>0,W91/($F$91+$O$91),0) -> 0 | U91: =IF(Y91<>0,Y91/($F$91+$O$91),0) -> 0 | V91: =1-T91-U91 -> 1 | W91: =SUM(W92:W106) -> 0 | X91: =IF(AND(W91<>0,$D$31<>0),W91/$D$31,0) -> 0 | Y91: =SUM(Y92:Y106) -> 0 | Z91: =IF(AND(Y91<>0,$D$31<>0),Y91/$D$31,0) -> 0
B92: 0.1 | C92: Demolition: Toxic/Hazardous/Contaminated Material Treatment | G92: =IF(AND(F92<>0,$D$31<>0),F92/$D$31,0) -> 0 | H92: - | I92: 0 | J92: =F92*I92 -> 0 | N92: =IF(M92<>0,INT(59/M92),0) -> 0 | O92: =F92*N92 -> 0 | P92: 0 | Q92: =O92*P92 -> 0 | T92: 0 | U92: 0 | V92: =1-T92-U92 -> 1 | W92: =T92*(F92+O92) -> 0 | X92: =IF(AND(W92<>0,$D$31<>0),W92/$D$31,0) -> 0 | Y92: =U92*(F92+O92) -> 0 | Z92: =IF(AND(Y92<>0,$D$31<>0),Y92/$D$31,0) -> 0
G93: =IF(AND(F93<>0,$D$31<>0),F93/$D$31,0) -> 0 | H93: - | I93: 0 | J93: =F93*I93 -> 0 | N93: =IF(M93<>0,INT(59/M93),0) -> 0 | O93: =F93*N93 -> 0 | P93: 0 | Q93: =O93*P93 -> 0 | T93: 0 | U93: 0 | V93: =1-T93-U93 -> 1 | W93: =T93*(F93+O93) -> 0 | X93: =IF(AND(W93<>0,$D$31<>0),W93/$D$31,0) -> 0 | Y93: =U93*(F93+O93) -> 0 | Z93: 0
G94: 0 | H94: - | I94: 0 | J94: 0 | N94: 0 | O94: 0 | P94: 0 | Q94: 0 | T94: 0 | U94: 0 | V94: 1 | W94: 0 | X94: 0 | Y94: 0 | Z94: 0
G95: 0 | H95: - | I95: 0 | J95: 0 | N95: 0 | O95: 0 | P95: 0 | Q95: 0 | T95: 0 | U95: 0 | V95: 1 | W95: 0 | X95: 0 | Y95: 0 | Z95: 0
G96: 0 | H96: - | I96: 0 | J96: 0 | N96: 0 | O96: 0 | P96: 0 | Q96: 0 | T96: 0 | U96: 0 | V96: 1 | W96: 0 | X96: 0 | Y96: 0 | Z96: 0
G97: 0 | H97: - | I97: 0 | J97: 0 | N97: 0 | O97: 0 | P97: 0 | Q97: 0 | T97: 0 | U97: 0 | V97: 1 | W97: 0 | X97: 0 | Y97: 0 | Z97: 0
G98: 0 | H98: - | I98: 0 | J98: 0 | N98: 0 | O98: 0 | P98: 0 | Q98: 0 | T98: 0 | U98: 0 | V98: 1 | W98: 0 | X98: 0 | Y98: 0 | Z98: 0
G99: 0 | H99: - | I99: 0 | J99: 0 | N99: 0 | O99: 0 | P99: 0 | Q99: 0 | T99: 0 | U99: 0 | V99: 1 | W99: 0 | X99: 0 | Y99: 0 | Z99: 0
G100: 0 | H100: - | I100: 0 | J100: 0 | N100: 0 | O100: 0 | P100: 0 | Q100: 0 | T100: 0 | U100: 0 | V100: 1 | W100: 0 | X100: 0 | Y100: 0 | Z100: 0
G101: 0 | H101: - | I101: 0 | J101: 0 | N101: 0 | O101: 0 | P101: 0 | Q101: 0 | T101: 0 | U101: 0 | V101: 1 | W101: 0 | X101: 0 | Y101: 0 | Z101: 0
G102: 0 | H102: - | I102: 0 | J102: 0 | N102: 0 | O102: 0 | P102: 0 | Q102: 0 | T102: 0 | U102: 0 | V102: 1 | W102: 0 | X102: 0 | Y102: 0 | Z102: 0
G103: 0 | H103: - | I103: 0 | J103: 0 | N103: 0 | O103: 0 | P103: 0 | Q103: 0 | T103: 0 | U103: 0 | V103: 1 | W103: 0 | X103: 0 | Y103: 0 | Z103: 0
G104: 0 | H104: - | I104: 0 | J104: 0 | N104: 0 | O104: 0 | P104: 0 | Q104: 0 | T104: 0 | U104: 0 | V104: 1 | W104: 0 | X104: 0 | Y104: 0 | Z104: 0
G105: 0 | H105: - | I105: 0 | J105: 0 | N105: 0 | O105: 0 | P105: 0 | Q105: 0 | T105: 0 | U105: 0 | V105: 1 | W105: 0 | X105: 0 | Y105: 0 | Z105: 0
G106: 0 | H106: - | I106: 0 | J106: 0 | N106: 0 | O106: 0 | P106: 0 | Q106: 0 | T106: 0 | U106: 0 | V106: 1 | W106: 0 | X106: 0 | Y106: 0 | Z106: 0
B107: 0.2 | C107: Major Demolition Works | E107: - | F107: =SUM(F108:F122) -> 0 | G107: =IF(AND(F107<>0,$D$31<>0),F107/$D$31,0) -> 0 | H107: - | I107: - | J107: =SUM(J108:J122) -> 0 | K107: - | L107: - | M107: - | N107: - | O107: =SUM(O108:O122) -> 0 | P107: - | Q107: =SUM(Q108:Q122) -> 0 | R107: - | S107: - | T107: =IF(W107<>0,W107/($F$107+$O$107),0) -> 0 | U107: =IF(Y107<>0,Y107/($F$107+$O$107),0) -> 0 | V107: =1-T107-U107 -> 1 | W107: =SUM(W108:W122) -> 0 | X107: 0 | Y107: =SUM(Y108:Y122) -> 0 | Z107: 0
B108: 0.2 | C108: Major Demolition Works | G108: =IF(AND(F108<>0,$D$31<>0),F108/$D$31,0) -> 0 | H108: - | I108: 0 | J108: =I108*F108 -> 0 | N108: =IF(M108<>0,INT(59/M108),0) -> 0 | O108: =F108*N108 -> 0 | P108: 0 | Q108: =O108*P108 -> 0 | T108: 0 | U108: 0 | V108: 1 | W108: 0 | X108: 0 | Y108: 0 | Z108: 0
G109: =IF(AND(F109<>0,$D$31<>0),F109/$D$31,0) -> 0 | H109: - | I109: 0 | J109: 0 | N109: =IF(M109<>0,INT(59/M109),0) -> 0 | O109: =F109*N109 -> 0 | P109: 0 | Q109: =O109*P109 -> 0 | T109: 0 | U109: 0 | V109: 1 | W109: 0 | X109: 0 | Y109: 0 | Z109: 0
G110: =IF(AND(F110<>0,$D$31<>0),F110/$D$31,0) -> 0 | H110: - | I110: 0 | J110: 0 | N110: 0 | O110: 0 | P110: 0 | Q110: 0 | T110: 0 | U110: 0 | V110: 1 | W110: 0 | X110: 0 | Y110: 0 | Z110: 0
G111: 0 | H111: - | I111: 0 | J111: 0 | N111: 0 | O111: 0 | P111: 0 | Q111: 0 | T111: 0 | U111: 0 | V111: 1 | W111: 0 | X111: 0 | Y111: 0 | Z111: 0
G112: 0 | H112: - | I112: 0 | J112: 0 | N112: 0 | O112: 0 | P112: 0 | Q112: 0 | T112: 0 | U112: 0 | V112: 1 | W112: 0 | X112: 0 | Y112: 0 | Z112: 0
G113: 0 | H113: - | I113: 0 | J113: 0 | N113: 0 | O113: 0 | P113: 0 | Q113: 0 | T113: 0 | U113: 0 | V113: 1 | W113: 0 | X113: 0 | Y113: 0 | Z113: 0
G114: 0 | H114: - | I114: 0 | J114: 0 | N114: 0 | O114: 0 | P114: 0 | Q114: 0 | T114: 0 | U114: 0 | V114: 1 | W114: 0 | X114: 0 | Y114: 0 | Z114: 0
G115: 0 | H115: - | I115: 0 | J115: 0 | N115: 0 | O115: 0 | P115: 0 | Q115: 0 | T115: 0 | U115: 0 | V115: 1 | W115: 0 | X115: 0 | Y115: 0 | Z115: 0
G116: 0 | H116: - | I116: 0 | J116: 0 | N116: 0 | O116: 0 | P116: 0 | Q116: 0 | T116: 0 | U116: 0 | V116: 1 | W116: 0 | X116: 0 | Y116: 0 | Z116: 0
G117: 0 | H117: - | I117: 0 | J117: 0 | N117: 0 | O117: 0 | P117: 0 | Q117: 0 | T117: 0 | U117: 0 | V117: 1 | W117: 0 | X117: 0 | Y117: 0 | Z117: 0
G118: 0 | H118: - | I118: 0 | J118: 0 | N118: 0 | O118: 0 | P118: 0 | Q118: 0 | T118: 0 | U118: 0 | V118: 1 | W118: 0 | X118: 0 | Y118: 0 | Z118: 0
G119: 0 | H119: - | I119: 0 | J119: 0 | N119: 0 | O119: 0 | P119: 0 | Q119: 0 | T119: 0 | U119: 0 | V119: 1 | W119: 0 | X119: 0 | Y119: 0 | Z119: 0
G120: 0 | H120: - | I120: 0 | J120: 0 | N120: 0 | O120: 0 | P120: 0 | Q120: 0 | T120: 0 | U120: 0 | V120: 1 | W120: 0 | X120: 0 | Y120: 0 | Z120: 0
G121: 0 | H121: - | I121: 0 | J121: 0 | N121: 0 | O121: 0 | P121: 0 | Q121: 0 | T121: 0 | U121: 0 | V121: 1 | W121: 0 | X121: 0 | Y121: 0 | Z121: 0
G122: 0 | H122: - | I122: 0 | J122: 0 | N122: 0 | O122: 0 | P122: 0 | Q122: 0 | T122: 0 | U122: 0 | V122: 1 | W122: 0 | X122: 0 | Y122: 0 | Z122: 0
B123: 0.3 | C123: Temporary Support to Adjacent Structures | E123: - | F123: =SUM(F124:F138) -> 0 | G123: =IF(AND(F123<>0,$D$31<>0),F123/$D$31,0) -> 0 | H123: - | I123: - | J123: =SUM(J124:J138) -> 0 | K123: - | L123: - | M123: - | N123: - | O123: =SUM(O124:O138) -> 0 | P123: - | Q123: =SUM(Q124:Q138) -> 0 | R123: - | S123: - | T123: =IF(W123<>0,W123/($F$123+$O$123),0) -> 0 | U123: =IF(Y123<>0,Y123/($F$123+$O$123),0) -> 0 | V123: 1 | W123: =SUM(W124:W138) -> 0 | X123: 0 | Y123: =SUM(Y124:Y138) -> 0 | Z123: 0
B124: 0.3 | C124: Temporary Support to Adjacent Structures | G124: =IF(AND(F124<>0,$D$31<>0),F124/$D$31,0) -> 0 | H124: - | I124: 0 | J124: =I124*F124 -> 0 | N124: =IF(M124<>0,INT(59/M124),0) -> 0 | O124: =F124*N124 -> 0 | P124: 0 | Q124: =O124*P124 -> 0 | S124: 0 | T124: 0 | U124: 0 | V124: 1 | W124: 0 | X124: 0 | Y124: 0 | Z124: 0
G125: =IF(AND(F125<>0,$D$31<>0),F125/$D$31,0) -> 0 | H125: - | I125: 0 | J125: 0 | N125: =IF(M125<>0,INT(59/M125),0) -> 0 | O125: =F125*N125 -> 0 | P125: 0 | Q125: =O125*P125 -> 0 | S125: 0 | T125: 0 | U125: 0 | V125: 1 | W125: 0 | X125: 0 | Y125: 0 | Z125: 0
G126: =IF(AND(F126<>0,$D$31<>0),F126/$D$31,0) -> 0 | H126: - | I126: 0 | J126: 0 | N126: 0 | O126: 0 | P126: 0 | Q126: 0 | S126: 0 | T126: 0 | U126: 0 | V126: 1 | W126: 0 | X126: 0 | Y126: 0 | Z126: 0
G127: 0 | H127: - | I127: 0 | J127: 0 | N127: 0 | O127: 0 | P127: 0 | Q127: 0 | S127: 0 | T127: 0 | U127: 0 | V127: 1 | W127: 0 | X127: 0 | Y127: 0 | Z127: 0
G128: 0 | H128: - | I128: 0 | J128: 0 | N128: 0 | O128: 0 | P128: 0 | Q128: 0 | S128: 0 | T128: 0 | U128: 0 | V128: 1 | W128: 0 | X128: 0 | Y128: 0 | Z128: 0
G129: 0 | H129: - | I129: 0 | J129: 0 | N129: 0 | O129: 0 | P129: 0 | Q129: 0 | S129: 0 | T129: 0 | U129: 0 | V129: 1 | W129: 0 | X129: 0 | Y129: 0 | Z129: 0
G130: 0 | H130: - | I130: 0 | J130: 0 | N130: 0 | O130: 0 | P130: 0 | Q130: 0 | S130: 0 | T130: 0 | U130: 0 | V130: 1 | W130: 0 | X130: 0 | Y130: 0 | Z130: 0
G131: 0 | H131: - | I131: 0 | J131: 0 | N131: 0 | O131: 0 | P131: 0 | Q131: 0 | S131: 0 | T131: 0 | U131: 0 | V131: 1 | W131: 0 | X131: 0 | Y131: 0 | Z131: 0
G132: 0 | H132: - | I132: 0 | J132: 0 | N132: 0 | O132: 0 | P132: 0 | Q132: 0 | S132: 0 | T132: 0 | U132: 0 | V132: 1 | W132: 0 | X132: 0 | Y132: 0 | Z132: 0
G133: 0 | H133: - | I133: 0 | J133: 0 | N133: 0 | O133: 0 | P133: 0 | Q133: 0 | S133: 0 | T133: 0 | U133: 0 | V133: 1 | W133: 0 | X133: 0 | Y133: 0 | Z133: 0
G134: 0 | H134: - | I134: 0 | J134: 0 | N134: 0 | O134: 0 | P134: 0 | Q134: 0 | S134: 0 | T134: 0 | U134: 0 | V134: 1 | W134: 0 | X134: 0 | Y134: 0 | Z134: 0
G135: 0 | H135: - | I135: 0 | J135: 0 | N135: 0 | O135: 0 | P135: 0 | Q135: 0 | S135: 0 | T135: 0 | U135: 0 | V135: 1 | W135: 0 | X135: 0 | Y135: 0 | Z135: 0
G136: 0 | H136: - | I136: 0 | J136: 0 | N136: 0 | O136: 0 | P136: 0 | Q136: 0 | S136: 0 | T136: 0 | U136: 0 | V136: 1 | W136: 0 | X136: 0 | Y136: 0 | Z136: 0
G137: 0 | H137: - | I137: 0 | J137: 0 | N137: 0 | O137: 0 | P137: 0 | Q137: 0 | S137: 0 | T137: 0 | U137: 0 | V137: 1 | W137: 0 | X137: 0 | Y137: 0 | Z137: 0
G138: 0 | H138: - | I138: 0 | J138: 0 | N138: 0 | O138: 0 | P138: 0 | Q138: 0 | S138: 0 | T138: 0 | U138: 0 | V138: 1 | W138: 0 | X138: 0 | Y138: 0 | Z138: 0
B139: 0.4 | C139: Specialist Ground Works | E139: - | F139: =SUM(F140:F154) -> 0 | G139: =IF(AND(F139<>0,$D$31<>0),F139/$D$31,0) -> 0 | H139: - | I139: - | J139: =SUM(J140:J154) -> 0 | K139: - | L139: - | M139: - | N139: - | O139: =SUM(O140:O154) -> 0 | P139: - | Q139: =SUM(Q140:Q154) -> 0 | R139: - | S139: - | T139: =IF(W139<>0,W139/($F$139+$O$139),0) -> 0 | U139: =IF(Y139<>0,Y139/($F$139+$O$139),0) -> 0 | V139: 1 | W139: =SUM(W140:W154) -> 0 | X139: 0 | Y139: =SUM(Y140:Y154) -> 0 | Z139: 0
B140: 0.4 | C140: Specialist Ground Works | G140: =IF(AND(F140<>0,$D$31<>0),F140/$D$31,0) -> 0 | H140: - | I140: 0 | J140: =I140*F140 -> 0 | N140: =IF(M140<>0,INT(59/M140),0) -> 0 | O140: =F140*N140 -> 0 | P140: 0 | Q140: =O140*P140 -> 0 | T140: 0 | U140: 0 | V140: 1 | W140: 0 | X140: 0 | Y140: 0 | Z140: 0
G141: =IF(AND(F141<>0,$D$31<>0),F141/$D$31,0) -> 0 | H141: - | I141: 0 | J141: 0 | N141: =IF(M141<>0,INT(59/M141),0) -> 0 | O141: =F141*N141 -> 0 | P141: 0 | Q141: =O141*P141 -> 0 | T141: 0 | U141: 0 | V141: 1 | W141: 0 | X141: 0 | Y141: 0 | Z141: 0
G142: =IF(AND(F142<>0,$D$31<>0),F142/$D$31,0) -> 0 | H142: - | I142: 0 | J142: 0 | N142: 0 | O142: 0 | P142: 0 | Q142: 0 | T142: 0 | U142: 0 | V142: 1 | W142: 0 | X142: 0 | Y142: 0 | Z142: 0
G143: 0 | H143: - | I143: 0 | J143: 0 | N143: 0 | O143: 0 | P143: 0 | Q143: 0 | T143: 0 | U143: 0 | V143: 1 | W143: 0 | X143: 0 | Y143: 0 | Z143: 0
G144: 0 | H144: - | I144: 0 | J144: 0 | N144: 0 | O144: 0 | P144: 0 | Q144: 0 | T144: 0 | U144: 0 | V144: 1 | W144: 0 | X144: 0 | Y144: 0 | Z144: 0
G145: 0 | H145: - | I145: 0 | J145: 0 | N145: 0 | O145: 0 | P145: 0 | Q145: 0 | T145: 0 | U145: 0 | V145: 1 | W145: 0 | X145: 0 | Y145: 0 | Z145: 0
G146: 0 | H146: - | I146: 0 | J146: 0 | N146: 0 | O146: 0 | P146: 0 | Q146: 0 | T146: 0 | U146: 0 | V146: 1 | W146: 0 | X146: 0 | Y146: 0 | Z146: 0
G147: 0 | H147: - | I147: 0 | J147: 0 | N147: 0 | O147: 0 | P147: 0 | Q147: 0 | T147: 0 | U147: 0 | V147: 1 | W147: 0 | X147: 0 | Y147: 0 | Z147: 0
G148: 0 | H148: - | I148: 0 | J148: 0 | N148: 0 | O148: 0 | P148: 0 | Q148: 0 | T148: 0 | U148: 0 | V148: 1 | W148: 0 | X148: 0 | Y148: 0 | Z148: 0
G149: 0 | H149: - | I149: 0 | J149: 0 | N149: 0 | O149: 0 | P149: 0 | Q149: 0 | T149: 0 | U149: 0 | V149: 1 | W149: 0 | X149: 0 | Y149: 0 | Z149: 0
G150: 0 | H150: - | I150: 0 | J150: 0 | N150: 0 | O150: 0 | P150: 0 | Q150: 0 | T150: 0 | U150: 0 | V150: 1 | W150: 0 | X150: 0 | Y150: 0 | Z150: 0
G151: 0 | H151: - | I151: 0 | J151: 0 | N151: 0 | O151: 0 | P151: 0 | Q151: 0 | T151: 0 | U151: 0 | V151: 1 | W151: 0 | X151: 0 | Y151: 0 | Z151: 0
G152: 0 | H152: - | I152: 0 | J152: 0 | N152: 0 | O152: 0 | P152: 0 | Q152: 0 | T152: 0 | U152: 0 | V152: 1 | W152: 0 | X152: 0 | Y152: 0 | Z152: 0
G153: 0 | H153: - | I153: 0 | J153: 0 | N153: 0 | O153: 0 | P153: 0 | Q153: 0 | T153: 0 | U153: 0 | V153: 1 | W153: 0 | X153: 0 | Y153: 0 | Z153: 0
G154: 0 | H154: - | I154: 0 | J154: 0 | N154: 0 | O154: 0 | P154: 0 | Q154: 0 | T154: 0 | U154: 0 | V154: 1 | W154: 0 | X154: 0 | Y154: 0 | Z154: 0
B155: 1 | C155: Substructure | E155: - | F155: =SUM(F156:F175) -> 6160006.96 | G155: =IF(AND(F155<>0,$D$31<>0),F155/$D$31,0) -> 1441.611739 | H155: =SUMPRODUCT((C91:D454="Substructure")*G91:G454) -> 1742.290419 | I155: - | J155: =SUM(J156:J175) -> 308000.348 | K155: - | L155: - | M155: - | N155: - | O155: =SUM(O156:O175) -> 0 | P155: - | Q155: =SUM(Q156:Q175) -> 0 | R155: - | S155: - | T155: =IF(W155<>0,W155/($F$155+$O$155),0) -> 0 | U155: =IF(Y155<>0,Y155/($F$155+$O$155),0) -> 0.5391433779 | V155: 0.4608566221 | W155: =SUM(W156:W175) -> 0 | X155: 0 | Y155: =SUM(Y156:Y175) -> 3321126.96 | Z155: 777.2354224
B156: 1 | C156: Substructure | E156: Excavation works, kg or m3 of removed masses (Required for IMPACT calculations) | F156: 1284800 | G156: =IF(AND(F156<>0,$D$31<>0),F156/$D$31,0) -> 300.6786801 | H156: - | I156: 0.05 | J156: =I156*F156 -> 64240 | M156: 60 | N156: =IF(M156<>0,INT(59/M156),0) -> 0 | O156: =F156*N156 -> 0 | P156: 0 | Q156: =O156*P156 -> 0 | T156: 0 | U156: 0 | V156: 1 | W156: 0 | X156: 0 | Y156: 0 | Z156: 0
E157: Excavation works, kg or m3 of removed masses (Required for IMPACT calculations) | F157: 814880 | G157: =IF(AND(F157<>0,$D$31<>0),F157/$D$31,0) -> 190.7044231 | H157: - | I157: 0.05 | J157: 40744 | M157: 60 | N157: =IF(M157<>0,INT(59/M157),0) -> 0 | O157: =F157*N157 -> 0 | P157: 0 | Q157: =O157*P157 -> 0 | T157: 0 | U157: 0 | V157: =1-T157-U157 -> 1 | W157: =T157*(F157+O157) -> 0 | X157: =IF(AND(W157<>0,$D$31<>0),W157/$D$31,0) -> 0 | Y157: =U157*(F157+O157) -> 0 | Z157: 0
E158: Excavation works, kg or m3 of removed masses (Required for IMPACT calculations) | F158: 739200 | G158: =IF(AND(F158<>0,$D$31<>0),F158/$D$31,0) -> 172.9932132 | H158: - | I158: 0.05 | J158: 36960 | M158: 60 | N158: 0 | O158: 0 | P158: 0 | Q158: 0 | T158: 0 | U158: 0 | V158: 1 | W158: 0 | X158: 0 | Y158: 0 | Z158: 0
E159: Ready-mix concrete, normal-strength, generic, C40/50 (5800/7300 PSI), 20% recycled binders in cement (400 kg/m3 / 24.97 lbs/ft3) | F159: 528000 | G159: 123.5665809 | H159: - | I159: 0.05 | J159: 26400 | M159: 60 | N159: 0 | O159: 0 | P159: 0 | Q159: 0 | S159: Concrete crushed to aggregate (for sub-base layers), Portland Cement 400 kg / m3 | T159: 0 | U159: 1 | V159: 0 | W159: 0 | X159: 0 | Y159: 528000 | Z159: 123.5665809
E160: Ready-mix concrete, normal-strength, generic, C40/50 (5800/7300 PSI), 50% recycled binders in cement (400 kg/m3 / 24.97 lbs/ft3) | F160: 518904 | G160: 121.4378657 | H160: - | I160: 0.05 | J160: 25945.2 | M160: 60 | N160: 0 | O160: 0 | P160: 0 | Q160: 0 | S160: Concrete crushed to aggregate (for sub-base layers), Portland Cement 400 kg / m3 | T160: 0 | U160: 1 | V160: 0 | W160: 0 | X160: 0 | Y160: 518904 | Z160: 121.4378657
E161: Ready-mix concrete, normal-strength, generic, C40/50 (5800/7300 PSI), 50% recycled binders in cement (400 kg/m3 / 24.97 lbs/ft3) | F161: 488160 | G161: 114.2429207 | H161: - | I161: 0.05 | J161: 24408 | M161: 60 | N161: 0 | O161: 0 | P161: 0 | Q161: 0 | S161: Concrete crushed to aggregate (for sub-base layers), Portland Cement 400 kg / m3 | T161: 0 | U161: 1 | V161: 0 | W161: 0 | X161: 0 | Y161: 488160 | Z161: 114.2429207
E162: Ready-mix concrete, normal-strength, generic, C40/50 (5800/7300 PSI), 50% recycled binders in cement (400 kg/m3 / 24.97 lbs/ft3) | F162: 479808 | G162: 112.288322 | H162: - | I162: 0.05 | J162: 23990.4 | M162: 60 | N162: 0 | O162: 0 | P162: 0 | Q162: 0 | S162: Concrete crushed to aggregate (for sub-base layers), Portland Cement 400 kg / m3 | T162: 0 | U162: 1 | V162: 0 | W162: 0 | X162: 0 | Y162: 479808 | Z162: 112.288322
E163: Ready-mix concrete, normal-strength, generic, C40/50 (5800/7300 PSI), 50% recycled binders in cement (400 kg/m3 / 24.97 lbs/ft3) | F163: 298548 | G163: 69.86847648 | H163: - | I163: 0.05 | J163: 14927.4 | M163: 60 | N163: 0 | O163: 0 | P163: 0 | Q163: 0 | S163: Concrete crushed to aggregate (for sub-base layers), Portland Cement 400 kg / m3 | T163: 0 | U163: 1 | V163: 0 | W163: 0 | X163: 0 | Y163: 298548 | Z163: 69.86847648
E164: Ready-mix concrete, normal-strength, generic, C40/50 (5800/7300 PSI), 50% recycled binders in cement (400 kg/m3 / 24.97 lbs/ft3) | F164: 155520 | G164: 36.39597473 | H164: - | I164: 0.05 | J164: 7776 | M164: 60 | N164: 0 | O164: 0 | P164: 0 | Q164: 0 | S164: Concrete crushed to aggregate (for sub-base layers), Portland Cement 400 kg / m3 | T164: 0 | U164: 1 | V164: 0 | W164: 0 | X164: 0 | Y164: 155520 | Z164: 36.39597473
E165: Excavation works, kg or m3 of removed masses (Required for IMPACT calculations) | F165: 144320 | G165: 33.77486543 | H165: - | I165: 0.05 | J165: 7216 | M165: 60 | N165: 0 | O165: 0 | P165: 0 | Q165: 0 | T165: 0 | U165: 1 | V165: 0 | W165: 0 | X165: 0 | Y165: 144320 | Z165: 33.77486543
E166: Excavation works, kg or m3 of removed masses (Required for IMPACT calculations) | F166: 137280 | G166: 32.12731102 | H166: - | I166: 0.05 | J166: 6864 | M166: 60 | N166: 0 | O166: 0 | P166: 0 | Q166: 0 | T166: 0 | U166: 1 | V166: 0 | W166: 0 | X166: 0 | Y166: 137280 | Z166: 32.12731102
E167: Excavation works, kg or m3 of removed masses (Required for IMPACT calculations) | F167: 137280 | G167: 32.12731102 | H167: - | I167: 0.05 | J167: 6864 | M167: 60 | N167: 0 | O167: 0 | P167: 0 | Q167: 0 | T167: 0 | U167: 1 | V167: 0 | W167: 0 | X167: 0 | Y167: 137280 | Z167: 32.12731102
E168: Ready-mix concrete, normal-strength, generic, C40/50 (5800/7300 PSI), 50% recycled binders in cement (400 kg/m3 / 24.97 lbs/ft3) | F168: 130318.56 | G168: 30.49814182 | H168: - | I168: 0.05 | J168: 6515.928 | M168: 60 | N168: 0 | O168: 0 | P168: 0 | Q168: 0 | S168: Concrete crushed to aggregate (for sub-base layers), Portland Cement 400 kg / m3 | T168: 0 | U168: 1 | V168: 0 | W168: 0 | X168: 0 | Y168: 130318.56 | Z168: 30.49814182
E169: Floor screed mortar, cement screed, 1500 kg/m3, EPD coverage: > 1500 kg/m3 (quick­mix Gruppe GmbH & Co. KG) | F169: 82500 | G169: 19.30727826 | H169: - | I169: 0.05 | J169: 4125 | M169: 60 | N169: 0 | O169: 0 | P169: 0 | Q169: 0 | S169: Cement/mortar use in a backfill | T169: 0 | U169: 1 | V169: 0 | W169: 0 | X169: 0 | Y169: 82500 | Z169: 19.30727826
E170: Ready-mix concrete, normal-strength, generic, C40/50 (5800/7300 PSI), 50% recycled binders in cement (400 kg/m3 / 24.97 lbs/ft3) | F170: 58287.84 | G170: =IF(AND(F170<>0,$D$31<>0),F170/$D$31,0) -> 13.64096419 | H170: - | I170: 0.05 | J170: 2914.392 | M170: 60 | N170: 0 | O170: 0 | P170: 0 | Q170: 0 | S170: Concrete crushed to aggregate (for sub-base layers), Portland Cement 400 kg / m3 | T170: 0 | U170: 1 | V170: 0 | W170: 0 | X170: 0 | Y170: 58287.84 | Z170: 13.64096419
E171: Ready-mix concrete, normal-strength, generic, C40/50 (5800/7300 PSI), 50% recycled binders in cement (400 kg/m3 / 24.97 lbs/ft3) | F171: 55444.56 | G171: =IF(AND(F171<>0,$D$31<>0),F171/$D$31,0) -> 12.97555816 | H171: - | I171: 0.05 | J171: 2772.228 | M171: 60 | N171: 0 | O171: 0 | P171: 0 | Q171: 0 | S171: Concrete crushed to aggregate (for sub-base layers), Portland Cement 400 kg / m3 | T171: 0 | U171: 1 | V171: 0 | W171: 0 | X171: 0 | Y171: 55444.56 | Z171: 12.97555816
E172: Excavation works, kg or m3 of removed masses (Required for IMPACT calculations) | F172: 35200 | G172: =IF(AND(F172<>0,$D$31<>0),F172/$D$31,0) -> 8.237772057 | H172: - | I172: 0.05 | J172: 1760 | M172: 60 | N172: 0 | O172: 0 | P172: 0 | Q172: 0 | T172: 0 | U172: 1 | V172: 0 | W172: 0 | X172: 0 | Y172: 35200 | Z172: 8.237772057
E173: Excavation works, kg or m3 of removed masses (Required for IMPACT calculations) | F173: 26136 | G173: 6.116545752 | H173: - | I173: 0.05 | J173: 1306.8 | M173: 60 | N173: 0 | O173: 0 | P173: 0 | Q173: 0 | T173: 0 | U173: 1 | V173: 0 | W173: 0 | X173: 0 | Y173: 26136 | Z173: 6.116545752
E174: Ready-mix concrete, normal-strength, generic, C40/50 (5800/7300 PSI), 50% recycled binders in cement (400 kg/m3 / 24.97 lbs/ft3) | F174: 23520 | G174: 5.504329511 | H174: - | I174: 0.05 | J174: 1176 | M174: 60 | N174: 0 | O174: 0 | P174: 0 | Q174: 0 | S174: Concrete crushed to aggregate (for sub-base layers), Portland Cement 400 kg / m3 | T174: 0 | U174: 1 | V174: 0 | W174: 0 | X174: 0 | Y174: 23520 | Z174: 5.504329511
E175: Reinforcement steel (rebar), generic, 90% recycled content, A615 | F175: 21900 | G175: =IF(AND(F175<>0,$D$31<>0),F175/$D$31,0) -> 5.125204774 | H175: - | I175: 0.05 | J175: 1095 | M175: 60 | N175: =IF(M175<>0,INT(59/M175),0) -> 0 | O175: 0 | P175: 0 | Q175: 0 | S175: Steel recycling | T175: 0 | U175: 1 | V175: 0 | W175: 0 | X175: 0 | Y175: 21900 | Z175: 5.125204774
B176: 2.1 | C176: Superstructure: Frame | E176: - | F176: =SUM(F177:F196) -> 88000 | G176: =IF(AND(F176<>0,$D$31<>0),F176/$D$31,0) -> 20.59443014 | H176: =SUMPRODUCT((C91:D454="Superstructure: Frame")*G91:G454) -> 25.04095483 | I176: - | J176: =SUM(J177:J196) -> 4400 | K176: - | L176: - | M176: - | N176: - | O176: =SUM(O177:O196) -> 0 | P176: - | Q176: =SUM(Q177:Q196) -> 0 | R176: - | S176: - | T176: =IF(W176<>0,W176/($F$176+$O$176),0) -> 0 | U176: =IF(Y176<>0,Y176/($F$176+$O$176),0) -> 1 | V176: 0 | W176: =SUM(W177:W196) -> 0 | X176: 0 | Y176: =SUM(Y177:Y196) -> 88000 | Z176: 20.59443014
B177: 2.1 | C177: Superstructure: Frame | E177: Structural steel profiles, generic, 90% recycled content (only virgin materials), I, H, U, L, and T sections, S235, S275 and S355 | F177: 19000 | G177: =IF(AND(F177<>0,$D$31<>0),F177/$D$31,0) -> 4.44652469 | H177: - | I177: 0.05 | J177: =I177*F177 -> 950 | M177: 60 | N177: =IF(M177<>0,INT(59/M177),0) -> 0 | O177: =F177*N177 -> 0 | P177: 0 | Q177: =O177*P177 -> 0 | S177: Steel recycling - 100% recycled | T177: 0 | U177: 1 | V177: 0 | W177: 0 | X177: 0 | Y177: 19000 | Z177: 4.44652469
E178: Structural steel profiles, generic, 90% recycled content (only virgin materials), I, H, U, L, and T sections, S235, S275 and S355 | F178: 33000 | G178: =IF(AND(F178<>0,$D$31<>0),F178/$D$31,0) -> 7.722911304 | H178: - | I178: 0.05 | J178: 1650 | M178: 60 | N178: =IF(M178<>0,INT(59/M178),0) -> 0 | O178: =F178*N178 -> 0 | P178: 0 | Q178: =O178*P178 -> 0 | S178: Steel recycling | T178: 0 | U178: 1 | V178: 0 | W178: 0 | X178: 0 | Y178: 33000 | Z178: 7.722911304
E179: Structural steel profiles, generic, 90% recycled content (only virgin materials), I, H, U, L, and T sections, S235, S275 and S355 | F179: 36000 | G179: =IF(AND(F179<>0,$D$31<>0),F179/$D$31,0) -> 8.424994149 | H179: - | I179: 0.05 | J179: 1800 | M179: 60 | N179: 0 | O179: 0 | P179: 0 | Q179: 0 | S179: Steel recycling | T179: 0 | U179: 1 | V179: 0 | W179: 0 | X179: 0 | Y179: 36000 | Z179: 8.424994149
G180: 0 | H180: - | I180: 0 | J180: 0 | N180: 0 | O180: 0 | P180: 0 | Q180: 0 | T180: 0 | U180: 0 | V180: 1 | W180: 0 | X180: 0 | Y180: 0 | Z180: 0
G181: 0 | H181: - | I181: 0 | J181: 0 | N181: 0 | O181: 0 | P181: 0 | Q181: 0 | T181: 0 | U181: 0 | V181: 1 | W181: 0 | X181: 0 | Y181: 0 | Z181: 0
G182: 0 | H182: - | I182: 0 | J182: 0 | N182: 0 | O182: 0 | P182: 0 | Q182: 0 | T182: 0 | U182: 0 | V182: 1 | W182: 0 | X182: 0 | Y182: 0 | Z182: 0
G183: 0 | H183: - | I183: 0 | J183: 0 | N183: 0 | O183: 0 | P183: 0 | Q183: 0 | T183: 0 | U183: 0 | V183: 1 | W183: 0 | X183: 0 | Y183: 0 | Z183: 0
G184: 0 | H184: - | I184: 0 | J184: 0 | N184: 0 | O184: 0 | P184: 0 | Q184: 0 | T184: 0 | U184: 0 | V184: 1 | W184: 0 | X184: 0 | Y184: 0 | Z184: 0
G185: 0 | H185: - | I185: 0 | J185: 0 | N185: 0 | O185: 0 | P185: 0 | Q185: 0 | T185: 0 | U185: 0 | V185: 1 | W185: 0 | X185: 0 | Y185: 0 | Z185: 0
G186: 0 | H186: - | I186: 0 | J186: 0 | N186: 0 | O186: 0 | P186: 0 | Q186: 0 | T186: 0 | U186: 0 | V186: 1 | W186: 0 | X186: 0 | Y186: 0 | Z186: 0
G187: 0 | H187: - | I187: 0 | J187: 0 | N187: 0 | O187: 0 | P187: 0 | Q187: 0 | T187: 0 | U187: 0 | V187: 1 | W187: 0 | X187: 0 | Y187: 0 | Z187: 0
G188: 0 | H188: - | I188: 0 | J188: 0 | N188: 0 | O188: 0 | P188: 0 | Q188: 0 | T188: 0 | U188: 0 | V188: 1 | W188: 0 | X188: 0 | Y188: 0 | Z188: 0
G189: 0 | H189: - | I189: 0 | J189: 0 | N189: 0 | O189: 0 | P189: 0 | Q189: 0 | T189: 0 | U189: 0 | V189: 1 | W189: 0 | X189: 0 | Y189: 0 | Z189: 0
G190: 0 | H190: - | I190: 0 | J190: 0 | N190: 0 | O190: 0 | P190: 0 | Q190: 0 | T190: 0 | U190: 0 | V190: 1 | W190: 0 | X190: 0 | Y190: 0 | Z190: 0
G191: =IF(AND(F191<>0,$D$31<>0),F191/$D$31,0) -> 0 | H191: - | I191: 0 | J191: 0 | N191: 0 | O191: 0 | P191: 0 | Q191: 0 | T191: 0 | U191: 0 | V191: 1 | W191: 0 | X191: 0 | Y191: 0 | Z191: 0
G192: =IF(AND(F192<>0,$D$31<>0),F192/$D$31,0) -> 0 | H192: - | I192: 0 | J192: 0 | N192: 0 | O192: 0 | P192: 0 | Q192: 0 | T192: 0 | U192: 0 | V192: 1 | W192: 0 | X192: 0 | Y192: 0 | Z192: 0
G193: =IF(AND(F193<>0,$D$31<>0),F193/$D$31,0) -> 0 | H193: - | I193: 0 | J193: 0 | N193: 0 | O193: 0 | P193: 0 | Q193: 0 | T193: 0 | U193: 0 | V193: 1 | W193: 0 | X193: 0 | Y193: 0 | Z193: 0
G194: =IF(AND(F194<>0,$D$31<>0),F194/$D$31,0) -> 0 | H194: - | I194: 0 | J194: 0 | N194: 0 | O194: 0 | P194: 0 | Q194: 0 | T194: 0 | U194: 0 | V194: 1 | W194: 0 | X194: 0 | Y194: 0 | Z194: 0
G195: 0 | H195: - | I195: 0 | J195: 0 | N195: 0 | O195: 0 | P195: 0 | Q195: 0 | T195: 0 | U195: 0 | V195: 1 | W195: 0 | X195: 0 | Y195: 0 | Z195: 0
G196: 0 | H196: - | I196: 0 | J196: 0 | N196: 0 | O196: 0 | P196: 0 | Q196: 0 | T196: 0 | U196: 0 | V196: 1 | W196: 0 | X196: 0 | Y196: 0 | Z196: 0
B197: 2.2 | C197: Superstructure: Upper Floors | E197: - | F197: =SUM(F198:F217) -> 522968.96 | G197: =IF(AND(F197<>0,$D$31<>0),F197/$D$31,0) -> 122.3891786 | H197: =SUMPRODUCT((C176:D459="Superstructure: Upper Floors")*G176:G459) -> 195.9674608 | I197: - | J197: =SUM(J198:J217) -> 26148.448 | K197: - | L197: - | M197: - | N197: - | O197: =SUM(O198:O217) -> 18481.92 | P197: - | Q197: =SUM(Q198:Q217) -> 0 | R197: - | S197: - | T197: =IF(W197<>0,W197/($F$197+$O$197),0) -> 0 | U197: =IF(Y197<>0,Y197/($F$197+$O$197),0) -> 1 | V197: 0 | W197: =SUM(W198:W217) -> 0 | X197: 0 | Y197: =SUM(Y198:Y217) -> 541450.88 | Z197: 126.7144582
B198: 2.2 | C198: Superstructure: Upper Floors | E198: Ready-mix concrete, normal-strength, generic, C40/50 (5800/7300 PSI), 50% recycled binders in cement (400 kg/m3 / 24.97 lbs/ft3) | F198: 314400 | G198: =IF(AND(F198<>0,$D$31<>0),F198/$D$31,0) -> 73.57828224 | H198: - | I198: 0.05 | J198: =I198*F198 -> 15720 | M198: 60 | N198: =IF(M198<>0,INT(59/M198),0) -> 0 | O198: =F198*N198 -> 0 | P198: 0 | Q198: =O198*P198 -> 0 | S198: Concrete crushed to aggregate (for sub-base layers), Portland Cement 400 kg / m3 | T198: 0 | U198: 1 | V198: 0 | W198: 0 | X198: 0 | Y198: 314400 | Z198: 73.57828224
E199: Flooring screed, C20/25 - XC1 - S3 - 20 CEM I, 50mm, 116.8kg/m2, 2336 kg/m3 (SNBPE) | F199: 131400 | G199: =IF(AND(F199<>0,$D$31<>0),F199/$D$31,0) -> 30.75122864 | H199: - | I199: 0.05 | J199: 6570 | M199: 60 | N199: =IF(M199<>0,INT(59/M199),0) -> 0 | O199: =F199*N199 -> 0 | P199: 0 | Q199: =O199*P199 -> 0 | S199: Cement/mortar use in a backfill | T199: 0 | U199: 1 | V199: 0 | W199: 0 | X199: 0 | Y199: 131400 | Z199: 30.75122864
E200: Ready-mix concrete, normal-strength, generic, C40/50 (5800/7300 PSI), 20% recycled binders in cement (400 kg/m3 / 24.97 lbs/ft3) | F200: 46800 | G200: =IF(AND(F200<>0,$D$31<>0),F200/$D$31,0) -> 10.95249239 | H200: - | I200: 0.05 | J200: 2340 | M200: 60 | N200: 0 | O200: 0 | P200: 0 | Q200: 0 | S200: Concrete crushed to aggregate (for sub-base layers), Portland Cement 400 kg / m3 | T200: 0 | U200: 1 | V200: 0 | W200: 0 | X200: 0 | Y200: 46800 | Z200: 10.95249239
E201: Steel sheets, generic, 90% recycled content (typical), S235, S275 and S355 | F201: 12600 | G201: 2.948747952 | H201: - | I201: 0.05 | J201: 630 | M201: 60 | N201: 0 | O201: 0 | P201: 0 | Q201: 0 | S201: Steel recycling | T201: 0 | U201: 1 | V201: 0 | W201: 0 | X201: 0 | Y201: 12600 | Z201: 2.948747952
E202: Suspended metal ceiling system, 5.901 kg/m2, SAS System 120 (Steel) (SAS International) | F202: 8084.37 | G202: 1.891965832 | H202: - | I202: 0.05 | J202: 404.2185 | M202: 26 | N202: 2 | O202: 16168.74 | P202: 0 | Q202: 0 | S202: Steel recycling | T202: 0 | U202: 1 | V202: 0 | W202: 0 | X202: 0 | Y202: 24253.11 | Z202: 5.675897496
E203: Reinforcement steel (rebar), generic, 90% recycled content, A615 | F203: 6188 | G203: 1.448162883 | H203: - | I203: 0.05 | J203: 309.4 | M203: 60 | N203: 0 | O203: 0 | P203: 0 | Q203: 0 | S203: Steel recycling | T203: 0 | U203: 1 | V203: 0 | W203: 0 | X203: 0 | Y203: 6188 | Z203: 1.448162883
E204: Reinforcement steel (rebar), generic, 90% recycled content, A615 | F204: 2340 | G204: 0.5476246197 | H204: - | I204: 0.05 | J204: 117 | M204: 60 | N204: 0 | O204: 0 | P204: 0 | Q204: 0 | S204: Steel recycling | T204: 0 | U204: 1 | V204: 0 | W204: 0 | X204: 0 | Y204: 2340 | Z204: 0.5476246197
E205: Suspended metal ceiling system, 5.901 kg/m2, SAS System 120 (Steel) (SAS International) | F205: 460.28 | G205: 0.1077182308 | H205: - | I205: 0.05 | J205: 23.014 | M205: 26 | N205: 2 | O205: 920.56 | P205: 0 | Q205: 0 | S205: Steel recycling | T205: 0 | U205: 1 | V205: 0 | W205: 0 | X205: 0 | Y205: 1380.84 | Z205: 0.3231546923
E206: Suspended metal ceiling system, 5.901 kg/m2, SAS System 120 (Steel) (SAS International) | F206: 194.73 | G206: 0.04557219752 | H206: - | I206: 0.05 | J206: 9.7365 | M206: 26 | N206: 2 | O206: 389.46 | P206: 0 | Q206: 0 | S206: Steel recycling | T206: 0 | U206: 1 | V206: 0 | W206: 0 | X206: 0 | Y206: 584.19 | Z206: 0.1367165926
E207: Suspended metal ceiling system, 5.901 kg/m2, SAS System 120 (Steel) (SAS International) | F207: 194.73 | G207: 0.04557219752 | H207: - | I207: 0.05 | J207: 9.7365 | M207: 26 | N207: 2 | O207: 389.46 | P207: 0 | Q207: 0 | S207: Steel recycling | T207: 0 | U207: 1 | V207: 0 | W207: 0 | X207: 0 | Y207: 584.19 | Z207: 0.1367165926
E208: Suspended metal ceiling system, 5.901 kg/m2, SAS System 120 (Steel) (SAS International) | F208: 188.83 | G208: 0.04419143459 | H208: - | I208: 0.05 | J208: 9.4415 | M208: 26 | N208: 2 | O208: 377.66 | P208: 0 | Q208: 0 | S208: Steel recycling | T208: 0 | U208: 1 | V208: 0 | W208: 0 | X208: 0 | Y208: 566.49 | Z208: 0.1325743038
E209: Suspended metal ceiling system, 5.901 kg/m2, SAS System 120 (Steel) (SAS International) | F209: 118.02 | G209: 0.02761993915 | H209: - | I209: 0.05 | J209: 5.901 | M209: 26 | N209: 2 | O209: 236.04 | P209: 0 | Q209: 0 | S209: Steel recycling - 100% recycled | T209: 0 | U209: 1 | V209: 0 | W209: 0 | X209: 0 | Y209: 354.06 | Z209: 0.08285981746
G210: 0 | H210: - | I210: 0 | J210: 0 | N210: 0 | O210: 0 | P210: 0 | Q210: 0 | T210: 0 | U210: 0 | V210: 1 | W210: 0 | X210: 0 | Y210: 0 | Z210: 0
... 272 more rows

Sheet Post-Construction Stage
A4: Post-Construction Stage - Circular Economy Statement
D6: Project Details
C7: Project name
C8: Planning application reference number (if applicable)
C9: Applicant
C10: London Borough
C11: Brief description of the project
C12: Author/s
C13: Date of assessment
C14: Number of Use Types
C15: Use Class / Type | D15: Floor Area by use type (m2)
C16: Use Class / Type 1 | D16: Use Class / Type 1 GIA
C17: Use Class / Type 2 | D17: Use Class / Type 2 GIA
C18: Use Class / Type 3 | D18: Use Class / Type 3 GIA
C19: Use Class / Type 4 | D19: Use Class / Type 4 GIA
C20: Use Class / Type 5 | D20: Use Class / Type 5 GIA
C21: Use Class / Type 6 | D21: Use Class / Type 6 GIA
C22: Use Class / Type 7 | D22: Use Class / Type 7 GIA
C23: Use Class / Type 8 | D23: Use Class / Type 8 GIA
C24: Use Class / Type 9 | D24: Use Class / Type 9 GIA
C25: Use Class / Type 10 | D25: Use Class / Type 10 GIA
C26: Use Class / Type 11 | D26: Use Class / Type 11 GIA
C27: Use Class / Type 12 | D27: Use Class / Type 12 GIA
C28: Use Class / Type 13 | D28: Use Class / Type 13 GIA
C29: Use Class / Type 14 | D29: Use Class / Type 14 GIA
C30: Use Class / Type 15 | D30: Use Class / Type 15 GIA
C31: Overall GIA (m2) | D31: =SUM(D16:D30) -> 0
B34: Bill of Materials
B35: Please click the + symbol to the left hand side of the Bill of Materials table to view or hide the input rows for each Building Element Category. The rows for substructure and frame have been unhidden to highlight this. A fixed number of rows has been provided for each Building Element Category based on a sub-set of typical WLCA submissions. Should the number of rows provided not be sufficient to allow input of all materials for a given Building Element Category, Applicants should prioritise the inclusion of the materials with the highest quantity.
C36: BUILDING ELEMENT CATEGORY - LEVEL 1 (based on the RICS New Rules of Measurement (NRM) classification system level 2 sub-elements https://www.rics.org/globalassets/rics-website/media/products/data-products/bcis-construction/bcis-elemental-standard-form-cost-analysis-4th-nrm-edition-2012.pdf) | E36: PRODUCT AND CONSTRUCTION STAGE (MODULE A) | M36: USE STAGE (MODULE B) | R36: END OF LIFE STAGE (MODULE C) | W36: BENEFITS BEYOND THE SYSTEM BOUNDARY (MODULE D)
C37: Building Element Category | E37: Material Type | F37: Material quantity (Module A) (kg) | G37: Material intensity (Module A) (kg/m2 GIA) | H37: Performance Indicator (LPG Appendix 1) | I37: Construction Waste Factor (Module A) | J37: Construction Waste (Module A) (kg) | K37: Recycled Content by mass (kg) | L37: Recycled Content by value (%) | M37: Expected Lifespan (years) | N37: Number of Replacements (over assumed 60-year period) | O37: Repair and Replacement quantities of materials (Module B) (kg) | P37: Construction Waste Factor (Module B) | Q37: Construction Waste (Module B) (kg) | R37: Design for Disassembly | S37: Assumed End of Life Scenario (Description) | T37: % Reusing | U37: % Recycling | V37: % Landfill | W37: Estimated reusable materials (kg) | X37: Estimated reusable materials intensity (kg/m2 GIA) | Y37: Estimated recyclable materials (kg) | Z37: Estimated recyclable materials intensity (kg/m2 GIA)
B38: 0.1 | C38: Demolition: Toxic/Hazardous/Contaminated Material Treatment | E38: - | F38: =SUM(F39:F53) -> 0 | G38: =IF(AND(F38<>0,$D$31<>0),F38/$D$31,0) -> 0 | H38: - | I38: - | J38: =SUM(J39:J53) -> 0 | K38: - | L38: - | M38: - | N38: - | O38: =SUM(O39:O53) -> 0 | P38: - | Q38: =SUM(Q39:Q53) -> 0 | R38: - | S38: - | T38: =IF(W38<>0,W38/($F$91+$O$91),0) -> 0 | U38: =IF(Y38<>0,Y38/($F$91+$O$91),0) -> 0 | V38: =1-T38-U38 -> 1 | W38: =SUM(W39:W53) -> 0 | X38: =IF(AND(W38<>0,$D$31<>0),W38/$D$31,0) -> 0 | Y38: =SUM(Y39:Y53) -> 0 | Z38: =IF(AND(Y38<>0,$D$31<>0),Y38/$D$31,0) -> 0
B39: 0.1 | C39: Demolition: Toxic/Hazardous/Contaminated Material Treatment | G39: =IF(AND(F39<>0,$D$31<>0),F39/$D$31,0) -> 0 | H39: - | I39: 0 | J39: =F39*I39 -> 0 | N39: =IF(M39<>0,INT(59/M39),0) -> 0 | O39: =F39*N39 -> 0 | P39: 0 | Q39: =O39*P39 -> 0 | T39: 0 | U39: 0 | V39: =1-T39-U39 -> 1 | W39: =T39*(F39+O39) -> 0 | X39: =IF(AND(W39<>0,$D$31<>0),W39/$D$31,0) -> 0 | Y39: =U39*(F39+O39) -> 0 | Z39: =IF(AND(Y39<>0,$D$31<>0),Y39/$D$31,0) -> 0
G40: =IF(AND(F40<>0,$D$31<>0),F40/$D$31,0) -> 0 | H40: - | I40: 0 | J40: =F40*I40 -> 0 | N40: =IF(M40<>0,INT(59/M40),0) -> 0 | O40: =F40*N40 -> 0 | P40: 0 | Q40: =O40*P40 -> 0 | T40: 0 | U40: 0 | V40: =1-T40-U40 -> 1 | W40: =T40*(F40+O40) -> 0 | X40: =IF(AND(W40<>0,$D$31<>0),W40/$D$31,0) -> 0 | Y40: =U40*(F40+O40) -> 0 | Z40: 0
G41: 0 | H41: - | I41: 0 | J41: 0 | N41: 0 | O41: 0 | P41: 0 | Q41: 0 | T41: 0 | U41: 0 | V41: 1 | W41: 0 | X41: 0 | Y41: 0 | Z41: 0
G42: 0 | H42: - | I42: 0 | J42: 0 | N42: 0 | O42: 0 | P42: 0 | Q42: 0 | T42: 0 | U42: 0 | V42: 1 | W42: 0 | X42: 0 | Y42: 0 | Z42: 0
G43: 0 | H43: - | I43: 0 | J43: 0 | N43: 0 | O43: 0 | P43: 0 | Q43: 0 | T43: 0 | U43: 0 | V43: 1 | W43: 0 | X43: 0 | Y43: 0 | Z43: 0
G44: 0 | H44: - | I44: 0 | J44: 0 | N44: 0 | O44: 0 | P44: 0 | Q44: 0 | T44: 0 | U44: 0 | V44: 1 | W44: 0 | X44: 0 | Y44: 0 | Z44: 0
G45: 0 | H45: - | I45: 0 | J45: 0 | N45: 0 | O45: 0 | P45: 0 | Q45: 0 | T45: 0 | U45: 0 | V45: 1 | W45: 0 | X45: 0 | Y45: 0 | Z45: 0
G46: 0 | H46: - | I46: 0 | J46: 0 | N46: 0 | O46: 0 | P46: 0 | Q46: 0 | T46: 0 | U46: 0 | V46: 1 | W46: 0 | X46: 0 | Y46: 0 | Z46: 0
G47: 0 | H47: - | I47: 0 | J47: 0 | N47: 0 | O47: 0 | P47: 0 | Q47: 0 | T47: 0 | U47: 0 | V47: 1 | W47: 0 | X47: 0 | Y47: 0 | Z47: 0
G48: 0 | H48: - | I48: 0 | J48: 0 | N48: 0 | O48: 0 | P48: 0 | Q48: 0 | T48: 0 | U48: 0 | V48: 1 | W48: 0 | X48: 0 | Y48: 0 | Z48: 0
G49: 0 | H49: - | I49: 0 | J49: 0 | N49: 0 | O49: 0 | P49: 0 | Q49: 0 | T49: 0 | U49: 0 | V49: 1 | W49: 0 | X49: 0 | Y49: 0 | Z49: 0
G50: 0 | H50: - | I50: 0 | J50: 0 | N50: 0 | O50: 0 | P50: 0 | Q50: 0 | T50: 0 | U50: 0 | V50: 1 | W50: 0 | X50: 0 | Y50: 0 | Z50: 0
G51: 0 | H51: - | I51: 0 | J51: 0 | N51: 0 | O51: 0 | P51: 0 | Q51: 0 | T51: 0 | U51: 0 | V51: 1 | W51: 0 | X51: 0 | Y51: 0 | Z51: 0
G52: 0 | H52: - | I52: 0 | J52: 0 | N52: 0 | O52: 0 | P52: 0 | Q52: 0 | T52: 0 | U52: 0 | V52: 1 | W52: 0 | X52: 0 | Y52: 0 | Z52: 0
G53: 0 | H53: - | I53: 0 | J53: 0 | N53: 0 | O53: 0 | P53: 0 | Q53: 0 | T53: 0 | U53: 0 | V53: 1 | W53: 0 | X53: 0 | Y53: 0 | Z53: 0
B54: 0.2 | C54: Major Demolition Works | E54: - | F54: =SUM(F55:F69) -> 0 | G54: =IF(AND(F54<>0,$D$31<>0),F54/$D$31,0) -> 0 | H54: - | I54: - | J54: =SUM(J55:J69) -> 0 | K54: - | L54: - | M54: - | N54: - | O54: =SUM(O55:O69) -> 0 | P54: - | Q54: =SUM(Q55:Q69) -> 0 | R54: - | S54: - | T54: =IF(W54<>0,W54/($F$107+$O$107),0) -> 0 | U54: =IF(Y54<>0,Y54/($F$107+$O$107),0) -> 0 | V54: =1-T54-U54 -> 1 | W54: =SUM(W55:W69) -> 0 | X54: 0 | Y54: =SUM(Y55:Y69) -> 0 | Z54: 0
B55: 0.2 | C55: Major Demolition Works | G55: =IF(AND(F55<>0,$D$31<>0),F55/$D$31,0) -> 0 | H55: - | I55: 0 | J55: =I55*F55 -> 0 | N55: =IF(M55<>0,INT(59/M55),0) -> 0 | O55: =F55*N55 -> 0 | P55: 0 | Q55: =O55*P55 -> 0 | T55: 0 | U55: 0 | V55: 1 | W55: 0 | X55: 0 | Y55: 0 | Z55: 0
G56: =IF(AND(F56<>0,$D$31<>0),F56/$D$31,0) -> 0 | H56: - | I56: 0 | J56: 0 | N56: =IF(M56<>0,INT(59/M56),0) -> 0 | O56: =F56*N56 -> 0 | P56: 0 | Q56: =O56*P56 -> 0 | T56: 0 | U56: 0 | V56: 1 | W56: 0 | X56: 0 | Y56: 0 | Z56: 0
G57: =IF(AND(F57<>0,$D$31<>0),F57/$D$31,0) -> 0 | H57: - | I57: 0 | J57: 0 | N57: 0 | O57: 0 | P57: 0 | Q57: 0 | T57: 0 | U57: 0 | V57: 1 | W57: 0 | X57: 0 | Y57: 0 | Z57: 0
G58: 0 | H58: - | I58: 0 | J58: 0 | N58: 0 | O58: 0 | P58: 0 | Q58: 0 | T58: 0 | U58: 0 | V58: 1 | W58: 0 | X58: 0 | Y58: 0 | Z58: 0
G59: 0 | H59: - | I59: 0 | J59: 0 | N59: 0 | O59: 0 | P59: 0 | Q59: 0 | T59: 0 | U59: 0 | V59: 1 | W59: 0 | X59: 0 | Y59: 0 | Z59: 0
G60: 0 | H60: - | I60: 0 | J60: 0 | N60: 0 | O60: 0 | P60: 0 | Q60: 0 | T60: 0 | U60: 0 | V60: 1 | W60: 0 | X60: 0 | Y60: 0 | Z60: 0
G61: 0 | H61: - | I61: 0 | J61: 0 | N61: 0 | O61: 0 | P61: 0 | Q61: 0 | T61: 0 | U61: 0 | V61: 1 | W61: 0 | X61: 0 | Y61: 0 | Z61: 0
G62: 0 | H62: - | I62: 0 | J62: 0 | N62: 0 | O62: 0 | P62: 0 | Q62: 0 | T62: 0 | U62: 0 | V62: 1 | W62: 0 | X62: 0 | Y62: 0 | Z62: 0
G63: 0 | H63: - | I63: 0 | J63: 0 | N63: 0 | O63: 0 | P63: 0 | Q63: 0 | T63: 0 | U63: 0 | V63: 1 | W63: 0 | X63: 0 | Y63: 0 | Z63: 0
G64: 0 | H64: - | I64: 0 | J64: 0 | N64: 0 | O64: 0 | P64: 0 | Q64: 0 | T64: 0 | U64: 0 | V64: 1 | W64: 0 | X64: 0 | Y64: 0 | Z64: 0
G65: 0 | H65: - | I65: 0 | J65: 0 | N65: 0 | O65: 0 | P65: 0 | Q65: 0 | T65: 0 | U65: 0 | V65: 1 | W65: 0 | X65: 0 | Y65: 0 | Z65: 0
G66: 0 | H66: - | I66: 0 | J66: 0 | N66: 0 | O66: 0 | P66: 0 | Q66: 0 | T66: 0 | U66: 0 | V66: 1 | W66: 0 | X66: 0 | Y66: 0 | Z66: 0
G67: 0 | H67: - | I67: 0 | J67: 0 | N67: 0 | O67: 0 | P67: 0 | Q67: 0 | T67: 0 | U67: 0 | V67: 1 | W67: 0 | X67: 0 | Y67: 0 | Z67: 0
G68: 0 | H68: - | I68: 0 | J68: 0 | N68: 0 | O68: 0 | P68: 0 | Q68: 0 | T68: 0 | U68: 0 | V68: 1 | W68: 0 | X68: 0 | Y68: 0 | Z68: 0
G69: 0 | H69: - | I69: 0 | J69: 0 | N69: 0 | O69: 0 | P69: 0 | Q69: 0 | T69: 0 | U69: 0 | V69: 1 | W69: 0 | X69: 0 | Y69: 0 | Z69: 0
B70: 0.3 | C70: Temporary Support to Adjacent Structures | E70: - | F70: =SUM(F71:F85) -> 0 | G70: =IF(AND(F70<>0,$D$31<>0),F70/$D$31,0) -> 0 | H70: - | I70: - | J70: =SUM(J71:J85) -> 0 | K70: - | L70: - | M70: - | N70: - | O70: =SUM(O71:O85) -> 0 | P70: - | Q70: =SUM(Q71:Q85) -> 0 | R70: - | S70: - | T70: =IF(W70<>0,W70/($F$123+$O$123),0) -> 0 | U70: =IF(Y70<>0,Y70/($F$123+$O$123),0) -> 0 | V70: 1 | W70: =SUM(W71:W85) -> 0 | X70: 0 | Y70: =SUM(Y71:Y85) -> 0 | Z70: 0
B71: 0.3 | C71: Temporary Support to Adjacent Structures | G71: =IF(AND(F71<>0,$D$31<>0),F71/$D$31,0) -> 0 | H71: - | I71: 0 | J71: =I71*F71 -> 0 | N71: =IF(M71<>0,INT(59/M71),0) -> 0 | O71: =F71*N71 -> 0 | P71: 0 | Q71: =O71*P71 -> 0 | T71: 0 | U71: 0 | V71: 1 | W71: 0 | X71: 0 | Y71: 0 | Z71: 0
G72: =IF(AND(F72<>0,$D$31<>0),F72/$D$31,0) -> 0 | H72: - | I72: 0 | J72: 0 | N72: =IF(M72<>0,INT(59/M72),0) -> 0 | O72: =F72*N72 -> 0 | P72: 0 | Q72: =O72*P72 -> 0 | T72: 0 | U72: 0 | V72: 1 | W72: 0 | X72: 0 | Y72: 0 | Z72: 0
G73: =IF(AND(F73<>0,$D$31<>0),F73/$D$31,0) -> 0 | H73: - | I73: 0 | J73: 0 | N73: 0 | O73: 0 | P73: 0 | Q73: 0 | T73: 0 | U73: 0 | V73: 1 | W73: 0 | X73: 0 | Y73: 0 | Z73: 0
G74: 0 | H74: - | I74: 0 | J74: 0 | N74: 0 | O74: 0 | P74: 0 | Q74: 0 | T74: 0 | U74: 0 | V74: 1 | W74: 0 | X74: 0 | Y74: 0 | Z74: 0
G75: 0 | H75: - | I75: 0 | J75: 0 | N75: 0 | O75: 0 | P75: 0 | Q75: 0 | T75: 0 | U75: 0 | V75: 1 | W75: 0 | X75: 0 | Y75: 0 | Z75: 0
G76: 0 | H76: - | I76: 0 | J76: 0 | N76: 0 | O76: 0 | P76: 0 | Q76: 0 | T76: 0 | U76: 0 | V76: 1 | W76: 0 | X76: 0 | Y76: 0 | Z76: 0
G77: 0 | H77: - | I77: 0 | J77: 0 | N77: 0 | O77: 0 | P77: 0 | Q77: 0 | T77: 0 | U77: 0 | V77: 1 | W77: 0 | X77: 0 | Y77: 0 | Z77: 0
G78: 0 | H78: - | I78: 0 | J78: 0 | N78: 0 | O78: 0 | P78: 0 | Q78: 0 | T78: 0 | U78: 0 | V78: 1 | W78: 0 | X78: 0 | Y78: 0 | Z78: 0
G79: 0 | H79: - | I79: 0 | J79: 0 | N79: 0 | O79: 0 | P79: 0 | Q79: 0 | T79: 0 | U79: 0 | V79: 1 | W79: 0 | X79: 0 | Y79: 0 | Z79: 0
G80: 0 | H80: - | I80: 0 | J80: 0 | N80: 0 | O80: 0 | P80: 0 | Q80: 0 | T80: 0 | U80: 0 | V80: 1 | W80: 0 | X80: 0 | Y80: 0 | Z80: 0
G81: 0 | H81: - | I81: 0 | J81: 0 | N81: 0 | O81: 0 | P81: 0 | Q81: 0 | T81: 0 | U81: 0 | V81: 1 | W81: 0 | X81: 0 | Y81: 0 | Z81: 0
G82: 0 | H82: - | I82: 0 | J82: 0 | N82: 0 | O82: 0 | P82: 0 | Q82: 0 | T82: 0 | U82: 0 | V82: 1 | W82: 0 | X82: 0 | Y82: 0 | Z82: 0
G83: 0 | H83: - | I83: 0 | J83: 0 | N83: 0 | O83: 0 | P83: 0 | Q83: 0 | T83: 0 | U83: 0 | V83: 1 | W83: 0 | X83: 0 | Y83: 0 | Z83: 0
G84: 0 | H84: - | I84: 0 | J84: 0 | N84: 0 | O84: 0 | P84: 0 | Q84: 0 | T84: 0 | U84: 0 | V84: 1 | W84: 0 | X84: 0 | Y84: 0 | Z84: 0
G85: 0 | H85: - | I85: 0 | J85: 0 | N85: 0 | O85: 0 | P85: 0 | Q85: 0 | T85: 0 | U85: 0 | V85: 1 | W85: 0 | X85: 0 | Y85: 0 | Z85: 0
B86: 0.4 | C86: Specialist Ground Works | E86: - | F86: =SUM(F87:F101) -> 0 | G86: =IF(AND(F86<>0,$D$31<>0),F86/$D$31,0) -> 0 | H86: - | I86: - | J86: =SUM(J87:J101) -> 0 | K86: - | L86: - | M86: - | N86: - | O86: =SUM(O87:O101) -> 0 | P86: - | Q86: =SUM(Q87:Q101) -> 0 | R86: - | S86: - | T86: =IF(W86<>0,W86/($F$139+$O$139),0) -> 0 | U86: =IF(Y86<>0,Y86/($F$139+$O$139),0) -> 0 | V86: 1 | W86: =SUM(W87:W101) -> 0 | X86: 0 | Y86: =SUM(Y87:Y101) -> 0 | Z86: 0
B87: 0.4 | C87: Specialist Ground Works | G87: =IF(AND(F87<>0,$D$31<>0),F87/$D$31,0) -> 0 | H87: - | I87: 0 | J87: =I87*F87 -> 0 | N87: =IF(M87<>0,INT(59/M87),0) -> 0 | O87: =F87*N87 -> 0 | P87: 0 | Q87: =O87*P87 -> 0 | T87: 0 | U87: 0 | V87: 1 | W87: 0 | X87: 0 | Y87: 0 | Z87: 0
G88: =IF(AND(F88<>0,$D$31<>0),F88/$D$31,0) -> 0 | H88: - | I88: 0 | J88: 0 | N88: =IF(M88<>0,INT(59/M88),0) -> 0 | O88: =F88*N88 -> 0 | P88: 0 | Q88: =O88*P88 -> 0 | T88: 0 | U88: 0 | V88: 1 | W88: 0 | X88: 0 | Y88: 0 | Z88: 0
G89: =IF(AND(F89<>0,$D$31<>0),F89/$D$31,0) -> 0 | H89: - | I89: 0 | J89: 0 | N89: 0 | O89: 0 | P89: 0 | Q89: 0 | T89: 0 | U89: 0 | V89: 1 | W89: 0 | X89: 0 | Y89: 0 | Z89: 0
G90: 0 | H90: - | I90: 0 | J90: 0 | N90: 0 | O90: 0 | P90: 0 | Q90: 0 | T90: 0 | U90: 0 | V90: 1 | W90: 0 | X90: 0 | Y90: 0 | Z90: 0
G91: 0 | H91: - | I91: 0 | J91: 0 | N91: 0 | O91: 0 | P91: 0 | Q91: 0 | T91: 0 | U91: 0 | V91: 1 | W91: 0 | X91: 0 | Y91: 0 | Z91: 0
G92: 0 | H92: - | I92: 0 | J92: 0 | N92: 0 | O92: 0 | P92: 0 | Q92: 0 | T92: 0 | U92: 0 | V92: 1 | W92: 0 | X92: 0 | Y92: 0 | Z92: 0
G93: 0 | H93: - | I93: 0 | J93: 0 | N93: 0 | O93: 0 | P93: 0 | Q93: 0 | T93: 0 | U93: 0 | V93: 1 | W93: 0 | X93: 0 | Y93: 0 | Z93: 0
G94: 0 | H94: - | I94: 0 | J94: 0 | N94: 0 | O94: 0 | P94: 0 | Q94: 0 | T94: 0 | U94: 0 | V94: 1 | W94: 0 | X94: 0 | Y94: 0 | Z94: 0
G95: 0 | H95: - | I95: 0 | J95: 0 | N95: 0 | O95: 0 | P95: 0 | Q95: 0 | T95: 0 | U95: 0 | V95: 1 | W95: 0 | X95: 0 | Y95: 0 | Z95: 0
G96: 0 | H96: - | I96: 0 | J96: 0 | N96: 0 | O96: 0 | P96: 0 | Q96: 0 | T96: 0 | U96: 0 | V96: 1 | W96: 0 | X96: 0 | Y96: 0 | Z96: 0
G97: 0 | H97: - | I97: 0 | J97: 0 | N97: 0 | O97: 0 | P97: 0 | Q97: 0 | T97: 0 | U97: 0 | V97: 1 | W97: 0 | X97: 0 | Y97: 0 | Z97: 0
G98: 0 | H98: - | I98: 0 | J98: 0 | N98: 0 | O98: 0 | P98: 0 | Q98: 0 | T98: 0 | U98: 0 | V98: 1 | W98: 0 | X98: 0 | Y98: 0 | Z98: 0
G99: 0 | H99: - | I99: 0 | J99: 0 | N99: 0 | O99: 0 | P99: 0 | Q99: 0 | T99: 0 | U99: 0 | V99: 1 | W99: 0 | X99: 0 | Y99: 0 | Z99: 0
G100: 0 | H100: - | I100: 0 | J100: 0 | N100: 0 | O100: 0 | P100: 0 | Q100: 0 | T100: 0 | U100: 0 | V100: 1 | W100: 0 | X100: 0 | Y100: 0 | Z100: 0
G101: 0 | H101: - | I101: 0 | J101: 0 | N101: 0 | O101: 0 | P101: 0 | Q101: 0 | T101: 0 | U101: 0 | V101: 1 | W101: 0 | X101: 0 | Y101: 0 | Z101: 0
B102: 1 | C102: Substructure | E102: - | F102: =SUM(F103:F122) -> 0 | G102: =IF(AND(F102<>0,$D$31<>0),F102/$D$31,0) -> 0 | H102: =SUMPRODUCT((C38:D401="Substructure")*G38:G401) -> 0 | I102: - | J102: =SUM(J103:J122) -> 0 | K102: - | L102: - | M102: - | N102: - | O102: =SUM(O103:O122) -> 0 | P102: - | Q102: =SUM(Q103:Q122) -> 0 | R102: - | S102: - | T102: =IF(W102<>0,W102/($F$155+$O$155),0) -> 0 | U102: =IF(Y102<>0,Y102/($F$155+$O$155),0) -> 0 | V102: 1 | W102: =SUM(W103:W122) -> 0 | X102: 0 | Y102: =SUM(Y103:Y122) -> 0 | Z102: 0
B103: 1 | C103: Substructure | G103: =IF(AND(F103<>0,$D$31<>0),F103/$D$31,0) -> 0 | H103: - | I103: 0 | J103: =I103*F103 -> 0 | N103: =IF(M103<>0,INT(59/M103),0) -> 0 | O103: =F103*N103 -> 0 | P103: 0 | Q103: =O103*P103 -> 0 | T103: 0 | U103: 0 | V103: 1 | W103: =T103*(F103+O103) -> 0 | X103: 0 | Y103: =U103*(F103+O103) -> 0 | Z103: 0
G104: =IF(AND(F104<>0,$D$31<>0),F104/$D$31,0) -> 0 | H104: - | I104: 0 | J104: 0 | N104: =IF(M104<>0,INT(59/M104),0) -> 0 | O104: =F104*N104 -> 0 | P104: 0 | Q104: =O104*P104 -> 0 | T104: 0 | U104: 0 | V104: =1-T104-U104 -> 1 | W104: 0 | X104: =IF(AND(W104<>0,$D$31<>0),W104/$D$31,0) -> 0 | Y104: 0 | Z104: 0
G105: =IF(AND(F105<>0,$D$31<>0),F105/$D$31,0) -> 0 | H105: - | I105: 0 | J105: 0 | N105: 0 | O105: 0 | P105: 0 | Q105: 0 | T105: 0 | U105: 0 | V105: 1 | W105: 0 | X105: 0 | Y105: 0 | Z105: 0
G106: 0 | H106: - | I106: 0 | J106: 0 | N106: 0 | O106: 0 | P106: 0 | Q106: 0 | T106: 0 | U106: 0 | V106: 1 | W106: 0 | X106: 0 | Y106: 0 | Z106: 0
G107: 0 | H107: - | I107: 0 | J107: 0 | N107: 0 | O107: 0 | P107: 0 | Q107: 0 | T107: 0 | U107: 0 | V107: 1 | W107: 0 | X107: 0 | Y107: 0 | Z107: 0
G108: 0 | H108: - | I108: 0 | J108: 0 | N108: 0 | O108: 0 | P108: 0 | Q108: 0 | T108: 0 | U108: 0 | V108: 1 | W108: 0 | X108: 0 | Y108: 0 | Z108: 0
G109: 0 | H109: - | I109: 0 | J109: 0 | N109: 0 | O109: 0 | P109: 0 | Q109: 0 | T109: 0 | U109: 0 | V109: 1 | W109: 0 | X109: 0 | Y109: 0 | Z109: 0
G110: 0 | H110: - | I110: 0 | J110: 0 | N110: 0 | O110: 0 | P110: 0 | Q110: 0 | T110: 0 | U110: 0 | V110: 1 | W110: 0 | X110: 0 | Y110: 0 | Z110: 0
G111: 0 | H111: - | I111: 0 | J111: 0 | N111: 0 | O111: 0 | P111: 0 | Q111: 0 | T111: 0 | U111: 0 | V111: 1 | W111: 0 | X111: 0 | Y111: 0 | Z111: 0
G112: 0 | H112: - | I112: 0 | J112: 0 | N112: 0 | O112: 0 | P112: 0 | Q112: 0 | T112: 0 | U112: 0 | V112: 1 | W112: 0 | X112: 0 | Y112: 0 | Z112: 0
G113: 0 | H113: - | I113: 0 | J113: 0 | N113: 0 | O113: 0 | P113: 0 | Q113: 0 | T113: 0 | U113: 0 | V113: 1 | W113: 0 | X113: 0 | Y113: 0 | Z113: 0
G114: 0 | H114: - | I114: 0 | J114: 0 | N114: 0 | O114: 0 | P114: 0 | Q114: 0 | T114: 0 | U114: 0 | V114: 1 | W114: 0 | X114: 0 | Y114: 0 | Z114: 0
G115: 0 | H115: - | I115: 0 | J115: 0 | N115: 0 | O115: 0 | P115: 0 | Q115: 0 | T115: 0 | U115: 0 | V115: 1 | W115: 0 | X115: 0 | Y115: 0 | Z115: 0
G116: 0 | H116: - | I116: 0 | J116: 0 | N116: 0 | O116: 0 | P116: 0 | Q116: 0 | T116: 0 | U116: 0 | V116: 1 | W116: 0 | X116: 0 | Y116: 0 | Z116: 0
G117: =IF(AND(F117<>0,$D$31<>0),F117/$D$31,0) -> 0 | H117: - | I117: 0 | J117: 0 | N117: 0 | O117: 0 | P117: 0 | Q117: 0 | T117: 0 | U117: 0 | V117: 1 | W117: 0 | X117: 0 | Y117: 0 | Z117: 0
G118: =IF(AND(F118<>0,$D$31<>0),F118/$D$31,0) -> 0 | H118: - | I118: 0 | J118: 0 | N118: 0 | O118: 0 | P118: 0 | Q118: 0 | T118: 0 | U118: 0 | V118: 1 | W118: 0 | X118: 0 | Y118: 0 | Z118: 0
G119: =IF(AND(F119<>0,$D$31<>0),F119/$D$31,0) -> 0 | H119: - | I119: 0 | J119: 0 | N119: 0 | O119: 0 | P119: 0 | Q119: 0 | T119: 0 | U119: 0 | V119: 1 | W119: 0 | X119: 0 | Y119: 0 | Z119: 0
G120: 0 | H120: - | I120: 0 | J120: 0 | N120: 0 | O120: 0 | P120: 0 | Q120: 0 | T120: 0 | U120: 0 | V120: 1 | W120: 0 | X120: 0 | Y120: 0 | Z120: 0
G121: 0 | H121: - | I121: 0 | J121: 0 | N121: 0 | O121: 0 | P121: 0 | Q121: 0 | T121: 0 | U121: 0 | V121: 1 | W121: 0 | X121: 0 | Y121: 0 | Z121: 0
G122: =IF(AND(F122<>0,$D$31<>0),F122/$D$31,0) -> 0 | H122: - | I122: 0 | J122: 0 | N122: =IF(M122<>0,INT(59/M122),0) -> 0 | O122: 0 | P122: 0 | Q122: 0 | T122: 0 | U122: 0 | V122: 1 | W122: 0 | X122: 0 | Y122: 0 | Z122: 0
B123: 2.1 | C123: Superstructure: Frame | E123: - | F123: =SUM(F124:F143) -> 0 | G123: =IF(AND(F123<>0,$D$31<>0),F123/$D$31,0) -> 0 | H123: =SUMPRODUCT((C38:D401="Superstructure: Frame")*G38:G401) -> 0 | I123: - | J123: =SUM(J124:J143) -> 0 | K123: - | L123: - | M123: - | N123: - | O123: =SUM(O124:O143) -> 0 | P123: - | Q123: =SUM(Q124:Q143) -> 0 | R123: - | S123: - | T123: =IF(W123<>0,W123/($F$176+$O$176),0) -> 0 | U123: =IF(Y123<>0,Y123/($F$176+$O$176),0) -> 0 | V123: 1 | W123: =SUM(W124:W143) -> 0 | X123: 0 | Y123: =SUM(Y124:Y143) -> 0 | Z123: 0
B124: 2.1 | C124: Superstructure: Frame | G124: =IF(AND(F124<>0,$D$31<>0),F124/$D$31,0) -> 0 | H124: - | I124: 0 | J124: =I124*F124 -> 0 | N124: =IF(M124<>0,INT(59/M124),0) -> 0 | O124: =F124*N124 -> 0 | P124: 0 | Q124: =O124*P124 -> 0 | T124: 0 | U124: 0 | V124: 1 | W124: =T124*(F124+O124) -> 0 | X124: 0 | Y124: =U124*(F124+O124) -> 0 | Z124: 0
G125: =IF(AND(F125<>0,$D$31<>0),F125/$D$31,0) -> 0 | H125: - | I125: 0 | J125: 0 | N125: =IF(M125<>0,INT(59/M125),0) -> 0 | O125: =F125*N125 -> 0 | P125: 0 | Q125: =O125*P125 -> 0 | T125: 0 | U125: 0 | V125: 1 | W125: 0 | X125: 0 | Y125: 0 | Z125: 0
G126: =IF(AND(F126<>0,$D$31<>0),F126/$D$31,0) -> 0 | H126: - | I126: 0 | J126: 0 | N126: 0 | O126: 0 | P126: 0 | Q126: 0 | T126: 0 | U126: 0 | V126: 1 | W126: 0 | X126: 0 | Y126: 0 | Z126: 0
G127: 0 | H127: - | I127: 0 | J127: 0 | N127: 0 | O127: 0 | P127: 0 | Q127: 0 | T127: 0 | U127: 0 | V127: 1 | W127: 0 | X127: 0 | Y127: 0 | Z127: 0
G128: 0 | H128: - | I128: 0 | J128: 0 | N128: 0 | O128: 0 | P128: 0 | Q128: 0 | T128: 0 | U128: 0 | V128: 1 | W128: 0 | X128: 0 | Y128: 0 | Z128: 0
G129: 0 | H129: - | I129: 0 | J129: 0 | N129: 0 | O129: 0 | P129: 0 | Q129: 0 | T129: 0 | U129: 0 | V129: 1 | W129: 0 | X129: 0 | Y129: 0 | Z129: 0
G130: 0 | H130: - | I130: 0 | J130: 0 | N130: 0 | O130: 0 | P130: 0 | Q130: 0 | T130: 0 | U130: 0 | V130: 1 | W130: 0 | X130: 0 | Y130: 0 | Z130: 0
G131: 0 | H131: - | I131: 0 | J131: 0 | N131: 0 | O131: 0 | P131: 0 | Q131: 0 | T131: 0 | U131: 0 | V131: 1 | W131: 0 | X131: 0 | Y131: 0 | Z131: 0
G132: 0 | H132: - | I132: 0 | J132: 0 | N132: 0 | O132: 0 | P132: 0 | Q132: 0 | T132: 0 | U132: 0 | V132: 1 | W132: 0 | X132: 0 | Y132: 0 | Z132: 0
G133: 0 | H133: - | I133: 0 | J133: 0 | N133: 0 | O133: 0 | P133: 0 | Q133: 0 | T133: 0 | U133: 0 | V133: 1 | W133: 0 | X133: 0 | Y133: 0 | Z133: 0
G134: 0 | H134: - | I134: 0 | J134: 0 | N134: 0 | O134: 0 | P134: 0 | Q134: 0 | T134: 0 | U134: 0 | V134: 1 | W134: 0 | X134: 0 | Y134: 0 | Z134: 0
G135: 0 | H135: - | I135: 0 | J135: 0 | N135: 0 | O135: 0 | P135: 0 | Q135: 0 | T135: 0 | U135: 0 | V135: 1 | W135: 0 | X135: 0 | Y135: 0 | Z135: 0
G136: 0 | H136: - | I136: 0 | J136: 0 | N136: 0 | O136: 0 | P136: 0 | Q136: 0 | T136: 0 | U136: 0 | V136: 1 | W136: 0 | X136: 0 | Y136: 0 | Z136: 0
G137: 0 | H137: - | I137: 0 | J137: 0 | N137: 0 | O137: 0 | P137: 0 | Q137: 0 | T137: 0 | U137: 0 | V137: 1 | W137: 0 | X137: 0 | Y137: 0 | Z137: 0
G138: =IF(AND(F138<>0,$D$31<>0),F138/$D$31,0) -> 0 | H138: - | I138: 0 | J138: 0 | N138: 0 | O138: 0 | P138: 0 | Q138: 0 | T138: 0 | U138: 0 | V138: 1 | W138: 0 | X138: 0 | Y138: 0 | Z138: 0
G139: =IF(AND(F139<>0,$D$31<>0),F139/$D$31,0) -> 0 | H139: - | I139: 0 | J139: 0 | N139: 0 | O139: 0 | P139: 0 | Q139: 0 | T139: 0 | U139: 0 | V139: 1 | W139: 0 | X139: 0 | Y139: 0 | Z139: 0
G140: =IF(AND(F140<>0,$D$31<>0),F140/$D$31,0) -> 0 | H140: - | I140: 0 | J140: 0 | N140: 0 | O140: 0 | P140: 0 | Q140: 0 | T140: 0 | U140: 0 | V140: 1 | W140: 0 | X140: 0 | Y140: 0 | Z140: 0
G141: =IF(AND(F141<>0,$D$31<>0),F141/$D$31,0) -> 0 | H141: - | I141: 0 | J141: 0 | N141: 0 | O141: 0 | P141: 0 | Q141: 0 | T141: 0 | U141: 0 | V141: 1 | W141: 0 | X141: 0 | Y141: 0 | Z141: 0
G142: 0 | H142: - | I142: 0 | J142: 0 | N142: 0 | O142: 0 | P142: 0 | Q142: 0 | T142: 0 | U142: 0 | V142: 1 | W142: 0 | X142: 0 | Y142: 0 | Z142: 0
G143: 0 | H143: - | I143: 0 | J143: 0 | N143: 0 | O143: 0 | P143: 0 | Q143: 0 | T143: 0 | U143: 0 | V143: 1 | W143: 0 | X143: 0 | Y143: 0 | Z143: 0
B144: 2.2 | C144: Superstructure: Upper Floors | E144: - | F144: =SUM(F145:F164) -> 0 | G144: =IF(AND(F144<>0,$D$31<>0),F144/$D$31,0) -> 0 | H144: =SUMPRODUCT((C123:D406="Superstructure: Upper Floors")*G123:G406) -> 0 | I144: - | J144: =SUM(J145:J164) -> 0 | K144: - | L144: - | M144: - | N144: - | O144: =SUM(O145:O164) -> 0 | P144: - | Q144: =SUM(Q145:Q164) -> 0 | R144: - | S144: - | T144: =IF(W144<>0,W144/($F$197+$O$197),0) -> 0 | U144: =IF(Y144<>0,Y144/($F$197+$O$197),0) -> 0 | V144: 1 | W144: =SUM(W145:W164) -> 0 | X144: 0 | Y144: =SUM(Y145:Y164) -> 0 | Z144: 0
B145: 2.2 | C145: Superstructure: Upper Floors | G145: =IF(AND(F145<>0,$D$31<>0),F145/$D$31,0) -> 0 | H145: - | I145: 0 | J145: =I145*F145 -> 0 | N145: =IF(M145<>0,INT(59/M145),0) -> 0 | O145: =F145*N145 -> 0 | P145: 0 | Q145: =O145*P145 -> 0 | T145: 0 | U145: 0 | V145: 1 | W145: =T145*(F145+O145) -> 0 | X145: 0 | Y145: =U145*(F145+O145) -> 0 | Z145: 0
G146: =IF(AND(F146<>0,$D$31<>0),F146/$D$31,0) -> 0 | H146: - | I146: 0 | J146: 0 | N146: =IF(M146<>0,INT(59/M146),0) -> 0 | O146: =F146*N146 -> 0 | P146: 0 | Q146: =O146*P146 -> 0 | T146: 0 | U146: 0 | V146: 1 | W146: 0 | X146: 0 | Y146: 0 | Z146: 0
G147: =IF(AND(F147<>0,$D$31<>0),F147/$D$31,0) -> 0 | H147: - | I147: 0 | J147: 0 | N147: 0 | O147: 0 | P147: 0 | Q147: 0 | T147: 0 | U147: 0 | V147: 1 | W147: 0 | X147: 0 | Y147: 0 | Z147: 0
G148: 0 | H148: - | I148: 0 | J148: 0 | N148: 0 | O148: 0 | P148: 0 | Q148: 0 | T148: 0 | U148: 0 | V148: 1 | W148: 0 | X148: 0 | Y148: 0 | Z148: 0
G149: 0 | H149: - | I149: 0 | J149: 0 | N149: 0 | O149: 0 | P149: 0 | Q149: 0 | T149: 0 | U149: 0 | V149: 1 | W149: 0 | X149: 0 | Y149: 0 | Z149: 0
G150: 0 | H150: - | I150: 0 | J150: 0 | N150: 0 | O150: 0 | P150: 0 | Q150: 0 | T150: 0 | U150: 0 | V150: 1 | W150: 0 | X150: 0 | Y150: 0 | Z150: 0
G151: 0 | H151: - | I151: 0 | J151: 0 | N151: 0 | O151: 0 | P151: 0 | Q151: 0 | T151: 0 | U151: 0 | V151: 1 | W151: 0 | X151: 0 | Y151: 0 | Z151: 0
G152: 0 | H152: - | I152: 0 | J152: 0 | N152: 0 | O152: 0 | P152: 0 | Q152: 0 | T152: 0 | U152: 0 | V152: 1 | W152: 0 | X152: 0 | Y152: 0 | Z152: 0
G153: 0 | H153: - | I153: 0 | J153: 0 | N153: 0 | O153: 0 | P153: 0 | Q153: 0 | T153: 0 | U153: 0 | V153: 1 | W153: 0 | X153: 0 | Y153: 0 | Z153: 0
G154: 0 | H154: - | I154: 0 | J154: 0 | N154: 0 | O154: 0 | P154: 0 | Q154: 0 | T154: 0 | U154: 0 | V154: 1 | W154: 0 | X154: 0 | Y154: 0 | Z154: 0
G155: 0 | H155: - | I155: 0 | J155: 0 | N155: 0 | O155: 0 | P155: 0 | Q155: 0 | T155: 0 | U155: 0 | V155: 1 | W155: 0 | X155: 0 | Y155: 0 | Z155: 0
G156: 0 | H156: - | I156: 0 | J156: 0 | N156: 0 | O156: 0 | P156: 0 | Q156: 0 | T156: 0 | U156: 0 | V156: 1 | W156: 0 | X156: 0 | Y156: 0 | Z156: 0
G157: 0 | H157: - | I157: 0 | J157: 0 | N157: 0 | O157: 0 | P157: 0 | Q157: 0 | T157: 0 | U157: 0 | V157: 1 | W157: 0 | X157: 0 | Y157: 0 | Z157: 0
G158: 0 | H158: - | I158: 0 | J158: 0 | N158: 0 | O158: 0 | P158: 0 | Q158: 0 | T158: 0 | U158: 0 | V158: 1 | W158: 0 | X158: 0 | Y158: 0 | Z158: 0
G159: =IF(AND(F159<>0,$D$31<>0),F159/$D$31,0) -> 0 | H159: - | I159: 0 | J159: 0 | N159: 0 | O159: 0 | P159: 0 | Q159: 0 | T159: 0 | U159: 0 | V159: 1 | W159: 0 | X159: 0 | Y159: 0 | Z159: 0
G160: =IF(AND(F160<>0,$D$31<>0),F160/$D$31,0) -> 0 | H160: - | I160: 0 | J160: 0 | N160: 0 | O160: 0 | P160: 0 | Q160: 0 | T160: 0 | U160: 0 | V160: 1 | W160: 0 | X160: 0 | Y160: 0 | Z160: 0
G161: =IF(AND(F161<>0,$D$31<>0),F161/$D$31,0) -> 0 | H161: - | I161: 0 | J161: 0 | N161: 0 | O161: 0 | P161: 0 | Q161: 0 | T161: 0 | U161: 0 | V161: 1 | W161: 0 | X161: 0 | Y161: 0 | Z161: 0
G162: =IF(AND(F162<>0,$D$31<>0),F162/$D$31,0) -> 0 | H162: - | I162: 0 | J162: 0 | N162: 0 | O162: 0 | P162: 0 | Q162: 0 | T162: 0 | U162: 0 | V162: 1 | W162: 0 | X162: 0 | Y162: 0 | Z162: 0
G163: 0 | H163: - | I163: 0 | J163: 0 | N163: 0 | O163: 0 | P163: 0 | Q163: 0 | T163: 0 | U163: 0 | V163: 1 | W163: 0 | X163: 0 | Y163: 0 | Z163: 0
G164: 0 | H164: - | I164: 0 | J164: =I164*F164 -> 0 | N164: 0 | O164: 0 | P164: 0 | Q164: 0 | T164: 0 | U164: 0 | V164: 1 | W164: 0 | X164: 0 | Y164: 0 | Z164: 0
B165: 2.3 | C165: Superstructure: Roof | E165: - | F165: =SUM(F166:F185) -> 0 | G165: =IF(AND(F165<>0,$D$31<>0),F165/$D$31,0) -> 0 | H165: =SUMPRODUCT((C38:D401="Superstructure: Roof")*G38:G401) -> 0 | I165: - | J165: =SUM(J166:J185) -> 0 | K165: - | L165: - | M165: - | N165: - | O165: =SUM(O166:O185) -> 0 | P165: - | Q165: =SUM(Q166:Q185) -> 0 | R165: - | S165: - | T165: =IF(W165<>0,W165/($F$218+$O$218),0) -> 0 | U165: =IF(Y165<>0,Y165/($F$218+$O$218),0) -> 0 | V165: 1 | W165: =SUM(W166:W185) -> 0 | X165: 0 | Y165: =SUM(Y166:Y185) -> 0 | Z165: 0
B166: 2.3 | C166: Superstructure: Roof | G166: =IF(AND(F166<>0,$D$31<>0),F166/$D$31,0) -> 0 | H166: - | I166: 0 | J166: =I166*F166 -> 0 | N166: =IF(M166<>0,INT(59/M166),0) -> 0 | O166: =F166*N166 -> 0 | P166: 0 | Q166: =O166*P166 -> 0 | T166: 0 | U166: 0 | V166: 1 | W166: =T166*(F166+O166) -> 0 | X166: 0 | Y166: =U166*(F166+O166) -> 0 | Z166: 0
G167: =IF(AND(F167<>0,$D$31<>0),F167/$D$31,0) -> 0 | H167: - | I167: 0 | J167: 0 | N167: =IF(M167<>0,INT(59/M167),0) -> 0 | O167: =F167*N167 -> 0 | P167: 0 | Q167: =O167*P167 -> 0 | T167: 0 | U167: 0 | V167: 1 | W167: 0 | X167: 0 | Y167: 0 | Z167: 0
G168: =IF(AND(F168<>0,$D$31<>0),F168/$D$31,0) -> 0 | H168: - | I168: 0 | J168: 0 | N168: 0 | O168: 0 | P168: 0 | Q168: 0 | T168: 0 | U168: 0 | V168: =1-T168-U168 -> 1 | W168: 0 | X168: =IF(AND(W168<>0,$D$31<>0),W168/$D$31,0) -> 0 | Y168: 0 | Z168: 0
G169: 0 | H169: - | I169: 0 | J169: 0 | N169: 0 | O169: 0 | P169: 0 | Q169: 0 | T169: 0 | U169: 0 | V169: 1 | W169: 0 | X169: 0 | Y169: 0 | Z169: 0
G170: 0 | H170: - | I170: 0 | J170: 0 | N170: 0 | O170: 0 | P170: 0 | Q170: 0 | T170: 0 | U170: 0 | V170: 1 | W170: 0 | X170: 0 | Y170: 0 | Z170: 0
G171: 0 | H171: - | I171: 0 | J171: 0 | N171: 0 | O171: 0 | P171: 0 | Q171: 0 | T171: 0 | U171: 0 | V171: 1 | W171: 0 | X171: 0 | Y171: 0 | Z171: 0
G172: 0 | H172: - | I172: 0 | J172: 0 | N172: 0 | O172: 0 | P172: 0 | Q172: 0 | T172: 0 | U172: 0 | V172: 1 | W172: 0 | X172: 0 | Y172: 0 | Z172: 0
G173: 0 | H173: - | I173: 0 | J173: 0 | N173: 0 | O173: 0 | P173: 0 | Q173: 0 | T173: 0 | U173: 0 | V173: 1 | W173: 0 | X173: 0 | Y173: 0 | Z173: 0
G174: 0 | H174: - | I174: 0 | J174: 0 | N174: 0 | O174: 0 | P174: 0 | Q174: 0 | T174: 0 | U174: 0 | V174: 1 | W174: 0 | X174: 0 | Y174: 0 | Z174: 0
G175: 0 | H175: - | I175: 0 | J175: 0 | N175: 0 | O175: 0 | P175: 0 | Q175: 0 | T175: 0 | U175: 0 | V175: 1 | W175: 0 | X175: 0 | Y175: 0 | Z175: 0
G176: 0 | H176: - | I176: 0 | J176: 0 | N176: 0 | O176: 0 | P176: 0 | Q176: 0 | T176: 0 | U176: 0 | V176: 1 | W176: 0 | X176: 0 | Y176: 0 | Z176: 0
G177: 0 | H177: - | I177: 0 | J177: 0 | N177: 0 | O177: 0 | P177: 0 | Q177: 0 | T177: 0 | U177: 0 | V177: 1 | W177: 0 | X177: 0 | Y177: 0 | Z177: 0
G178: 0 | H178: - | I178: 0 | J178: 0 | N178: 0 | O178: 0 | P178: 0 | Q178: 0 | T178: 0 | U178: 0 | V178: 1 | W178: 0 | X178: 0 | Y178: 0 | Z178: 0
G179: 0 | H179: - | I179: 0 | J179: 0 | N179: 0 | O179: 0 | P179: 0 | Q179: 0 | T179: 0 | U179: 0 | V179: 1 | W179: 0 | X179: 0 | Y179: 0 | Z179: 0
G180: =IF(AND(F180<>0,$D$31<>0),F180/$D$31,0) -> 0 | H180: - | I180: 0 | J180: 0 | N180: 0 | O180: 0 | P180: 0 | Q180: 0 | T180: 0 | U180: 0 | V180: 1 | W180: 0 | X180: 0 | Y180: 0 | Z180: 0
G181: =IF(AND(F181<>0,$D$31<>0),F181/$D$31,0) -> 0 | H181: - | I181: 0 | J181: 0 | N181: 0 | O181: 0 | P181: 0 | Q181: 0 | T181: 0 | U181: 0 | V181: 1 | W181: 0 | X181: 0 | Y181: 0 | Z181: 0
G182: =IF(AND(F182<>0,$D$31<>0),F182/$D$31,0) -> 0 | H182: - | I182: 0 | J182: 0 | N182: 0 | O182: 0 | P182: 0 | Q182: 0 | T182: 0 | U182: 0 | V182: 1 | W182: 0 | X182: 0 | Y182: 0 | Z182: 0
G183: =IF(AND(F183<>0,$D$31<>0),F183/$D$31,0) -> 0 | H183: - | I183: 0 | J183: 0 | N183: 0 | O183: 0 | P183: 0 | Q183: 0 | T183: 0 | U183: 0 | V183: 1 | W183: 0 | X183: 0 | Y183: 0 | Z183: 0
G184: 0 | H184: - | I184: 0 | J184: 0 | N184: 0 | O184: 0 | P184: 0 | Q184: 0 | T184: 0 | U184: 0 | V184: 1 | W184: 0 | X184: 0 | Y184: 0 | Z184: 0
G185: 0 | H185: - | I185: 0 | J185: 0 | N185: 0 | O185: 0 | P185: 0 | Q185: 0 | T185: 0 | U185: 0 | V185: 1 | W185: 0 | X185: 0 | Y185: 0 | Z185: 0
B186: 2.4 | C186: Superstructure: Stairs and Ramps | E186: - | F186: =SUM(F187:F201) -> 0 | G186: =IF(AND(F186<>0,$D$31<>0),F186/$D$31,0) -> 0 | H186: - | I186: - | J186: =SUM(J187:J201) -> 0 | K186: - | L186: - | M186: - | N186: - | O186: =SUM(O187:O201) -> 0 | P186: - | Q186: =SUM(Q187:Q201) -> 0 | R186: - | S186: - | T186: =IF(W186<>0,W186/($F$239+$O$239),0) -> 0 | U186: =IF(Y186<>0,Y186/($F$239+$O$239),0) -> 0 | V186: 1 | W186: =SUM(W187:W201) -> 0 | X186: 0 | Y186: =SUM(Y187:Y201) -> 0 | Z186: 0
B187: 2.4 | C187: Superstructure: Stairs and Ramps | G187: =IF(AND(F187<>0,$D$31<>0),F187/$D$31,0) -> 0 | H187: - | I187: 0 | J187: =I187*F187 -> 0 | N187: =IF(M187<>0,INT(59/M187),0) -> 0 | O187: =F187*N187 -> 0 | P187: 0 | Q187: =O187*P187 -> 0 | T187: 0 | U187: 0 | V187: 1 | W187: 0 | X187: 0 | Y187: 0 | Z187: 0
G188: =IF(AND(F188<>0,$D$31<>0),F188/$D$31,0) -> 0 | H188: - | I188: 0 | J188: 0 | N188: =IF(M188<>0,INT(59/M188),0) -> 0 | O188: =F188*N188 -> 0 | P188: 0 | Q188: =O188*P188 -> 0 | T188: 0 | U188: 0 | V188: 1 | W188: 0 | X188: 0 | Y188: 0 | Z188: 0
G189: =IF(AND(F189<>0,$D$31<>0),F189/$D$31,0) -> 0 | H189: - | I189: 0 | J189: 0 | N189: 0 | O189: 0 | P189: 0 | Q189: 0 | T189: 0 | U189: 0 | V189: 1 | W189: 0 | X189: 0 | Y189: 0 | Z189: 0
G190: 0 | H190: - | I190: 0 | J190: 0 | N190: 0 | O190: 0 | P190: 0 | Q190: 0 | T190: 0 | U190: 0 | V190: 1 | W190: 0 | X190: 0 | Y190: 0 | Z190: 0
G191: 0 | H191: - | I191: 0 | J191: 0 | N191: 0 | O191: 0 | P191: 0 | Q191: 0 | T191: 0 | U191: 0 | V191: 1 | W191: 0 | X191: 0 | Y191: 0 | Z191: 0
G192: 0 | H192: - | I192: 0 | J192: 0 | N192: 0 | O192: 0 | P192: 0 | Q192: 0 | T192: 0 | U192: 0 | V192: 1 | W192: 0 | X192: 0 | Y192: 0 | Z192: 0
G193: 0 | H193: - | I193: 0 | J193: 0 | N193: 0 | O193: 0 | P193: 0 | Q193: 0 | T193: 0 | U193: 0 | V193: 1 | W193: 0 | X193: 0 | Y193: 0 | Z193: 0
G194: 0 | H194: - | I194: 0 | J194: 0 | N194: 0 | O194: 0 | P194: 0 | Q194: 0 | T194: 0 | U194: 0 | V194: 1 | W194: 0 | X194: 0 | Y194: 0 | Z194: 0
G195: 0 | H195: - | I195: 0 | J195: 0 | N195: 0 | O195: 0 | P195: 0 | Q195: 0 | T195: 0 | U195: 0 | V195: 1 | W195: 0 | X195: 0 | Y195: 0 | Z195: 0
G196: 0 | H196: - | I196: 0 | J196: 0 | N196: 0 | O196: 0 | P196: 0 | Q196: 0 | T196: 0 | U196: 0 | V196: 1 | W196: 0 | X196: 0 | Y196: 0 | Z196: 0
G197: 0 | H197: - | I197: 0 | J197: 0 | N197: 0 | O197: 0 | P197: 0 | Q197: 0 | T197: 0 | U197: 0 | V197: 1 | W197: 0 | X197: 0 | Y197: 0 | Z197: 0
G198: 0 | H198: - | I198: 0 | J198: 0 | N198: 0 | O198: 0 | P198: 0 | Q198: 0 | T198: 0 | U198: 0 | V198: 1 | W198: 0 | X198: 0 | Y198: 0 | Z198: 0
G199: 0 | H199: - | I199: 0 | J199: 0 | N199: 0 | O199: 0 | P199: 0 | Q199: 0 | T199: 0 | U199: 0 | V199: 1 | W199: 0 | X199: 0 | Y199: 0 | Z199: 0
G200: 0 | H200: - | I200: 0 | J200: 0 | N200: 0 | O200: 0 | P200: 0 | Q200: 0 | T200: 0 | U200: 0 | V200: 1 | W200: 0 | X200: 0 | Y200: 0 | Z200: 0
G201: =IF(AND(F201<>0,$D$31<>0),F201/$D$31,0) -> 0 | H201: - | I201: 0 | J201: 0 | N201: 0 | O201: 0 | P201: 0 | Q201: 0 | T201: 0 | U201: 0 | V201: 1 | W201: 0 | X201: 0 | Y201: 0 | Z201: 0
B202: 2.5 | C202: Superstructure: External Walls | E202: - | F202: =SUM(F203:F222) -> 0 | G202: =IF(AND(F202<>0,$D$31<>0),F202/$D$31,0) -> 0 | H202: =SUMPRODUCT((C38:D401="Superstructure: External Walls")*G38:G401)+SUMPRODUCT((C38:D401="Superstructure: Windows and External Doors")*G38:G401) -> 0 | I202: - | J202: =SUM(J203:J222) -> 0 | K202: - | L202: - | M202: - | N202: - | O202: =SUM(O203:O222) -> 0 | P202: - | Q202: =SUM(Q203:Q222) -> 0 | R202: - | S202: - | T202: =IF(W202<>0,W202/($F$255+$O$255),0) -> 0 | U202: =IF(Y202<>0,Y202/($F$255+$O$255),0) -> 0 | V202: 1 | W202: =SUM(W203:W222) -> 0 | X202: 0 | Y202: =SUM(Y203:Y222) -> 0 | Z202: 0
B203: 2.5 | C203: Superstructure: External Walls | G203: =IF(AND(F203<>0,$D$31<>0),F203/$D$31,0) -> 0 | H203: - | I203: 0 | J203: =I203*F203 -> 0 | N203: =IF(M203<>0,INT(59/M203),0) -> 0 | O203: =F203*N203 -> 0 | P203: 0 | Q203: =O203*P203 -> 0 | T203: 0 | U203: 0 | V203: 1 | W203: =T203*(F203+O203) -> 0 | X203: 0 | Y203: =U203*(F203+O203) -> 0 | Z203: 0
G204: =IF(AND(F204<>0,$D$31<>0),F204/$D$31,0) -> 0 | H204: - | I204: 0 | J204: 0 | N204: =IF(M204<>0,INT(59/M204),0) -> 0 | O204: =F204*N204 -> 0 | P204: 0 | Q204: =O204*P204 -> 0 | T204: 0 | U204: 0 | V204: 1 | W204: 0 | X204: 0 | Y204: 0 | Z204: 0
G205: =IF(AND(F205<>0,$D$31<>0),F205/$D$31,0) -> 0 | H205: - | I205: 0 | J205: 0 | N205: 0 | O205: 0 | P205: 0 | Q205: 0 | T205: 0 | U205: 0 | V205: 1 | W205: 0 | X205: 0 | Y205: 0 | Z205: 0
G206: 0 | H206: - | I206: 0 | J206: 0 | N206: 0 | O206: 0 | P206: 0 | Q206: 0 | T206: 0 | U206: 0 | V206: 1 | W206: 0 | X206: 0 | Y206: 0 | Z206: 0
... 229 more rows

Sheet Version Control
A1: Greater London Authority - Circular Economy Statement template
A3: Version Control
A4: Current Issue | B4: 1.1
A5: Date | B5: 2023-06-01
A6: Author | B6: Greater London Authority
A8: Update Version | B8: 1.1
A9: Update Location | B9: Description of changes made to GLA Circular Economy Statement Template
A10: Outline Application Stage / Detailed Application Stage (Cell B70) | B10: Update to wording to reference the Circular Economy Principles by Building Layer table.
A11: Outline Application Stage / Detailed Application Stage (Cell B88) Post-Construction Stage (B35) | B11: Added wording to clarify the approach should the number of entries exceed the number of rows provided.
A12: Outline Application Stage / Detailed Application Stage / Post-Construction Stage (Bill of Mateirals, Column I and P) | B12: Where it is anticipated this figure will come directly from OneClick, eTool LCA or other similar software, the Construction Waste Factor in Columns I and P is now input at a percentage for clarity and consistency.
A13: Outline Application Stage / Detailed Application Stage (Bill of Materials, Columns K and L) | B13: Cell colour has been amended to show that these are pioneering considerations.
A14: Outline Application Stage / Detailed Application Stage / Post-Construction Stage (Bill of Materials, Column N) | B14: Calculation has been adjusted so that components with an Expected Lifespan of 60-years are not counted as being replaced over the assumed 60-year lifecycle period.
A15: Outline Application Stage / Detailed Application Stage / Post-Construction Stage (Bill of Materials, Column O) | B15: Calculation has been updated to show correct multiplication of Material Quantity by Number of Replacements.
A16: Outline Application Stage / Detailed Application Stage / Post-Construction Stage (Bill of Materials, Column Q) | B16: Calculation has been updated to show correct multiplication of Repair and Replacement quantities of materials by Construction Waste Factor.
A17: Detailed Application Stage (Cells E470, E471 and E477) / Post-Construction Stage (Cell E417, E418 and E424) | B17: Calculations in cells updated in line with the calculations in the Outline Application Stage tab.
A18: Outline Application Stage / Detailed Application Stage (Cell Q455) / Post-Construction Stage (Cell Q402) | B18: Calculation has been updated to show correct total for Construction Waste (Module B).
A19: Outline Application Stage / Detailed Application Stage (Cell W455, X455, Y455 and Z455) / Post-Construction Stage (Cell W402, X402, Y402 and Z402) | B19: Calculation has been updated to show correct total for Benefits Beyond the System Boundary (Module D).
A20: Pre-App Stage / Outline Application Stage / Detailed Application Stage / Post-Construction Stage | B20: Accessibility updates across all tabs wherever possible to provide alt text, address low contrast text/backgrounds and merged cells.

Sheet Drop- down list (hidden)
A1: Number of Use Types | B1: Yes/No | C1: Layers | D1: Building element category reference | E1: Building element category | F1: Other
A2: 1 | B2: Yes | C2: Site | D2: 0.1 | E2: Demolition: Toxic/Hazardous/Contaminated Material Treatment | F2: It is accepted that the Reserved Matters Reporting will be conditioned
A3: 2 | B3: No | C3: Substructure | D3: 0.2 | E3: Major Demolition Works | F3: It is accepted that the Post Construction Reporting will be conditioned
A4: 3 | B4: Yes, in whole | C4: Super- Structure | D4: 0.3 | E4: Temporary Support to Adjacent Structures
A5: 4 | B5: Yes, in part | C5: Shell/ Skin | D5: 0.4 | E5: Specialist Ground Works
A6: 5 | B6: No | C6: Services | D6: 1 | E6: Substructure
A7: 6 | C7: Space | D7: 2.1 | E7: Superstructure: Frame
A8: 7 | C8: Stuff | D8: 2.2 | E8: Superstructure: Upper Floors
A9: 8 | C9: Construction Stuff | D9: 2.3 | E9: Superstructure: Roof
A10: 9 | D10: 2.4 | E10: Superstructure: Stairs and Ramps
A11: 10 | C11: Yes | D11: 2.5 | E11: Superstructure: External Walls
A12: 11 | C12: No | D12: 2.6 | E12: Superstructure: Windows and External Doors
A13: 12 | D13: 2.7 | E13: Superstructure: Internal Walls and Partitions
A14: 13 | D14: 2.8 | E14: Superstructure: Internal Doors
A15: 14 | D15: 3 | E15: Finishes
A16: 15 | D16: 4 | E16: Fittings, furnishings & equipment (FFE)
D17: 5 | E17: Services (MEP)
D18: 6 | E18: Prefabricated Buildings and Building Units
D19: 7 | E19: Work to Existing Building
D20: 8 | E20: External works
